Workbook

Sheet General INPUT
B2: General Input for Surface Loading Calculations
B4: PIPELINE INFORMATION: | E4: Enter Line Info HERE
B5: PIPELINE LOCATION: | E5: Enter Line Location HERE
B6: DATE: | E6: =NOW() -> 2014-01-23T16:07:16.350
B8: SELECT UNITS:
B10: PIPE INPUT DATA | H10: Variable Description | N10: Notes
B12: D = | C12: 0 | D12: inches | H12: <----- | I12: Outside Diameter
B13: t = | C13: 0 | D13: inches | H13: <----- | I13: Wall Thickness
B14: Pinternal = | C14: 0 | D14: psig | H14: <----- | I14: Maximum Operating Pressure
B15: SMYS = | C15: 0 | D15: psi | H15: <----- | I15: Specified Minimum Yield Strength
B16: ΔT = | C16: 20 | D16: °F | H16: <----- | I16: Temperature Differential (Tinstalled - Toperating) ---------> | N16: See NOTE #1
B19: SOIL INPUT DATA | H19: Variable Description | N19: Notes
B21: ρ = | C21: 0 | D21: lb/ft3 | H21: <----- | I21: Soil Density
B22: H = | C22: 0 | D22: ft | H22: <----- | I22: Depth of Cover
B24: Bedding Angle (θ):
B25: θ = | H25: <----- | I25: Bedding Angle (degrees)
L27: θ
I28: Soil (Pipe Bedding)
B30: Modulus of Soil Reaction (E'):
H31: <----- | I31: Modulus of Soil Reaction (Defined by User)
B32: E' = | C32: N/A | D32: psi
H34: <----- | I34: Modulus of Soil Reaction (Calculated from tables)
B35: Soil Type:
B39: Soil Compaction:
B45: Select Soil Load Equation:
B48: φ = | C48: N/A | D48: degrees | H48: <----- | I48: Angle of Shearing Resistance (Friction Angle) ------> | N48: See NOTE #2
B51: MISCELLANEOUS INPUT | H51: Variable Description | N51: Notes
B53: Impact Factor (IF):
B54: Vehicle Type: | H54: <----- | I54: Vehicle Type: Used to determine Impact Factor
H55: <----- | I55: Vehicles with high-pressure tires ---------------------> | N55: See NOTE #3
H56: <----- | I56: Vehicles with low-pressure tires ----------------------> | N56: See NOTE #4
H58: <----- | I58: Track Vehicles with steel or rubber tracks
B59: Pavement Type: | H59: <----- | I59: Pavement Type: Used to determine Impact Factor
B63: Select Equivalent Stress Equation:
H64: <----- | I64: MORE conservative Equivalent stress equation
H65: <----- | I65: LESS conservative Equivalent stress equation
B67: Select Pipeline Regulatory Code:
H68: <----- | I68: ASME Code for Liquid Pressure Piping (2012) -------> | N68: See NOTE #5
H69: <----- | I69: ASME Code for Gas Pressure Piping (2010) -----------> | N69: See NOTE #5
H70: <----- | I70: CSA Code for Oil and Gas Pipeline Systems (2011) ---> | N70: See NOTE #6
H71: <----- | I71: Pipeline stress limits manually input by user --------> | N71: See NOTE #7
D72: σHoop_%SMYS = | E72: N/A
D73: σLongitudinal_%SMYS = | E73: N/A
D74: σEquivalent_%SMYS = | E74: N/A
B77: NOTE #1: | C77: 20°F or 11.1°C are DEFAULT values and should only be used if the actual temperature differential is unknown.
B78: NOTE #2: | C78: To remain conservative when utilizing the Trap Door Equation, the program assumes soil cohesion is equal to zero.
B79: NOTE #3: | C79: Tire pressures GREATER THAN OR EQUAL TO 30 psi should be considered high-pressure tires when using this calculator.
B80: NOTE #4: | C80: Tire pressures LESS THAN 30 psi should be considered low-pressure tires when using this calculator.
B81: NOTE #5: | C81: Pipeline stress limits programmed into this calculator are based on the current versions of the ASME codes. Future revisions to
C82: these codes will require the programming for this calculator to be modified in order to maintain proper functionality in
C83: accoordance with the latest versions of the ASME pipeline codes.
B84: NOTE #6: | C84: The Canadian Standards Association (CSA) recommends in CSA-Z662 that the pipeline owner/operator develop stress limits
C85: for their specific pipeline based on the design requirements set forth in the CSA-Z662 code. However, if these limits are
C86: unknown, the user may select the "CSA-Z662" pipeline regulatory code, which has the following default stress limits:
C87: σHoop = 0.9 SMYS, σLongitudinal = 0.9 SMYS, and σEquivalent = 0.9 SMYS.
B88: NOTE #7: | C88: Stress Limits defined by user must be entered in terms of percent SMYS (i.e. a stress limit of 90% should be entered as 0.9).

Sheet Wheel Vehicle INPUT
B2: Input for Surface Vehicle Live Load
B4: VEHICLE INFORMATION: | E4: Enter Vehicle Info HERE
B5: VEHICLE TYPE: | E5: Wheel: 2-Axles, 4-Wheels
K9: Contact Width 1
K10: 0 | L10: inches
G12: Axle Load 1
G13: 0 | H13: lbs | L13: Tire Pressure 1
L14: 0 | M14: psi
G20: Axle Separation
G21: 0 | H21: ft
K23: Contact Width 2
K24: 0 | L24: inches
L27: Tire Pressure 2
L28: 0 | M28: psi
G29: Axle Load 2
G30: 0 | H30: lbs
G32: Axle Width
G33: 0 | H33: ft
B37: GENERAL NOTES:
B38: - Loading configuration should always be perpendicular to pipeline.
B39: - Dual tires as seen on pick-up and semi-trucks can be treated as a single tire due to their close proximity to one another.

Sheet Wheel Vehicle 3-Axle INPUT
B2: Input for Surface Vehicle Live Load
B4: VEHICLE INFORMATION: | E4: Enter Vehicle Info HERE
B5: VEHICLE TYPE: | E5: Wheel: 3-Axles, 6-Wheels
K9: Contact Width 1
K10: 0 | L10: inches
F12: Axle Load 1
F13: 0 | G13: lbs | L13: Tire Pressure 1
L14: 0 | M14: psi
H20: Axle Separation 1
H21: 0 | I21: ft
K23: Contact Width 2
K24: 0 | L24: inches
F26: Axle Load 2
F27: 0 | G27: lbs | L27: Tire Pressure 2
L28: 0 | M28: psi
H32: Axle Separation 2 | K32: Contact Width 3
H33: 0 | I33: ft | K33: 0 | L33: inches
F35: Axle Load 3
F36: 0 | G36: lbs | L36: Tire Pressure 3
L37: 0 | M37: psi
G41: Axle Width
G42: 0 | H42: ft
B46: GENERAL NOTES:
B47: - Loading configuration should always be perpendicular to pipeline.
B48: - Dual tires as seen on pick-up and semi-trucks can be treated as a single tire due to their close proximity to one another.

Sheet Track Vehicle INPUT
B2: Input for Surface Vehicle Live Load
B4: VEHICLE INFORMATION: | E4: Enter Vehicle Info HERE
B5: VEHICLE TYPE: | E5: Track
J10: Contact Width
J11: 0 | K11: inches
G13: Vehicle Load
G14: 0 | H14: lbs
C20: Track Length
C21: 0 | D21: ft
G31: Track Separation
G32: 0 | H32: ft
B36: GENERAL NOTES:
B37: - Loading configuration should always be perpendicular to pipeline.

Sheet Grid INPUT
B2: Input for Surface Vehicle Live Load
B4: VEHICLE INFORMATION: | E4: Enter Vehicle Info HERE
B5: VEHICLE TYPE: | E5: Enter Vehicle Type HERE
B11: Measurement Point X-coordinate, in: | F11: 0 | I11: Load, lbs | J11: X, in | K11: Y, in
B12: Measurement Point Y-coordinate, in: | F12: 0
B16: GENERAL NOTES:
B17: - A "Run-time error '13' : Type mismatch" error indicates that one of the user inputs in the "Load", "X", or "Y" columns is non-numeric. This input must be corrected to a numeric value for the program to function properly.

Sheet Results
B2: Results for Surface Loading Calculation
B4: PIPELINE INFORMATION:
B5: PIPELINE LOCATION:
B6: VEHICLE INFORMATION:
B7: VEHICLE TYPE:
B8: DATE: | E8: =NOW() -> 2014-01-23T16:07:16.350
B10: GENERAL INPUTS | I10: VEHICLE INPUTS | N10: LOCATION OF MAXIMUM LOAD
B12: D = | D12: inches | E12: (Outside Diameter) | I12: Axle or Track Separation 1 : | M12: ft | N12: The maximum pressure
B13: t = | D13: inches | E13: (Wall Thickness) | I13: Axle Separation 2 : | M13: ft | N13: exerted on the surface of
B14: Pinternal = | D14: psig | E14: (Maximum Operating Pressure) | I14: Axle Width : | M14: ft | N14: the pipe due to vehicle
B15: SMYS = | D15: psi | E15: (Specified Minimum Yield Strength) | I15: Track Length : | M15: ft | N15: point load occurs:
B16: ΔT = | D16: °F | E16: (Temperature Differential) | I16: Axle 1 or Track Vehicle Load : | M16: lbs
B17: ρ = | D17: lb/ft3 | E17: (Density) | I17: Contact Width 1 : | M17: inches
B18: H = | D18: ft | E18: (Depth of Cover) | I18: Tire Pressure 1 : | M18: psi
B19: θ = | D19: degrees | E19: (Bedding Angle) | I19: Axle Load 2 : | M19: lbs
B20: E' = | D20: psi | E20: (Modulus of Soil Reaction) | I20: Contact Width 2 : | M20: inches
B21: IF = | E21: (Impact Factor) | I21: Tire Pressure 2 : | M21: psi
B22: Soil Load Equation: | I22: Axle Load 3 : | M22: lbs
C23: φ = | E23: degrees | I23: Contact Width 3 : | M23: inches
B24: Equivalent Stress Equation: | I24: Tire Pressure 3 : | M24: psi
I25: Measurement Point X-coord : | M25: inches
I26: Measurement Point Y-coord : | M26: inches
B28: CALCULATED STRESS DATA | F28: Variable Description | L28: Pipeline Regulatory Code | O28: Pass / Fail
B30: Hoop Stress (σH):
B31: σH_Internal_MOP = | E31: psi | F31: <----- Internal Pressure @ MOP
B32: σH_Live_Zero = | E32: psi | F32: <----- Live Load @ Zero pressure
B33: σH_Live_MOP = | E33: psi | F33: <----- Live Load @ MOP
B34: σH_Total_Zero = | E34: psi | F34: <----- Total Hoop Stress @ Zero pressure
B35: σH_Total_MOP = | E35: psi | F35: <----- Total Hoop Stress @ MOP
B36: σH_%SMYS_Zero = | F36: <----- Hoop Stress %SMYS @ Zero pressure
B37: σH_%SMYS_MOP = | F37: <----- Hoop Stress %SMYS @ MOP
B39: Longitudinal Stress (σL):
B40: σL_Live_Zero = | E40: psi | F40: <----- Live Load @ Zero pressure
B41: σL_Live_MOP = | E41: psi | F41: <----- Live Load @ MOP
B42: σL_Total_Zero = | E42: psi | F42: <----- Total Longitudinal Stress @ Zero pressure
B43: σL_Total_MOP = | E43: psi | F43: <----- Total Longitudinal Stress @ MOP
B44: σL_%SMYS_Zero = | F44: <----- Longitudinal Stress %SMYS @ Zero pressure
B45: σL_%SMYS_MOP = | F45: <----- Longitudinal Stress %SMYS @ MOP
B47: Equivalent Stress (σE):
B48: σE_Zero = | E48: psi | F48: <----- Equivalent Stress @ Zero pressure
B49: σE_MOP = | E49: psi | F49: <----- Equivalent Stress @ MOP
B50: σE_%SMYS_Zero = | F50: <----- Equivalent Stress %SMYS @ Zero pressure
B51: σE_%SMYS_MOP = | F51: <----- Equivalent Stress %SMYS @ MOP
B56: GENERAL NOTES:
B57: - Refer to "Table 3-Fatigue Endurance Limits, SFG and SFL, for Various Steel Grades" on page 18 of API Recommended Practice 1102 when performing fatigue
B58: check calculations. This table has also been reproduced courtesy of the American Petroleum Institute on the "API RP 1102 Fatigue Table" tab to provide
B59: the user with a quick reference.

Sheet Variable Tables
B2: Reference Tables for Common Surface Loading Variable Values.
B4: Table 2-1 Spangler Stress Formula Parameters Kb and Kz
B5: Bedding Angle, (deg) | C5: Moment Parameter, Kb | D5: Deflection Parameter, Kz
B6: 0 | C6: 0.294 | D6: 0.11
B7: 30 | C7: 0.235 | D7: 0.108
B8: 60 | C8: 0.189 | D8: 0.103
B9: 90 | C9: 0.157 | D9: 0.096
B10: 120 | C10: 0.138 | D10: 0.089
B11: 150 | C11: 0.128 | D11: 0.085
B12: 180 | C12: 0.125 | D12: 0.083
B16: Table 2-3. Design Values of E' (psi)
B17: Type of Soil | E17: Depth of Cover (ft) | F17: Standard AASHTO Relative Compaction
F19: 0.85 | G19: 0.9 | H19: 0.95 | I19: 1
B20: Fine-grained soils with less than 25 percent sand content (CL, ML, CL-ML) | E20: 0-5 | F20: 500 | G20: 700 | H20: 1000 | I20: 1500
E21: 5-10 | F21: 600 | G21: 1000 | H21: 1400 | I21: 2000
E22: 10-15 | F22: 700 | G22: 1200 | H22: 1600 | I22: 2300
E23: 15-20 | F23: 800 | G23: 1300 | H23: 1800 | I23: 2600
B24: Coarse-grained soils with fines (SM, SC) | E24: 0-5 | F24: 600 | G24: 1000 | H24: 1200 | I24: 1900
E25: 5-10 | F25: 900 | G25: 1400 | H25: 1800 | I25: 2700
E26: 10-15 | F26: 1000 | G26: 1500 | H26: 2100 | I26: 3200
E27: 15-20 | F27: 1100 | G27: 1600 | H27: 2400 | I27: 3700
B28: Coarse-grained soils with little or no fines (SP, SW, GP, GW) | E28: 0-5 | F28: 700 | G28: 1000 | H28: 1600 | I28: 2500
E29: 5-10 | F29: 1000 | G29: 1500 | H29: 2200 | I29: 3300
E30: 10-15 | F30: 1050 | G30: 1600 | H30: 2400 | I30: 3600
E31: 15-20 | F31: 1100 | G31: 1700 | H31: 2500 | I31: 3800
B35: DISCLAIMER:
B36: Please note that the purpose of this tab is to provide the user with a quick reference to common variable tables
B37: utilized when calculating surface loads. This is not intended to be an all-encompassing list of variable values. The
B38: user should determine whether the use of these tables is appropriate for their specific situation.

Sheet TEST (hidden)
F1: Psoil | G1: ImpactF | H1: Eprime | I1: Kb | J1: Kz | K1: Bsnq1.25 | L1: Bsnq1.5 | M1: BsnqIF
F2: 3.333333333 | G2: 1.5 | H2: 879.6869627 | I2: 0.189 | J2: 0.103 | K2: =M4*1.25 -> 10.9291246 | L2: =M4*1.5 -> 13.11494952 | M2: 13.11494952
M3: BsnqMAX | N3: Location of MAX
M4: 8.743299678 | N4: Location 1
M5: VBA SUM | O5: VBA SUM | Q5: VBA SUM | S5: VBA SUM | U5: VBA SUM | W5: VBA SUM
M6: 8.743299678 | O6: 4.21271879 | Q6: 7.781640935 | S6: 3.744616691 | U6: 0.04028695664 | W6: 0.04425392952
C7: Formula | D7: Formula | M7: Sum | O7: Sum | Q7: Sum | S7: Sum | U7: Sum | W7: Sum
C8: =SQRT((48.5-F8)^2+(172.6-G8)^2) ->  | D8: =(3*E8)/(2*PI()*(12*4)^2*(1+((L8/(12*4))^2))^2.5) ->  | E8: Tire 1 | F8: SL 631 y | G8: SL 631 x | I8: Mega-Array | M8: =SUM(M10:M105) -> 8.743299678 | O8: =SUM(O10:O105) -> 4.21271879 | Q8: 7.781640935 | S8: 3.744616691 | U8: 0.04028695664 | W8: 0.04425392952 | Y8: 631 Scraper Data | AA8: 631 Data Rotated 90 Deg
C9: DistR | D9: Bousin | E9: load | F9: x | G9: y | I9: Load | J9: x | K9: y | L9: DistRMP1 | M9: Bsnq1 | N9: DistRMP2 | O9: Bsnq2 | P9: DistRMP3 | Q9: Bsnq3 | R9: DistRMP4 | S9: Bsnq4 | T9: DistRMP5 | U9: Bsnq5 | V9: DistRMP6 | W9: Bsnq6 | Y9: x center | Z9: y center | AA9: test x | AB9: test y
C10: 19.9873886 | D10: 0.2833082624 | E10: 2038.958333 | F10: 29.162498 | G10: 177.655393 | I10: 2038.958333 | J10: 29.162498 | K10: 177.655393 | L10: 19.9873886 | M10: 0.2833082624 | N10: 29.59743378 | O10: 0.1888003907 | P10: 350.7888158 | Q10: 1.935101566e-05 | R10: 351.4673607 | S10: 1.916833695e-05 | T10: 178.7047218 | U10: 0.0004963165944 | V10: 180.0330247 | W10: 0.0004794603427 | Y10: 177.655373 | Z10: 29.1625 | AA10: 29.1625 | AB10: 177.655373
C11: 19.3375 | D11: 0.2901160709 | E11: 2038.958333 | F11: 29.162498 | G11: 172.60002 | I11: 2038.958333 | J11: 29.162498 | K11: 172.60002 | L11: 19.3375 | M11: 0.2901160709 | N11: 29.162498 | O11: 0.1926477254 | P11: 345.7412421 | Q11: 2.07773308e-05 | R11: 346.4296738 | S11: 2.057556603e-05 | T11: 173.6798947 | U11: 0.0005667754155 | V11: 175.0463316 | W11: 0.0005465029102 | Y11: 172.6 | Z11: 29.1625 | AA11: 29.1625 | AB11: 172.6
C12: 19.9873886 | D12: 0.2833082624 | E12: 2038.958333 | F12: 29.162498 | G12: 167.544647 | I12: 2038.958333 | J12: 29.162498 | K12: 167.544647 | L12: 19.9873886 | M12: 0.2833082624 | N12: 29.59743378 | O12: 0.1888003907 | P12: 340.6938998 | Q12: 2.233115777e-05 | R12: 341.3925098 | S12: 2.210800162e-05 | T12: 168.6568932 | U12: 0.0006493677939 | V12: 170.063694 | W12: 0.0006248767737 | Y12: 167.544627 | Z12: 29.1625 | AA12: 29.1625 | AB12: 167.544627
C13: 14.70856733 | D13: 0.3376173664 | E13: 2038.958333 | F13: 34.687498 | G13: 177.655393 | I13: 2038.958333 | J13: 34.687498 | K13: 177.655393 | L13: 14.70856733 | M13: 0.3376173664 | N13: 35.05394862 | O13: 0.1451383487 | P13: 350.5276587 | Q13: 1.942187925e-05 | R13: 351.9688578 | S13: 1.903464815e-05 | T13: 178.1915369 | U13: 0.0005030164878 | V13: 181.0101135 | W13: 0.0004674933998 | Y13: 177.655373 | Z13: 34.6875 | AA13: 34.6875 | AB13: 177.655373
C14: 13.8125 | D14: 0.3463303653 | E14: 2038.958333 | F14: 34.687498 | G14: 172.60002 | I14: 2038.958333 | J14: 34.687498 | K14: 172.60002 | L14: 13.8125 | M14: 0.3463303653 | N14: 34.687498 | O14: 0.1477968396 | P14: 345.4762695 | Q14: 2.085561888e-05 | R14: 346.9384529 | S14: 2.042795857e-05 | T14: 173.151818 | U14: 0.0005748478443 | V14: 176.0510989 | W14: 0.0005321430837 | Y14: 172.6 | Z14: 34.6875 | AA14: 34.6875 | AB14: 172.6
C15: 14.70856733 | D15: 0.3376173664 | E15: 2038.958333 | F15: 34.687498 | G15: 167.544647 | I15: 2038.958333 | J15: 34.687498 | K15: 167.544647 | L15: 14.70856733 | M15: 0.3376173664 | N15: 35.05394862 | O15: 0.1451383487 | P15: 340.4249985 | Q15: 2.241777e-05 | R15: 341.9087846 | S15: 2.194480114e-05 | T15: 168.113039 | U15: 0.0006591392066 | V15: 171.0977242 | W15: 0.0006075710489 | Y15: 167.544627 | Z15: 34.6875 | AA15: 34.6875 | AB15: 167.544627
C16: 9.7077007 | D16: 0.3822452449 | E16: 2038.958333 | F16: 40.212498 | G16: 177.655393 | I16: 2038.958333 | J16: 40.212498 | K16: 177.655393 | L16: 9.7077007 | M16: 0.3822452449 | N16: 40.52902407 | O16: 0.1100310298 | P16: 350.3534459 | Q16: 1.946932363e-05 | R16: 352.5562357 | S16: 1.887948087e-05 | T16: 177.848591 | U16: 0.0005075536187 | V16: 182.1496189 | W16: 0.0004539817769 | Y16: 177.655373 | Z16: 40.2125 | AA16: 40.2125 | AB16: 177.655373
C17: 8.2875 | D17: 0.39262171 | E17: 2038.958333 | F17: 40.212498 | G17: 172.60002 | I17: 2038.958333 | J17: 40.212498 | K17: 172.60002 | L17: 8.2875 | M17: 0.39262171 | N17: 40.212498 | O17: 0.1118327191 | P17: 345.2995081 | Q17: 2.090804054e-05 | R17: 347.534333 | S17: 2.025668861e-05 | T17: 172.7988703 | U17: 0.0005803191428 | V17: 177.2224926 | W17: 0.0005159625872 | Y17: 172.6 | Z17: 40.2125 | AA17: 40.2125 | AB17: 172.6
C18: 9.7077007 | D18: 0.3822452449 | E18: 2038.958333 | F18: 40.212498 | G18: 167.544647 | I18: 2038.958333 | J18: 40.212498 | K18: 167.544647 | L18: 9.7077007 | M18: 0.3822452449 | N18: 40.52902407 | O18: 0.1100310298 | P18: 340.2456129 | Q18: 2.247577297e-05 | R18: 342.513415 | S18: 2.175549865e-05 | T18: 167.74949 | U18: 0.0006657681885 | V18: 172.3027966 | W18: 0.0005881137876 | Y18: 167.544627 | Z18: 40.2125 | AA18: 40.2125 | AB18: 167.544627
C19: 5.760920315 | D19: 0.4076986146 | E19: 2038.958333 | F19: 45.737498 | G19: 177.655393 | I19: 2038.958333 | J19: 45.737498 | K19: 177.655393 | L19: 5.760920315 | M19: 0.4076986146 | N19: 46.01603547 | O19: 0.08282384483 | P19: 350.2663069 | Q19: 1.949310668e-05 | R19: 353.229066 | S19: 1.87035951e-05 | T19: 177.6768699 | U19: 0.0005098436888 | V19: 183.4485143 | W19: 0.0004391410464 | Y19: 177.655373 | Z19: 45.7375 | AA19: 45.7375 | AB19: 177.655373
C20: 2.7625 | D20: 0.419060748 | E20: 2038.958333 | F20: 45.737498 | G20: 172.60002 | I20: 2038.958333 | J20: 45.737498 | K20: 172.60002 | L20: 2.7625 | M20: 0.419060748 | N20: 45.737498 | O20: 0.08403289279 | P20: 345.2110934 | Q20: 2.093432057e-05 | R20: 348.2168668 | S20: 2.006261816e-05 | T20: 172.6221258 | U20: 0.0005830821575 | V20: 178.5572335 | W20: 0.0004982312383 | Y20: 172.6 | Z20: 45.7375 | AA20: 45.7375 | AB20: 172.6
C21: 5.760920315 | D21: 0.4076986146 | E21: 2038.958333 | F21: 45.737498 | G21: 167.544647 | I21: 2038.958333 | J21: 45.737498 | K21: 167.544647 | L21: 5.760920315 | M21: 0.4076986146 | N21: 46.01603547 | O21: 0.08282384483 | P21: 340.1558847 | Q21: 2.250485326e-05 | R21: 343.2059341 | S21: 2.15410735e-05 | T21: 167.5674197 | U21: 0.0006691177154 | V21: 173.6753507 | W21: 0.0005668443014 | Y21: 167.544627 | Z21: 45.7375 | AA21: 45.7375 | AB21: 167.544627
C22: 5.760920315 | D22: 0.4076986146 | E22: 2038.958333 | F22: 51.262498 | G22: 177.655393 | I22: 2038.958333 | J22: 51.262498 | K22: 177.655393 | L22: 5.760920315 | M22: 0.4076986146 | N22: 51.51116867 | O22: 0.0622212074 | P22: 350.2663069 | Q22: 1.949310668e-05 | R22: 353.9868614 | S22: 1.850784009e-05 | T22: 177.6768699 | U22: 0.0005098436888 | V22: 184.9034407 | W22: 0.000423195587 | Y22: 177.655373 | Z22: 51.2625 | AA22: 51.2625 | AB22: 177.655373
C23: 2.7625 | D23: 0.419060748 | E23: 2038.958333 | F23: 51.262498 | G23: 172.60002 | I23: 2038.958333 | J23: 51.262498 | K23: 172.60002 | L23: 2.7625 | M23: 0.419060748 | N23: 51.262498 | O23: 0.0630304181 | P23: 345.2110934 | Q23: 2.093432057e-05 | R23: 348.985546 | S23: 1.984670968e-05 | T23: 172.6221258 | U23: 0.0005830821575 | V23: 180.0516887 | W23: 0.0004792283748 | Y23: 172.6 | Z23: 51.2625 | AA23: 51.2625 | AB23: 172.6
C24: 5.760920315 | D24: 0.4076986146 | E24: 2038.958333 | F24: 51.262498 | G24: 167.544647 | I24: 2038.958333 | J24: 51.262498 | K24: 167.544647 | L24: 5.760920315 | M24: 0.4076986146 | N24: 51.51116867 | O24: 0.0622212074 | P24: 340.1558847 | Q24: 2.250485326e-05 | R24: 343.985811 | S24: 2.130261833e-05 | T24: 167.5674197 | U24: 0.0006691177154 | V24: 175.2114506 | W24: 0.0005441118399 | Y24: 167.544627 | Z24: 51.2625 | AA24: 51.2625 | AB24: 167.544627
C25: 9.7077007 | D25: 0.3822452449 | E25: 2038.958333 | F25: 56.787498 | G25: 177.655393 | I25: 2038.958333 | J25: 56.787498 | K25: 177.655393 | L25: 9.7077007 | M25: 0.3822452449 | N25: 57.01207526 | O25: 0.04682579056 | P25: 350.3534459 | Q25: 1.946932363e-05 | R25: 354.8290776 | S25: 1.829314573e-05 | T25: 177.848591 | U25: 0.0005075536187 | V25: 186.5107466 | W25: 0.0004063720183 | Y25: 177.655373 | Z25: 56.7875 | AA25: 56.7875 | AB25: 177.655373
C26: 8.2875 | D26: 0.39262171 | E26: 2038.958333 | F26: 56.787498 | G26: 172.60002 | I26: 2038.958333 | J26: 56.787498 | K26: 172.60002 | L26: 8.2875 | M26: 0.39262171 | N26: 56.787498 | O26: 0.04736879488 | P26: 345.2995081 | Q26: 2.090804054e-05 | R26: 349.8398027 | S26: 1.961001615e-05 | T26: 172.7988703 | U26: 0.0005803191428 | V26: 181.7019175 | W26: 0.0004592344006 | Y26: 172.6 | Z26: 56.7875 | AA26: 56.7875 | AB26: 172.6
C27: 9.7077007 | D27: 0.3822452449 | E27: 2038.958333 | F27: 56.787498 | G27: 167.544647 | I27: 2038.958333 | J27: 56.787498 | K27: 167.544647 | L27: 9.7077007 | M27: 0.3822452449 | N27: 57.01207526 | O27: 0.04682579056 | P27: 340.2456129 | Q27: 2.247577297e-05 | R27: 344.8524531 | S27: 2.104132744e-05 | T27: 167.74949 | U27: 0.0006657681885 | V27: 176.9068361 | W27: 0.0005202646642 | Y27: 167.544627 | Z27: 56.7875 | AA27: 56.7875 | AB27: 167.544627
C28: 14.70856733 | D28: 0.3376173664 | E28: 2038.958333 | F28: 62.312498 | G28: 177.655393 | I28: 2038.958333 | J28: 62.312498 | K28: 177.655393 | L28: 14.70856733 | M28: 0.3376173664 | N28: 62.51723125 | O28: 0.03539355508 | P28: 350.5276587 | Q28: 1.942187925e-05 | R28: 355.7551149 | S28: 1.806051339e-05 | T28: 178.1915369 | U28: 0.0005030164878 | V28: 188.2665294 | W28: 0.000388893205 | Y28: 177.655373 | Z28: 62.3125 | AA28: 62.3125 | AB28: 177.655373
C29: 13.8125 | D29: 0.3463303653 | E29: 2038.958333 | F29: 62.312498 | G29: 172.60002 | I29: 2038.958333 | J29: 62.312498 | K29: 172.60002 | L29: 13.8125 | M29: 0.3463303653 | N29: 62.312498 | O29: 0.03576019989 | P29: 345.4762695 | Q29: 2.085561888e-05 | R29: 350.7790117 | S29: 1.935367036e-05 | T29: 173.151818 | U29: 0.0005748478443 | V29: 183.5037174 | W29: 0.0004385231702 | Y29: 172.6 | Z29: 62.3125 | AA29: 62.3125 | AB29: 172.6
C30: 14.70856733 | D30: 0.3376173664 | E30: 2038.958333 | F30: 62.312498 | G30: 167.544647 | I30: 2038.958333 | J30: 62.312498 | K30: 167.544647 | L30: 14.70856733 | M30: 0.3376173664 | N30: 62.51723125 | O30: 0.03539355508 | P30: 340.4249985 | Q30: 2.241777e-05 | R30: 345.805208 | S30: 2.075848434e-05 | T30: 168.113039 | U30: 0.0006591392066 | V30: 178.7569751 | W30: 0.0004956403534 | Y30: 167.544627 | Z30: 62.3125 | AA30: 62.3125 | AB30: 167.544627
C31: 19.9873886 | D31: 0.2833082624 | E31: 2038.958333 | F31: 67.837498 | G31: 177.655393 | I31: 2038.958333 | J31: 67.837498 | K31: 177.655393 | L31: 19.9873886 | M31: 0.2833082624 | N31: 68.02560497 | O31: 0.02691584719 | P31: 350.7888158 | Q31: 1.935101566e-05 | R31: 356.7643207 | S31: 1.781100624e-05 | T31: 178.7047218 | U31: 0.0004963165944 | V31: 190.1666764 | W31: 0.0003709730485 | Y31: 177.655373 | Z31: 67.8375 | AA31: 67.8375 | AB31: 177.655373
C32: 19.3375 | D32: 0.2901160709 | E32: 2038.958333 | F32: 67.837498 | G32: 172.60002 | I32: 2038.958333 | J32: 67.837498 | K32: 172.60002 | L32: 19.3375 | M32: 0.2901160709 | N32: 67.837498 | O32: 0.02716555782 | P32: 345.7412421 | Q32: 2.07773308e-05 | R32: 351.8024925 | S32: 1.907887371e-05 | T32: 173.6798947 | U32: 0.0005667754155 | V32: 185.4526706 | W32: 0.0004173554861 | Y32: 172.6 | Z32: 67.8375 | AA32: 67.8375 | AB32: 172.6
C33: 19.9873886 | D33: 0.2833082624 | E33: 2038.958333 | F33: 67.837498 | G33: 167.544647 | I33: 2038.958333 | J33: 67.837498 | K33: 167.544647 | L33: 19.9873886 | M33: 0.2833082624 | N33: 68.02560497 | O33: 0.02691584719 | P33: 340.6938998 | Q33: 2.233115777e-05 | R33: 346.8433661 | S33: 2.045544877e-05 | T33: 168.6568932 | U33: 0.0006493677939 | V33: 180.7571157 | W33: 0.0004705576851 | Y33: 167.544627 | Z33: 67.8375 | AA33: 67.8375 | AB33: 167.544627
C34: 77.82686363 | D34: 0.01684322315 | E34: 2038.958333 | F34: -29.162498 | G34: 177.655393 | I34: 2038.958333 | J34: -29.162498 | K34: 177.655393 | L34: 77.82685964 | M34: 0.01684322628 | N34: 29.59743378 | O34: 0.1888003907 | P34: 358.7622021 | Q34: 1.732912168e-05 | R34: 351.4673607 | S34: 1.916833695e-05 | T34: 193.8888908 | U34: 0.0003386300662 | V34: 180.0330247 | W34: 0.0004794603427 | Y34: 177.655373 | Z34: -29.1625 | AA34: -29.1625 | AB34: 177.655373
C35: 77.6625 | D35: 0.01697262482 | E35: 2038.958333 | F35: -29.162498 | G35: 172.60002 | I35: 2038.958333 | J35: -29.162498 | K35: 172.60002 | L35: 77.662496 | M35: 0.01697262798 | N35: 29.162498 | O35: 0.1926477254 | P35: 353.8283919 | Q35: 1.854857275e-05 | R35: 346.4296738 | S35: 2.057556603e-05 | T35: 189.2676153 | U35: 0.0003793270254 | V35: 175.0463316 | W35: 0.0005465029102 | Y35: 172.6 | Z35: -29.1625 | AA35: -29.1625 | AB35: 172.6
C36: 77.82686363 | D36: 0.01684322315 | E36: 2038.958333 | F36: -29.162498 | G36: 167.544647 | I36: 2038.958333 | J36: -29.162498 | K36: 167.544647 | L36: 77.82685964 | M36: 0.01684322628 | N36: 29.59743378 | O36: 0.1888003907 | P36: 348.8980621 | Q36: 1.987114172e-05 | R36: 341.3925098 | S36: 2.210800162e-05 | T36: 184.6690879 | U36: 0.0004257170033 | V36: 170.063694 | W36: 0.0006248767737 | Y36: 167.544627 | Z36: -29.1625 | AA36: -29.1625 | AB36: 167.544627
C37: 83.34096803 | D37: 0.01308435568 | E37: 2038.958333 | F37: -34.687498 | G37: 177.655393 | I37: 2038.958333 | J37: -34.687498 | K37: 177.655393 | L37: 83.34096404 | M37: 0.01308435803 | N37: 35.05394862 | O37: 0.1451383487 | P37: 359.9986304 | Q37: 1.703870768e-05 | R37: 351.9688578 | S37: 1.903464815e-05 | T37: 196.1672709 | U37: 0.0003204840049 | V37: 181.0101135 | W37: 0.0004674933998 | Y37: 177.655373 | Z37: -34.6875 | AA37: -34.6875 | AB37: 177.655373
C38: 83.1875 | D38: 0.01317517408 | E38: 2038.958333 | F38: -34.687498 | G38: 172.60002 | I38: 2038.958333 | J38: -34.687498 | K38: 172.60002 | L38: 83.187496 | M38: 0.01317517646 | N38: 34.687498 | O38: 0.1477968396 | P38: 355.0820005 | Q38: 1.822925423e-05 | R38: 346.9384529 | S38: 2.042795857e-05 | T38: 191.6009561 | U38: 0.0003580935262 | V38: 176.0510989 | W38: 0.0005321430837 | Y38: 172.6 | Z38: -34.6875 | AA38: -34.6875 | AB38: 172.6
C39: 83.34096803 | D39: 0.01308435568 | E39: 2038.958333 | F39: -34.687498 | G39: 167.544647 | I39: 2038.958333 | J39: -34.687498 | K39: 167.544647 | L39: 83.34096404 | M39: 0.01308435803 | N39: 35.05394862 | O39: 0.1451383487 | P39: 350.1693218 | Q39: 1.951961795e-05 | R39: 341.9087846 | S39: 2.194480114e-05 | T39: 187.0597985 | U39: 0.0004008078338 | V39: 171.0977242 | W39: 0.0006075710489 | Y39: 167.544627 | Z39: -34.6875 | AA39: -34.6875 | AB39: 167.544627
C40: 88.85642606 | D40: 0.01024778553 | E40: 2038.958333 | F40: -40.212498 | G40: 177.655393 | I40: 2038.958333 | J40: -40.212498 | K40: 177.655393 | L40: 88.85642207 | M40: 0.01024778731 | N40: 40.52902407 | O40: 0.1100310298 | P40: 361.3153212 | Q40: 1.673581959e-05 | R40: 352.5562357 | S40: 1.887948087e-05 | T40: 198.5732752 | U40: 0.000302561325 | V40: 182.1496189 | W40: 0.0004539817769 | Y40: 177.655373 | Z40: -40.2125 | AA40: -40.2125 | AB40: 177.655373
C41: 88.7125 | D41: 0.01031226277 | E41: 2038.958333 | F41: -40.212498 | G41: 172.60002 | I41: 2038.958333 | J41: -40.212498 | K41: 172.60002 | L41: 88.712496 | M41: 0.01031226457 | N41: 40.212498 | O41: 0.1118327191 | P41: 356.416855 | Q41: 1.789644232e-05 | R41: 347.534333 | S41: 2.025668861e-05 | T41: 194.063582 | U41: 0.0003371962738 | V41: 177.2224926 | W41: 0.0005159625872 | Y41: 172.6 | Z41: -40.2125 | AA41: -40.2125 | AB41: 172.6
C42: 88.85642606 | D42: 0.01024778553 | E42: 2038.958333 | F42: -40.212498 | G42: 167.544647 | I42: 2038.958333 | J42: -40.212498 | K42: 167.544647 | L42: 88.85642207 | M42: 0.01024778731 | N42: 40.52902407 | O42: 0.1100310298 | P42: 351.522832 | Q42: 1.915349433e-05 | R42: 342.513415 | S42: 2.175549865e-05 | T42: 189.5814223 | U42: 0.0003763860359 | V42: 172.3027966 | W42: 0.0005881137876 | Y42: 167.544627 | Z42: -40.2125 | AA42: -40.2125 | AB42: 167.544627
C43: 94.37300039 | D43: 0.008091591061 | E43: 2038.958333 | F43: -45.737498 | G43: 177.655393 | I43: 2038.958333 | J43: -45.737498 | K43: 177.655393 | L43: 94.3729964 | M43: 0.008091592421 | N43: 46.01603547 | O43: 0.08282384483 | P43: 362.7114005 | Q43: 1.642167765e-05 | R43: 353.229066 | S43: 1.87035951e-05 | T43: 201.102323 | U43: 0.0002849909572 | V43: 183.4485143 | W43: 0.0004391410464 | Y43: 177.655373 | Z43: -45.7375 | AA43: -45.7375 | AB43: 177.655373
C44: 94.2375 | D44: 0.008137893052 | E44: 2038.958333 | F44: -45.737498 | G44: 172.60002 | I44: 2038.958333 | J44: -45.737498 | K44: 172.60002 | L44: 94.237496 | M44: 0.008137894424 | N44: 45.737498 | O44: 0.08403289279 | P44: 357.8320462 | Q44: 1.755150686e-05 | R44: 348.2168668 | S44: 2.006261816e-05 | T44: 196.6506358 | U44: 0.0003167842072 | V44: 178.5572335 | W44: 0.0004982312383 | Y44: 172.6 | Z44: -45.7375 | AA44: -45.7375 | AB44: 172.6
C45: 94.37300039 | D45: 0.008091591061 | E45: 2038.958333 | F45: -45.737498 | G45: 167.544647 | I45: 2038.958333 | J45: -45.737498 | K45: 167.544647 | L45: 94.3729964 | M45: 0.008091592421 | N45: 46.01603547 | O45: 0.08282384483 | P45: 352.9576463 | Q45: 1.877431052e-05 | R45: 343.2059341 | S45: 2.15410735e-05 | T45: 192.2288074 | U45: 0.0003526230562 | V45: 173.6753507 | W45: 0.0005668443014 | Y45: 167.544627 | Z45: -45.7375 | AA45: -45.7375 | AB45: 167.544627
C46: 99.89050607 | D46: 0.006440071805 | E46: 2038.958333 | F46: -51.262498 | G46: 177.655393 | I46: 2038.958333 | J46: -51.262498 | K46: 177.655393 | L46: 99.89050207 | M46: 0.006440072851 | N46: 51.51116867 | O46: 0.0622212074 | P46: 364.1859552 | Q46: 1.60975068e-05 | R46: 353.9868614 | S46: 1.850784009e-05 | T46: 203.7498326 | U46: 0.0002678811863 | V46: 184.9034407 | W46: 0.000423195587 | Y46: 177.655373 | Z46: -51.2625 | AA46: -51.2625 | AB46: 177.655373
C47: 99.7625 | D47: 0.006473695664 | E47: 2038.958333 | F47: -51.262498 | G47: 172.60002 | I47: 2038.958333 | J47: -51.262498 | K47: 172.60002 | L47: 99.762496 | M47: 0.006473696718 | N47: 51.262498 | O47: 0.0630304181 | P47: 359.3266247 | Q47: 1.719582058e-05 | R47: 348.985546 | S47: 1.984670968e-05 | T47: 199.3572735 | U47: 0.0002969802608 | V47: 180.0516887 | W47: 0.0004792283748 | Y47: 172.6 | Z47: -51.2625 | AA47: -51.2625 | AB47: 172.6
C48: 99.89050607 | D48: 0.006440071805 | E48: 2038.958333 | F48: -51.262498 | G48: 167.544647 | I48: 2038.958333 | J48: -51.262498 | K48: 167.544647 | L48: 99.89050207 | M48: 0.006440072851 | N48: 51.51116867 | O48: 0.0622212074 | P48: 354.4727776 | Q48: 1.838360671e-05 | R48: 343.985811 | S48: 2.130261833e-05 | T48: 194.9968316 | U48: 0.0003296575929 | V48: 175.2114506 | W48: 0.0005441118399 | Y48: 167.544627 | Z48: -51.2625 | AA48: -51.2625 | AB48: 167.544627
C49: 105.4087968 | D49: 0.005165300438 | E49: 2038.958333 | F49: -56.787498 | G49: 177.655393 | I49: 2038.958333 | J49: -56.787498 | K49: 177.655393 | L49: 105.4087929 | M49: 0.005165301249 | N49: 57.01207526 | O49: 0.04682579056 | P49: 365.7380363 | Q49: 1.576452767e-05 | R49: 354.8290776 | S49: 1.829314573e-05 | T49: 206.5112479 | U49: 0.0002513203058 | V49: 186.5107466 | W49: 0.0004063720183 | Y49: 177.655373 | Z49: -56.7875 | AA49: -56.7875 | AB49: 177.655373
C50: 105.2875 | D50: 0.005189983583 | E50: 2038.958333 | F50: -56.787498 | G50: 172.60002 | I50: 2038.958333 | J50: -56.787498 | K50: 172.60002 | L50: 105.287496 | M50: 0.005189984399 | N50: 56.787498 | O50: 0.04736879488 | P50: 360.8996044 | Q50: 1.683074893e-05 | R50: 349.8398027 | S50: 1.961001615e-05 | T50: 202.1786925 | U50: 0.0002778825203 | V50: 181.7019175 | W50: 0.0004592344006 | Y50: 172.6 | Z50: -56.7875 | AA50: -56.7875 | AB50: 172.6
C51: 105.4087968 | D51: 0.005165300438 | E51: 2038.958333 | F51: -56.787498 | G51: 167.544647 | I51: 2038.958333 | J51: -56.787498 | K51: 167.544647 | L51: 105.4087929 | M51: 0.005165301249 | N51: 57.01207526 | O51: 0.04682579056 | P51: 356.0672005 | Q51: 1.798291203e-05 | R51: 344.8524531 | S51: 2.104132744e-05 | T51: 197.8804324 | U51: 0.0003075974823 | V51: 176.9068361 | W51: 0.0005202646642 | Y51: 167.544627 | Z51: -56.7875 | AA51: -56.7875 | AB51: 167.544627
C52: 110.9277556 | D52: 0.004173733189 | E52: 2038.958333 | F52: -62.312498 | G52: 177.655393 | I52: 2038.958333 | J52: -62.312498 | K52: 177.655393 | L52: 110.9277516 | M52: 0.004173733822 | N52: 62.51723125 | O52: 0.03539355508 | P52: 367.366661 | Q52: 1.542394819e-05 | R52: 355.7551149 | S52: 1.806051339e-05 | T52: 209.3820621 | U52: 0.0002353777468 | V52: 188.2665294 | W52: 0.000388893205 | Y52: 177.655373 | Z52: -62.3125 | AA52: -62.3125 | AB52: 177.655373
C53: 110.8125 | D53: 0.004192042947 | E53: 2038.958333 | F53: -62.312498 | G53: 172.60002 | I53: 2038.958333 | J53: -62.312498 | K53: 172.60002 | L53: 110.812496 | M53: 0.004192043585 | N53: 62.312498 | O53: 0.03576019989 | P53: 362.5499647 | Q53: 1.645764054e-05 | R53: 350.7790117 | S53: 1.935367036e-05 | T53: 205.1101562 | U53: 0.0002595659323 | V53: 183.5037174 | W53: 0.0004385231702 | Y53: 172.6 | Z53: -62.3125 | AA53: -62.3125 | AB53: 172.6
C54: 110.9277556 | D54: 0.004173733189 | E54: 2038.958333 | F54: -62.312498 | G54: 167.544647 | I54: 2038.958333 | J54: -62.312498 | K54: 167.544647 | L54: 110.9277516 | M54: 0.004173733822 | N54: 62.51723125 | O54: 0.03539355508 | P54: 357.7398548 | Q54: 1.757373377e-05 | R54: 345.805208 | S54: 2.075848434e-05 | T54: 200.8746325 | U54: 0.0002865222199 | V54: 178.7569751 | W54: 0.0004956403534 | Y54: 167.544627 | Z54: -62.3125 | AA54: -62.3125 | AB54: 167.544627
C55: 116.4472872 | D55: 0.003396594496 | E55: 2038.958333 | F55: -67.837498 | G55: 177.655393 | I55: 2038.958333 | J55: -67.837498 | K55: 177.655393 | L55: 116.4472832 | M55: 0.003396594994 | N55: 68.02560497 | O55: 0.02691584719 | P55: 369.0708162 | Q55: 1.507695579e-05 | R55: 356.7643207 | S55: 1.781100624e-05 | T55: 212.3578387 | U55: 0.0002201055499 | V55: 190.1666764 | W55: 0.0003709730485 | Y55: 177.655373 | Z55: -67.8375 | AA55: -67.8375 | AB55: 177.655373
C56: 116.3375 | D56: 0.003410312908 | E56: 2038.958333 | F56: -67.837498 | G56: 172.60002 | I56: 2038.958333 | J56: -67.837498 | K56: 172.60002 | L56: 116.337496 | M56: 0.003410313409 | N56: 67.837498 | O56: 0.02716555782 | P56: 364.2766539 | Q56: 1.607781846e-05 | R56: 351.8024925 | S56: 1.907887371e-05 | T56: 208.1470151 | U56: 0.0002420843931 | V56: 185.4526706 | W56: 0.0004173554861 | Y56: 172.6 | Z56: -67.8375 | AA56: -67.8375 | AB56: 172.6
C57: 116.4472872 | D57: 0.003396594496 | E57: 2038.958333 | F57: -67.837498 | G57: 167.544647 | I57: 2038.958333 | J57: -67.837498 | K57: 167.544647 | L57: 116.4472832 | M57: 0.003396594994 | N57: 68.02560497 | O57: 0.02691584719 | P57: 359.4896486 | Q57: 1.715754741e-05 | R57: 346.8433661 | S57: 2.045544877e-05 | T57: 203.9745614 | U57: 0.0002664858851 | V57: 180.7571157 | W57: 0.0004705576851 | Y57: 167.544627 | Z57: -67.8375 | AA57: -67.8375 | AB57: 167.544627
C58: 350.2173217 | D58: 1.729813434e-05 | E58: 1808.125 | F58: 29.162498 | G58: -177.0830672 | I58: 1808.125 | J58: 29.162498 | K58: -177.0830672 | L58: 350.2173616 | M58: 1.729812466e-05 | N58: 350.8970116 | O58: 1.713430575e-05 | P58: 19.85035562 | Q58: 0.2525073071 | R58: 29.50506739 | S58: 0.1681467439 | T58: 178.1357673 | U58: 0.0004467206686 | V58: 179.4682812 | W58: 0.0004314605078 | Y58: -168.1169528 | Z58: 29.1625 | AA58: 29.1625 | AB58: -168.1169528
C59: 345.7412022 | D59: 1.842511047e-05 | E59: 1808.125 | F59: 29.162498 | G59: -172.60002 | I59: 1808.125 | J59: 29.162498 | K59: -172.60002 | L59: 345.7412421 | M59: 1.842510003e-05 | N59: 346.4296738 | O59: 1.824617733e-05 | P59: 19.3375 | Q59: 0.2572716235 | R59: 29.162498 | S59: 0.1708378062 | T59: 173.6798947 | U59: 0.0005026099756 | V59: 175.0463316 | W59: 0.000484632549 | Y59: -172.6 | Z59: 29.1625 | AA59: 29.1625 | AB59: -172.6
C60: 341.2652646 | D60: 1.964099115e-05 | E60: 1808.125 | F60: 29.162498 | G60: -168.1169728 | I60: 1808.125 | J60: 29.162498 | K60: -168.1169728 | L60: 341.2653046 | M60: 1.964097988e-05 | N60: 341.9627472 | O60: 1.944534626e-05 | P60: 19.85035562 | Q60: 0.2525073071 | R60: 29.50506739 | S60: 0.1681467439 | T60: 169.2254575 | U60: 0.0005669551711 | V60: 170.6275706 | W60: 0.0005457016085 | Y60: -177.0830472 | Z60: 29.1625 | AA60: 29.1625 | AB60: -177.0830472
C61: 349.9557381 | D61: 1.736168387e-05 | E61: 1808.125 | F61: 34.687498 | G61: -177.0830672 | I61: 1808.125 | J61: 34.687498 | K61: -177.0830672 | L61: 349.9557781 | M61: 1.736167414e-05 | N61: 351.3993227 | O61: 1.701442343e-05 | P61: 14.52180664 | Q61: 0.3010226284 | R61: 34.97599505 | S61: 0.1292055969 | T61: 177.6209386 | U61: 0.0004527873672 | V61: 180.4484281 | W61: 0.0004206293715 | Y61: -168.1169528 | Z61: 34.6875 | AA61: 34.6875 | AB61: -168.1169528
C62: 345.4762295 | D62: 1.849453551e-05 | E62: 1808.125 | F62: 34.687498 | G62: -172.60002 | I62: 1808.125 | J62: 34.687498 | K62: -172.60002 | L62: 345.4762695 | M62: 1.849452501e-05 | N62: 346.9384529 | O62: 1.811528072e-05 | P62: 13.8125 | Q62: 0.3071218188 | R62: 34.687498 | S62: 0.131064552 | T62: 173.151818 | U62: 0.0005097685134 | V62: 176.0510989 | W62: 0.0004718984186 | Y62: -172.6 | Z62: 34.6875 | AA62: 34.6875 | AB62: -172.6
C63: 340.9968139 | D63: 1.971691887e-05 | E63: 1808.125 | F63: 34.687498 | G63: -168.1169728 | I63: 1808.125 | J63: 34.687498 | K63: -168.1169728 | L63: 340.9968539 | M63: 1.971690754e-05 | N63: 342.4781624 | O63: 1.930226809e-05 | P63: 14.52180664 | Q63: 0.3010226284 | R63: 34.97599505 | S63: 0.1292055969 | T63: 168.6834364 | U63: 0.0005754329516 | V63: 171.6582042 | W63: 0.0005306792295 | Y63: -177.0830472 | Z63: 34.6875 | AA63: 34.6875 | AB63: -177.0830472
C64: 349.7812404 | D64: 1.740423195e-05 | E64: 1808.125 | F64: 40.212498 | G64: -177.0830672 | I64: 1808.125 | J64: 40.212498 | K64: -177.0830672 | L64: 349.7812804 | M64: 1.740422219e-05 | N64: 351.987651 | O64: 1.68752855e-05 | P64: 9.422333479 | Q64: 0.3409074227 | R64: 40.46162018 | S64: 0.09791250179 | T64: 177.2768889 | U64: 0.0004568960877 | V64: 181.5914582 | W64: 0.0004084028823 | Y64: -168.1169528 | Z64: 40.2125 | AA64: 40.2125 | AB64: -168.1169528
C65: 345.2994681 | D65: 1.854102247e-05 | E65: 1808.125 | F65: 40.212498 | G65: -172.60002 | I65: 1808.125 | J65: 40.212498 | K65: -172.60002 | L65: 345.2995081 | M65: 1.854101194e-05 | N65: 347.534333 | O65: 1.796340048e-05 | P65: 8.2875 | Q65: 0.3481724554 | R65: 40.212498 | S65: 0.09917198007 | T65: 172.7988703 | U65: 0.0005146203986 | V65: 177.2224926 | W65: 0.0004575497389 | Y65: -172.6 | Z65: 40.2125 | AA65: 40.2125 | AB65: -172.6
C66: 340.8177293 | D66: 1.976776582e-05 | E66: 1808.125 | F66: 40.212498 | G66: -168.1169728 | I66: 1808.125 | J66: 40.212498 | K66: -168.1169728 | L66: 340.8177693 | M66: 1.976775445e-05 | N66: 343.0817894 | O66: 1.913630014e-05 | P66: 9.422333479 | Q66: 0.3409074227 | R66: 40.46162018 | S66: 0.09791250179 | T66: 168.3211193 | U66: 0.0005811836998 | V66: 172.8593693 | W66: 0.0005137848614 | Y66: -177.0830472 | Z66: 40.2125 | AA66: 40.2125 | AB66: -177.0830472
C67: 349.6939589 | D67: 1.742556075e-05 | E67: 1808.125 | F67: 45.737498 | G67: -177.0830672 | I67: 1808.125 | J67: 45.737498 | K67: -177.0830672 | L67: 349.6939989 | M67: 1.742555096e-05 | N67: 352.6615661 | O67: 1.671757552e-05 | P67: 5.265844489 | Q67: 0.3636623235 | R67: 45.95667998 | S67: 0.07367444058 | T67: 177.1046134 | U67: 0.0004589700397 | V67: 182.8943176 | W67: 0.0003949770814 | Y67: -168.1169528 | Z67: 45.7375 | AA67: 45.7375 | AB67: -168.1169528
C68: 345.2110534 | D68: 1.856432732e-05 | E68: 1808.125 | F68: 45.737498 | G68: -172.60002 | I68: 1808.125 | J68: 45.737498 | K68: -172.60002 | L68: 345.2110934 | M68: 1.856431677e-05 | N68: 348.2168668 | O68: 1.779130101e-05 | P68: 2.7625 | Q68: 0.3716182928 | R68: 45.737498 | S68: 0.07451941111 | T68: 172.6221258 | U68: 0.0005170706084 | V68: 178.5572335 | W68: 0.0004418257809 | Y68: -172.6 | Z68: 45.7375 | AA68: 45.7375 | AB68: -172.6
C69: 340.7281517 | D69: 1.979325815e-05 | E69: 1808.125 | F69: 45.737498 | G69: -168.1169728 | I69: 1808.125 | J69: 45.737498 | K69: -168.1169728 | L69: 340.7281917 | M69: 1.979324676e-05 | N69: 343.7731635 | O69: 1.894829837e-05 | P69: 5.265844489 | Q69: 0.3636623235 | R69: 45.95667998 | S69: 0.07367444058 | T69: 168.139668 | U69: 0.0005840892768 | V69: 174.2275388 | W69: 0.0004953116249 | Y69: -177.0830472 | Z69: 45.7375 | AA69: 45.7375 | AB69: -177.0830472
C70: 349.6939589 | D70: 1.742556075e-05 | E70: 1808.125 | F70: 51.262498 | G70: -177.0830672 | I70: 1808.125 | J70: 51.262498 | K70: -177.0830672 | L70: 349.6939989 | M70: 1.742555096e-05 | N70: 353.4205783 | O70: 1.654205728e-05 | P70: 5.265844489 | Q70: 0.3636623235 | R70: 51.45815206 | S70: 0.05532925274 | T70: 177.1046134 | U70: 0.0004589700397 | V70: 184.3536178 | W70: 0.0003805558992 | Y70: -168.1169528 | Z70: 51.2625 | AA70: 51.2625 | AB70: -168.1169528
C71: 345.2110534 | D71: 1.856432732e-05 | E71: 1808.125 | F71: 51.262498 | G71: -172.60002 | I71: 1808.125 | J71: 51.262498 | K71: -172.60002 | L71: 345.2110934 | M71: 1.856431677e-05 | N71: 348.985546 | O71: 1.759983584e-05 | P71: 2.7625 | Q71: 0.3716182928 | R71: 51.262498 | S71: 0.05589465605 | T71: 172.6221258 | U71: 0.0005170706084 | V71: 180.0516887 | W71: 0.0004249742582 | Y71: -172.6 | Z71: 51.2625 | AA71: 51.2625 | AB71: -172.6
C72: 340.7281517 | D72: 1.979325815e-05 | E72: 1808.125 | F72: 51.262498 | G72: -168.1169728 | I72: 1808.125 | J72: 51.262498 | K72: -168.1169728 | L72: 340.7281917 | M72: 1.979324676e-05 | N72: 344.5517565 | O72: 1.873921782e-05 | P72: 5.265844489 | Q72: 0.3636623235 | R72: 51.45815206 | S72: 0.05532925274 | T72: 168.139668 | U72: 0.0005840892768 | V72: 175.7588127 | W72: 0.0004755614313 | Y72: -177.0830472 | Z72: 51.2625 | AA72: 51.2625 | AB72: -177.0830472
C73: 349.7812404 | D73: 1.740423195e-05 | E73: 1808.125 | F73: 56.787498 | G73: -177.0830672 | I73: 1808.125 | J73: 56.787498 | K73: -177.0830672 | L73: 349.7812804 | M73: 1.740422219e-05 | N73: 354.2641407 | O73: 1.634956703e-05 | P73: 9.422333479 | Q73: 0.3409074227 | R73: 56.96417858 | S73: 0.0416267833 | T73: 177.2768889 | U73: 0.0004568960877 | V73: 185.9656759 | W73: 0.0003653451645 | Y73: -168.1169528 | Z73: 56.7875 | AA73: 56.7875 | AB73: -168.1169528
C74: 345.2994681 | D74: 1.854102247e-05 | E74: 1808.125 | F74: 56.787498 | G74: -172.60002 | I74: 1808.125 | J74: 56.787498 | K74: -172.60002 | L74: 345.2995081 | M74: 1.854101194e-05 | N74: 349.8398027 | O74: 1.738993872e-05 | P74: 8.2875 | Q74: 0.3481724554 | R74: 56.787498 | S74: 0.04200610716 | T74: 172.7988703 | U74: 0.0005146203986 | V74: 181.7019175 | W74: 0.0004072438298 | Y74: -172.6 | Z74: 56.7875 | AA74: 56.7875 | AB74: -172.6
C75: 340.8177293 | D75: 1.976776582e-05 | E75: 1808.125 | F75: 56.787498 | G75: -168.1169728 | I75: 1808.125 | J75: 56.787498 | K75: -168.1169728 | L75: 340.8177693 | M75: 1.976775445e-05 | N75: 345.4169786 | O75: 1.85101025e-05 | P75: 9.422333479 | Q75: 0.3409074227 | R75: 56.96417858 | S75: 0.0416267833 | T75: 168.3211193 | U75: 0.0005811836998 | V75: 177.4489687 | W75: 0.0004548355722 | Y75: -177.0830472 | Z75: 56.7875 | AA75: 56.7875 | AB75: -177.0830472
C76: 349.9557381 | D76: 1.736168387e-05 | E76: 1808.125 | F76: 62.312498 | G76: -177.0830672 | I76: 1808.125 | J76: 62.312498 | K76: -177.0830672 | L76: 349.9557781 | M76: 1.736167414e-05 | N76: 355.1916509 | O76: 1.614100516e-05 | P76: 14.52180664 | Q76: 0.3010226284 | R76: 62.47355536 | S76: 0.03145565884 | T76: 177.6209386 | U76: 0.0004527873672 | V76: 187.7265567 | W76: 0.0003495471429 | Y76: -168.1169528 | Z76: 62.3125 | AA76: 62.3125 | AB76: -168.1169528
C77: 345.4762295 | D77: 1.849453551e-05 | E77: 1808.125 | F77: 62.312498 | G77: -172.60002 | I77: 1808.125 | J77: 62.312498 | K77: -172.60002 | L77: 345.4762695 | M77: 1.849452501e-05 | N77: 350.7790117 | O77: 1.716261419e-05 | P77: 13.8125 | Q77: 0.3071218188 | R77: 62.312498 | S77: 0.0317117375 | T77: 173.151818 | U77: 0.0005097685134 | V77: 183.5037174 | W77: 0.0003888773469 | Y77: -172.6 | Z77: 62.3125 | AA77: 62.3125 | AB77: -172.6
C78: 340.9968139 | D78: 1.971691887e-05 | E78: 1808.125 | F78: 62.312498 | G78: -168.1169728 | I78: 1808.125 | J78: 62.312498 | K78: -168.1169728 | L78: 340.9968539 | M78: 1.971690754e-05 | N78: 346.3681807 | O78: 1.826207454e-05 | P78: 14.52180664 | Q78: 0.3010226284 | R78: 62.47355536 | S78: 0.03145565884 | T78: 168.6834364 | U78: 0.0005754329516 | V78: 179.2935134 | W78: 0.0004334263559 | Y78: -177.0830472 | Z78: 62.3125 | AA78: 62.3125 | AB78: -177.0830472
C79: 350.2173217 | D79: 1.729813434e-05 | E79: 1808.125 | F79: 67.837498 | G79: -177.0830672 | I79: 1808.125 | J79: 67.837498 | K79: -177.0830672 | L79: 350.2173616 | M79: 1.729812466e-05 | N79: 356.2024531 | O79: 1.591732756e-05 | P79: 19.85035562 | Q79: 0.2525073071 | R79: 67.98546791 | S79: 0.02391572732 | T79: 178.1357673 | U79: 0.0004467206686 | V79: 189.6321144 | W79: 0.0003333558003 | Y79: -168.1169528 | Z79: 67.8375 | AA79: 67.8375 | AB79: -168.1169528
C80: 345.7412022 | D80: 1.842511047e-05 | E80: 1808.125 | F80: 67.837498 | G80: -172.60002 | I80: 1808.125 | J80: 67.837498 | K80: -172.60002 | L80: 345.7412421 | M80: 1.842510003e-05 | N80: 351.8024925 | O80: 1.691892766e-05 | P80: 19.3375 | Q80: 0.2572716235 | R80: 67.837498 | S80: 0.02409010691 | T80: 173.6798947 | U80: 0.0005026099756 | V80: 185.4526706 | W80: 0.000370106086 | Y80: -172.6 | Z80: 67.8375 | AA80: 67.8375 | AB80: -172.6
C81: 341.2652646 | D81: 1.964099115e-05 | E81: 1808.125 | F81: 67.837498 | G81: -168.1169728 | I81: 1808.125 | J81: 67.837498 | K81: -168.1169728 | L81: 341.2653046 | M81: 1.964097988e-05 | N81: 347.4046565 | O81: 1.799632287e-05 | P81: 19.85035562 | Q81: 0.2525073071 | R81: 67.98546791 | S81: 0.02391572732 | T81: 169.2254575 | U81: 0.0005669551711 | V81: 181.2877345 | W81: 0.0004116100859 | Y81: -177.0830472 | Z81: 67.8375 | AA81: 67.8375 | AB81: -177.0830472
C82: 358.2034302 | D82: 1.548537549e-05 | E82: 1808.125 | F82: -29.162498 | G82: -177.0830672 | I82: 1808.125 | J82: -29.162498 | K82: -177.0830672 | L82: 358.2034683 | M82: 1.548536738e-05 | N82: 350.8970116 | O82: 1.713430575e-05 | P82: 77.79177975 | Q82: 0.01496078957 | R82: 29.50506739 | S82: 0.1681467439 | T82: 193.3646192 | U82: 0.0003041478696 | V82: 179.4682812 | W82: 0.0004314605078 | Y82: -168.1169528 | Z82: -29.1625 | AA82: -29.1625 | AB82: -168.1169528
C83: 353.8283537 | D83: 1.644867152e-05 | E83: 1808.125 | F83: -29.162498 | G83: -172.60002 | I83: 1808.125 | J83: -29.162498 | K83: -172.60002 | L83: 353.8283919 | M83: 1.644866281e-05 | N83: 346.4296738 | O83: 1.824617733e-05 | P83: 77.662496 | Q83: 0.01505113296 | R83: 29.162498 | S83: 0.1708378062 | T83: 189.2676153 | U83: 0.0003363828807 | V83: 175.0463316 | W83: 0.000484632549 | Y83: -172.6 | Z83: -29.1625 | AA83: -29.1625 | AB83: -172.6
C84: 349.4560142 | D84: 1.748386579e-05 | E84: 1808.125 | F84: -29.162498 | G84: -168.1169728 | I84: 1808.125 | J84: -29.162498 | K84: -168.1169728 | L84: 349.4560523 | M84: 1.748385643e-05 | N84: 341.9627472 | O84: 1.944534626e-05 | P84: 77.79177975 | Q84: 0.01496078957 | R84: 29.50506739 | S84: 0.1681467439 | T84: 185.1884981 | U84: 0.0003725864293 | V84: 170.6275706 | W84: 0.0005457016085 | Y84: -177.0830472 | Z84: -29.1625 | AA84: -29.1625 | AB84: -177.0830472
C85: 359.4417806 | D85: 1.522507373e-05 | E85: 1808.125 | F85: -34.687498 | G85: -177.0830672 | I85: 1808.125 | J85: -34.687498 | K85: -177.0830672 | L85: 359.4418186 | M85: 1.522506582e-05 | N85: 351.3993227 | O85: 1.701442343e-05 | P85: 83.30820609 | Q85: 0.01162019721 | R85: 34.97599505 | S85: 0.1292055969 | T85: 195.6491047 | U85: 0.0002877694093 | V85: 180.4484281 | W85: 0.0004206293715 | Y85: -168.1169528 | Z85: -34.6875 | AA85: -34.6875 | AB85: -168.1169528
C86: 355.0819626 | D86: 1.616550326e-05 | E86: 1808.125 | F86: -34.687498 | G86: -172.60002 | I86: 1808.125 | J86: -34.687498 | K86: -172.60002 | L86: 355.0820005 | M86: 1.616549478e-05 | N86: 346.9384529 | O86: 1.811528072e-05 | P86: 83.187496 | Q86: 0.01168359625 | R86: 34.687498 | S86: 0.131064552 | T86: 191.6009561 | U86: 0.0003175532557 | V86: 176.0510989 | W86: 0.0004718984186 | Y86: -172.6 | Z86: -34.6875 | AA86: -34.6875 | AB86: -172.6
C87: 350.7252516 | D87: 1.71755299e-05 | E87: 1808.125 | F87: -34.687498 | G87: -168.1169728 | I87: 1808.125 | J87: -34.687498 | K87: -168.1169728 | L87: 350.7252895 | M87: 1.717552079e-05 | N87: 342.4781624 | O87: 1.930226809e-05 | P87: 83.30820609 | Q87: 0.01162019721 | R87: 34.97599505 | S87: 0.1292055969 | T87: 187.5725887 | U87: 0.0003508957001 | V87: 171.6582042 | W87: 0.0005306792295 | Y87: -177.0830472 | Z87: -34.6875 | AA87: -34.6875 | AB87: -177.0830472
C88: 360.7605038 | D88: 1.495361144e-05 | E88: 1808.125 | F88: -40.212498 | G88: -177.0830672 | I88: 1808.125 | J88: -40.212498 | K88: -177.0830672 | L88: 360.7605416 | M88: 1.495360374e-05 | N88: 351.987651 | O88: 1.68752855e-05 | P88: 88.82569819 | Q88: 0.009099792308 | R88: 40.46162018 | S88: 0.09791250179 | T88: 198.0614037 | U88: 0.0002715989461 | V88: 181.5914582 | W88: 0.0004084028823 | Y88: -168.1169528 | Z88: -40.2125 | AA88: -40.2125 | AB88: -168.1169528
C89: 356.4168173 | D89: 1.587036923e-05 | E89: 1808.125 | F89: -40.212498 | G89: -172.60002 | I89: 1808.125 | J89: -40.212498 | K89: -172.60002 | L89: 356.416855 | M89: 1.587036098e-05 | N89: 347.534333 | O89: 1.796340048e-05 | P89: 88.712496 | Q89: 0.009144798629 | R89: 40.212498 | S89: 0.09917198007 | T89: 194.063582 | U89: 0.0002990218106 | V89: 177.2224926 | W89: 0.0004575497389 | Y89: -172.6 | Z89: -40.2125 | AA89: -40.2125 | AB89: -172.6
C90: 352.0766246 | D90: 1.685436218e-05 | E90: 1808.125 | F90: -40.212498 | G90: -168.1169728 | I90: 1808.125 | J90: -40.212498 | K90: -168.1169728 | L90: 352.0766623 | M90: 1.685435332e-05 | N90: 343.0817894 | O90: 1.913630014e-05 | P90: 88.82569819 | Q90: 0.009099792308 | R90: 40.46162018 | S90: 0.09791250179 | T90: 190.0874102 | U90: 0.0003296199787 | V90: 172.8593693 | W90: 0.0005137848614 | Y90: -177.0830472 | Z90: -40.2125 | AA90: -40.2125 | AB90: -177.0830472
C91: 362.158722 | D91: 1.467208491e-05 | E91: 1808.125 | F91: -45.737498 | G91: -177.0830672 | I91: 1808.125 | J91: -45.737498 | K91: -177.0830672 | L91: 362.1587595 | M91: 1.467207743e-05 | N91: 352.6615661 | O91: 1.671757552e-05 | P91: 94.34406905 | Q91: 0.007184275051 | R91: 45.95667998 | S91: 0.07367444058 | T91: 200.5969051 | U91: 0.0002557527135 | V91: 182.8943176 | W91: 0.0003949770814 | Y91: -168.1169528 | Z91: -45.7375 | AA91: -45.7375 | AB91: -168.1169528
C92: 357.8320086 | D92: 1.556448416e-05 | E92: 1808.125 | F92: -45.737498 | G92: -172.60002 | I92: 1808.125 | J92: -45.737498 | K92: -172.60002 | L92: 357.8320462 | M92: 1.556447615e-05 | N92: 348.2168668 | O92: 1.779130101e-05 | P92: 94.237496 | Q92: 0.007216591979 | R92: 45.737498 | S92: 0.07451941111 | T92: 196.6506358 | U92: 0.0002809206227 | V92: 178.5572335 | W92: 0.0004418257809 | Y92: -172.6 | Z92: -45.7375 | AA92: -45.7375 | AB92: -172.6
C93: 353.5091913 | D93: 1.652170994e-05 | E93: 1808.125 | F93: -45.737498 | G93: -168.1169728 | I93: 1808.125 | J93: -45.737498 | K93: -168.1169728 | L93: 353.5092288 | M93: 1.652170134e-05 | N93: 343.7731635 | O93: 1.894829837e-05 | P93: 94.34406905 | Q93: 0.007184275051 | R93: 45.95667998 | S93: 0.07367444058 | T93: 192.7278449 | U93: 0.000308908931 | V93: 174.2275388 | W93: 0.0004953116249 | Y93: -177.0830472 | Z93: -45.7375 | AA93: -45.7375 | AB93: -177.0830472
C94: 363.6355179 | D94: 1.438159444e-05 | E94: 1808.125 | F94: -51.262498 | G94: -177.0830672 | I94: 1808.125 | J94: -51.262498 | K94: -177.0830672 | L94: 363.6355553 | M94: 1.438158718e-05 | N94: 353.4205783 | O94: 1.654205728e-05 | P94: 99.86317299 | Q94: 0.005717334073 | R94: 51.45815206 | S94: 0.05532925274 | T94: 203.2509982 | U94: 0.000240328152 | V94: 184.3536178 | W94: 0.0003805558992 | Y94: -168.1169528 | Z94: -51.2625 | AA94: -51.2625 | AB94: -168.1169528
C95: 359.3265874 | D95: 1.524906539e-05 | E95: 1808.125 | F95: -51.262498 | G95: -172.60002 | I95: 1808.125 | J95: -51.262498 | K95: -172.60002 | L95: 359.3266247 | M95: 1.524905761e-05 | N95: 348.985546 | O95: 1.759983584e-05 | P95: 99.762496 | Q95: 0.00574080043 | R95: 51.262498 | S95: 0.05589465605 | T95: 199.3572735 | U95: 0.0002633587089 | V95: 180.0516887 | W95: 0.0004249742582 | Y95: -172.6 | Z95: -51.2625 | AA95: -51.2625 | AB95: -172.6
C96: 355.0219688 | D96: 1.617892126e-05 | E96: 1808.125 | F96: -51.262498 | G96: -168.1169728 | I96: 1808.125 | J96: -51.262498 | K96: -168.1169728 | L96: 355.0220061 | M96: 1.617891292e-05 | N96: 344.5517565 | O96: 1.873921782e-05 | P96: 99.86317299 | Q96: 0.005717334073 | R96: 51.45815206 | S96: 0.05532925274 | T96: 195.4888032 | U96: 0.0002888839297 | V96: 175.7588127 | W96: 0.0004755614313 | Y96: -177.0830472 | Z96: -51.2625 | AA96: -51.2625 | AB96: -177.0830472
C97: 365.1899384 | D97: 1.408323624e-05 | E97: 1808.125 | F97: -56.787498 | G97: -177.0830672 | I97: 1808.125 | J97: -56.787498 | K97: -177.0830672 | L97: 365.1899756 | M97: 1.40832292e-05 | N97: 354.2641407 | O97: 1.634956703e-05 | P97: 105.3828948 | Q97: 0.004585193553 | R97: 56.96417858 | S97: 0.0416267833 | T97: 206.0190998 | U97: 0.0002254045314 | V97: 185.9656759 | W97: 0.0003653451645 | Y97: -168.1169528 | Z97: -56.7875 | AA97: -56.7875 | AB97: -168.1169528
C98: 360.8995673 | D98: 1.492532377e-05 | E98: 1808.125 | F98: -56.787498 | G98: -172.60002 | I98: 1808.125 | J98: -56.787498 | K98: -172.60002 | L98: 360.8996044 | M98: 1.492531623e-05 | N98: 349.8398027 | O98: 1.738993872e-05 | P98: 105.287496 | Q98: 0.004602418984 | R98: 56.787498 | S98: 0.04200610716 | T98: 202.1786925 | U98: 0.0002464230504 | V98: 181.7019175 | W98: 0.0004072438298 | Y98: -172.6 | Z98: -56.7875 | AA98: -56.7875 | AB98: -172.6
C99: 356.6139364 | D99: 1.582733481e-05 | E99: 1808.125 | F99: -56.787498 | G99: -168.1169728 | I99: 1808.125 | J99: -56.787498 | K99: -168.1169728 | L99: 356.6139734 | M99: 1.582732674e-05 | N99: 345.4169786 | O99: 1.85101025e-05 | P99: 105.3828948 | Q99: 0.004585193553 | R99: 56.96417858 | S99: 0.0416267833 | T99: 198.3652524 | U99: 0.0002696396415 | V99: 177.4489687 | W99: 0.0004548355722 | Y99: -177.0830472 | Z99: -56.7875 | AA99: -56.7875 | AB99: -177.0830472
C100: 366.8209967 | D100: 1.377809488e-05 | E100: 1808.125 | F100: -62.312498 | G100: -177.0830672 | I100: 1808.125 | J100: -62.312498 | K100: -177.0830672 | L100: 366.8210336 | M100: 1.377808806e-05 | N100: 355.1916509 | O100: 1.614100516e-05 | P100: 110.9031423 | Q100: 0.003704679506 | R100: 62.47355536 | S100: 0.03145565884 | T100: 208.8966777 | U100: 0.000211044002 | V100: 187.7265567 | W100: 0.0003495471429 | Y100: -168.1169528 | Z100: -62.3125 | AA100: -62.3125 | AB100: -168.1169528
C101: 362.5499278 | D101: 1.459445526e-05 | E101: 1808.125 | F101: -62.312498 | G101: -172.60002 | I101: 1808.125 | J101: -62.312498 | K101: -172.60002 | L101: 362.5499647 | M101: 1.459444797e-05 | N101: 350.7790117 | O101: 1.716261419e-05 | P101: 110.812496 | Q101: 0.003717456449 | R101: 62.312498 | S101: 0.0317117375 | T101: 205.1101562 | U101: 0.000230180109 | V101: 183.5037174 | W101: 0.0003888773469 | Y101: -172.6 | Z101: -62.3125 | AA101: -62.3125 | AB101: -172.6
C102: 358.2840383 | D102: 1.546827043e-05 | E102: 1808.125 | F102: -62.312498 | G102: -168.1169728 | I102: 1808.125 | J102: -62.312498 | K102: -168.1169728 | L102: 358.2840751 | M102: 1.546826263e-05 | N102: 346.3681807 | O102: 1.826207454e-05 | P102: 110.9031423 | Q102: 0.003704679506 | R102: 62.47355536 | S102: 0.03145565884 | T102: 201.3522432 | U102: 0.000251246169 | V102: 179.2935134 | W102: 0.0004334263559 | Y102: -177.0830472 | Z102: -62.3125 | AA102: -62.3125 | AB102: -177.0830472
C103: 368.5276752 | D103: 1.346723628e-05 | E103: 1808.125 | F103: -67.837498 | G103: -177.0830672 | I103: 1808.125 | J103: -67.837498 | K103: -177.0830672 | L103: 368.5277119 | M103: 1.346722969e-05 | N103: 356.2024531 | O103: 1.591732756e-05 | P103: 116.4238407 | Q103: 0.003014654536 | R103: 67.98546791 | S103: 0.02391572732 | T103: 211.8792714 | U103: 0.0001972929536 | V103: 189.6321144 | W103: 0.0003333558003 | Y103: -168.1169528 | Z103: -67.8375 | AA103: -67.8375 | AB103: -168.1169528
C104: 364.2766173 | D104: 1.425763312e-05 | E104: 1808.125 | F104: -67.837498 | G104: -172.60002 | I104: 1808.125 | J104: -67.837498 | K104: -172.60002 | L104: 364.2766539 | M104: 1.425762608e-05 | N104: 351.8024925 | O104: 1.691892766e-05 | P104: 116.337496 | Q104: 0.003024227044 | R104: 67.837498 | S104: 0.02409010691 | T104: 208.1470151 | U104: 0.0002146776794 | V104: 185.4526706 | W104: 0.000370106086 | Y104: -172.6 | Z104: -67.8375 | AA104: -67.8375 | AB104: -172.6
C105: 360.0311873 | D105: 1.510302046e-05 | E105: 1808.125 | F105: -67.837498 | G105: -168.1169728 | I105: 1808.125 | J105: -67.837498 | K105: -168.1169728 | L105: 360.0312239 | M105: 1.510301293e-05 | N105: 347.4046565 | O105: 1.799632287e-05 | P105: 116.4238407 | Q105: 0.003014654536 | R105: 67.98546791 | S105: 0.02391572732 | T105: 204.4449303 | U105: 0.0002337515481 | V105: 181.2877345 | W105: 0.0004116100859 | Y105: -177.0830472 | Z105: -67.8375 | AA105: -67.8375 | AB105: -177.0830472
Y107: Copy from Y108 to AI145 and paste to G108 if below gets over written by longer code case
I108: I is the 9th column | AA108: I is the 9th column
I109: Hoop | N109: Total Hoop | P109: Total Hoop/SMYS | AA109: Hoop | AF109: Total Hoop | AH109: Total Hoop/SMYS
I110: Soil Load | J110: Live Load | K110: Internal Pressure | N110: High | O110: Low | P110: High | Q110: Low | AA110: Soil Load | AB110: Live Load | AC110: Internal Pressure | AF110: High | AG110: Low | AH110: High | AI110: Low
H111: Zero | I111: 4970.800437 | J111: 19557.53904 | K111: 0 | N111: 24528.33948 | O111: -24528.33948 | P111: 0.4716988361 | Q111: -0.4716988361 | Z111: Zero
H112: MOP | I112: 1223.932461 | J112: 4815.543733 | K112: 56504 | N112: 62543.47619 | O112: 50464.52381 | P112: 1.202759158 | Q112: 0.9704716117 | Z112: MOP
I113: Longitudinal | N113: Total Longitudinal | P113: Total Longitudinal/SMYS | AA113: Longitudinal | AF113: Total Longitudinal | AH113: Total Longitudinal/SMYS
I114: Soil Load | J114: Live Load | K114: Internal Pressure | L114: Thermal Expansion | N114: High | O114: Low | P114: High | Q114: Low | AA114: Soil Load | AB114: Live Load | AC114: Internal Pressure | AD114: Thermal Expansion | AF114: High | AG114: Low | AH114: High | AI114: Low
H115: Zero | I115: 1491.240131 | J115: 9200.70875 | K115: 0 | L115: 3900 | N115: 14591.94888 | O115: -6791.948881 | P115: 0.2806144016 | Q115: -0.1306144016 | Z115: Zero
B116: Beta | C116: 1.348272976 | H116: MOP | I116: 367.1797384 | J116: 4422.837746 | K116: 16951.2 | L116: 3900 | N116: 25641.21748 | O116: 16061.18252 | P116: 0.4931003362 | Q116: 0.3088688945 | Z116: MOP
B117: LocalZero | C117: 4225.723919 | N117: Tresca | P117: Tresca Equivalent/SMYS | AF117: Tresca | AH117: Tresca Equivalent/SMYS
B118: LocalMOP | C118: 1040.476217 | N118: High | O118: Low | P118: High | Q118: Low | AF118: High | AG118: Low | AH118: High | AI118: Low
B119: Inertia | C119: 10621.58038 | M119: Zero | AE119: Zero
B120: Lambda | C120: 0.008337079773 | M120: MOP | AE120: MOP
B121: Wsurf | C121: 42190.67451 | N121: Von Mises | P121: Von Mises Equivalent/SMYS | AF121: Von Mises | AH121: Von Mises Equivalent/SMYS
B122: Lload | C122: 27.60122418 | N122: High | O122: Low | P122: High | Q122: Low | AF122: High | AG122: Low | AH122: High | AI122: Low
B123: Ppipe | C123: 17.62827865 | M123: Zero | N123: 34241.5053 | O123: 21369.32694 | P123: 0.6584904866 | Q123: 0.410948595 | AE123: Zero
B124: LiveBend | C124: 1908.082167 | M124: MOP | N124: 56259.45087 | O124: 43705.47296 | P124: 1.081912517 | Q124: 0.8404898647 | AE124: MOP
G127: MomentMAX | I127: Mmax | J127: Mtest1 | K127: Mmin1 | L127: Mtest2 | M127: Mmin2 | Y127: MomentMAX | AA127: Mmax | AB127: Mtest1 | AC127: Mmin1 | AD127: Mtest2 | AE127: Mmin2
B128: Mtest1 Function | G128: 1447631.973 | I128: 1447631.973 | J128: 1447631.973 | K128: 1447631.973 | L128: 1110272.325 | M128: 1110272.325 | O128: Mtest2 Function | AG128: Mtest2 Function
J129: 1447202.453 | K129: 1447631.973 | L129: 1086682.565 | M129: 1110272.325
J130: 1445913.88 | K130: 1447631.973 | L130: 1063333.074 | M130: 1110272.325
J131: 1443766.211 | K131: 1447631.973 | L131: 1040223.098 | M131: 1110272.325
J132: 1440759.376 | K132: 1447631.973 | L132: 1017351.862 | M132: 1110272.325
J133: 1436893.279 | K133: 1447631.973 | L133: 994718.5702 | M133: 1110272.325
J134: 1432167.793 | K134: 1447631.973 | L134: 972322.4094 | M134: 1110272.325
J135: 1426582.764 | K135: 1447631.973 | L135: 950162.5456 | M135: 1110272.325
J136: 1420138.012 | K136: 1447631.973 | L136: 928238.1264 | M136: 1110272.325
J137: 1412833.329 | K137: 1447631.973 | L137: 906548.2809 | M137: 1110272.325
J138: 1404668.477 | K138: 1447631.973 | L138: 885092.1204 | M138: 1110272.325
J139: 1395643.194 | K139: 1447631.973 | L139: 863868.7387 | M139: 1110272.325
J140: 1385757.189 | K140: 1447631.973 | L140: 842877.2124 | M140: 1110272.325
J141: 1375010.145 | K141: 1447631.973 | L141: 822116.6014 | M141: 1110272.325
J142: 1363401.717 | K142: 1447631.973 | L142: 801585.9494 | M142: 1110272.325
J143: 1350931.534 | K143: 1447631.973 | L143: 781284.2842 | M143: 1110272.325
J144: 1337599.2 | K144: 1447631.973 | L144: 761210.6181 | M144: 1110272.325
B145: Max Value for Mtest1 Function | J145: 1323404.291 | K145: 1447631.973 | L145: 741363.9481 | M145: 1110272.325 | O145: Max Value for Mtest Function | AG145: Max Value for Mtest Function
J146: 1308346.359 | K146: 1447631.973 | L146: 721743.2568 | M146: 1110272.325
J147: 1292424.927 | K147: 1447631.973 | L147: 702347.5124 | M147: 1110272.325
J148: 1275639.497 | K148: 1447631.973 | L148: 683175.6689 | M148: 1110272.325
J149: 1257989.543 | K149: 1447631.973 | L149: 664226.667 | M149: 1110272.325
J150: 1239474.516 | K150: 1447631.973 | L150: 645499.4342 | M150: 1110272.325
J151: 1220093.841 | K151: 1447631.973 | L151: 626992.885 | M151: 1110272.325
J152: 1199846.922 | K152: 1447631.973 | L152: 608705.9215 | M152: 1110272.325
J153: 1178733.136 | K153: 1447631.973 | L153: 590637.4337 | M153: 1110272.325
J154: 1156751.84 | K154: 1447631.973 | L154: 572786.2998 | M154: 1110272.325
J155: 1133902.364 | K155: 1447631.973 | L155: 555151.3867 | M155: 1110272.325
J156: 1110184.021 | K156: 1447631.973 | L156: 537731.5499 | M156: 1110272.325
L157: 520525.6347 | M157: 1110272.325
L158: 503532.4755 | M158: 1110272.325
L159: 486750.8969 | M159: 1110272.325
L160: 470179.7138 | M160: 1110272.325
L161: 453817.7316 | M161: 1110272.325
L162: 437663.7465 | M162: 1110272.325
L163: 421716.5463 | M163: 1110272.325
L164: 405974.9098 | M164: 1110272.325
L165: 390437.6082 | M165: 1110272.325
L166: 375103.4045 | M166: 1110272.325
L167: 359971.0542 | M167: 1110272.325
L168: 345039.3058 | M168: 1110272.325
L169: 330306.9004 | M169: 1110272.325
L170: 315772.5729 | M170: 1110272.325
L171: 301435.0515 | M171: 1110272.325
L172: 287293.0583 | M172: 1110272.325
L173: 273345.3099 | M173: 1110272.325
L174: 259590.517 | M174: 1110272.325
L175: 246027.385 | M175: 1110272.325
L176: 232654.6147 | M176: 1110272.325
L177: 219470.9016 | M177: 1110272.325
L178: 206474.9371 | M178: 1110272.325
L179: 193665.4083 | M179: 1110272.325
L180: 181040.998 | M180: 1110272.325
L181: 168600.3857 | M181: 1110272.325
L182: 156342.2471 | M182: 1110272.325
L183: 144265.2548 | M183: 1110272.325
L184: 132368.0782 | M184: 1110272.325
L185: 120649.3841 | M185: 1110272.325
L186: 109107.8367 | M186: 1110272.325
L187: 97742.09773 | M187: 1110272.325
L188: 86550.82697 | M188: 1110272.325
L189: 75532.68225 | M189: 1110272.325
L190: 64686.31972 | M190: 1110272.325
L191: 54010.39409 | M191: 1110272.325
L192: 43503.5588 | M192: 1110272.325
L193: 33164.46626 | M193: 1110272.325
L194: 22991.76804 | M194: 1110272.325
L195: 12984.11505 | M195: 1110272.325
L196: 3140.157778 | M196: 1110272.325
L197: -6541.453555 | M197: 1110272.325
L198: -16062.06878 | M198: 1110272.325
L199: -25423.03762 | M199: 1110272.325
L200: -34625.70946 | M200: 1110272.325
L201: -43671.43321 | M201: 1110272.325
L202: -52561.55711 | M202: 1110272.325
L203: -61297.42856 | M203: 1110272.325
... 2657 more rows

Sheet TEST3 (hidden)
F1: Psoil | G1: ImpactF | H1: Eprime | I1: Kb | J1: Kz | M1: BsnqIF
F2: 3.333333333 | G2: 1.5 | H2: 879.6869627 | I2: 0.189 | J2: 0.103 | M2: 8.006885465 | AI2: 35 | AJ2: 36 | AK2: 37 | AL2: 38 | AM2: 39 | AN2: 40 | AO2: 41 | AP2: 42 | AQ2: 43 | AR2: 44 | AS2: 45 | AT2: 46
M3: BsnqMAX | N3: Location of MAX | AI3: AI is the 35th column
M4: 5.337923643 | N4: Location 3 | AI4: Hoop | AN4: Total Hoop | AP4: Total Hoop/SMYS | AU4: Beta | AV4: 1.34827
M5: VBA SUM | O5: VBA SUM | Q5: VBA SUM | S5: VBA SUM | U5: VBA SUM | W5: VBA SUM | Y5: VBA SUM | AA5: VBA SUM | AC5: VBA SUM | AE5: VBA SUM | AI5: Soil Load | AJ5: Live Load | AK5: Internal Pressure | AN5: High | AO5: Low | AP5: High | AQ5: Low | AU5: LocalZero | AV5: 2579.871
M6: 5.141697626 | O6: 1.759518512 | Q6: 5.337923643 | S6: 1.961700055 | U6: 5.200362627 | W6: 1.909158642 | Y6: 0.4056651419 | AA6: 0.3810376938 | AC6: 3.146621673 | AE6: 1.720566857 | AH6: Zero | AI6: 4970.800437 | AJ6: 11940.18893 | AK6: 0 | AN6: 16910.98937 | AO6: -16910.98937 | AP6: 0.325211334 | AQ6: -0.325211334 | AU6: LocalMOP | AV6: 635.227
C7: Formula | D7: Formula | M7: Sum | O7: Sum | Q7: Sum | S7: Sum | U7: Sum | W7: Sum | Y7: Sum | AA7: Sum | AC7: Sum | AE7: Sum | AH7: MOP | AI7: 1223.932461 | AJ7: 2939.96611 | AK7: 56504 | AN7: 60667.89857 | AO7: 52340.10143 | AP7: 1.166690357 | AQ7: 1.006540412 | AU7: Inertia | AV7: 10621.58
C8: =SQRT((52.8-F8)^2+(166.8-G8)^2) -> 174.9573662 | D8: =(3*E8)/(2*PI()*(12*4)^2*(1+((L8/(12*4))^2))^2.5) ->  | E8: Array by Tire | I8: Mega-Array | M8: =SUM(M10:M153) -> 5.141697626 | O8: =SUM(O10:O153) -> 1.759518512 | Q8: =SUM(Q10:Q153) -> 5.337923643 | S8: =SUM(S10:S153) -> 1.961700055 | U8: =SUM(U10:U153) -> 5.200362627 | W8: =SUM(W10:W153) -> 1.909158642 | Y8: =SUM(Y10:Y153) -> 0.4056651419 | AA8: =SUM(AA10:AA153) -> 0.3810376938 | AC8: =SUM(AC10:AC153) -> 3.146621673 | AE8: =SUM(AE10:AE153) -> 1.720566857 | AI8: Longitudinal | AN8: Total Longitudinal | AP8: Total Longitudinal/SMYS | AU8: Lambda | AV8: 8.337
C9: DistR | D9: Bousin | E9: load | F9: x | G9: y | I9: Load | J9: x | K9: y | L9: DistRMP1 | M9: Bsnq1 | N9: DistRMP2 | O9: Bsnq2 | P9: DistRMP3 | Q9: Bsnq3 | R9: DistRMP4 | S9: Bsnq4 | T9: DistRMP5 | U9: Bsnq5 | V9: DistRMP6 | W9: Bsnq6 | X9: DistRMP7 | Y9: Bsnq7 | Z9: DistRMP8 | AA9: Bsnq8 | AB9: DistRMP9 | AC9: Bsnq9 | AD9: DistRMP10 | AE9: Bsnq10 | AI9: Soil Load | AJ9: Live Load | AK9: Internal Pressure | AL9: Thermal Expansion | AN9: High | AO9: Low | AP9: High | AQ9: Low | AU9: Wsurf | AV9: 25758.077
C10: 14.74526753 | D10: 0.24918391 | E10: 1506.5 | F10: 38.63333333 | G10: 170.8900452 | I10: 1506.5 | J10: 38.63333333 | K10: 170.8900452 | L10: 14.74526753 | M10: 0.24918391 | N10: 38.84923313 | O10: 0.08859156221 | P10: 171.4762433 | Q10: 0.00044433305 | R10: 175.2025742 | S10: 0.0004021159435 | T10: 248.0948467 | U10: 7.720511264e-05 | V10: 250.6848479 | W10: 7.343447003e-05 | X10: 88.62958006 | Y10: 0.007646896215 | Z10: 95.6401718 | AA10: 0.005669198607 | AB10: 209.7689622 | AC10: 0.0001723920401 | AD10: 212.8258854 | AE10: 0.000160932187 | AH10: Zero | AI10: 1491.240131 | AJ10: 5617.179163 | AK10: 0 | AL10: 3900 | AN10: 11008.41929 | AO10: -3208.419295 | AP10: 0.211700371 | AQ10: -0.06170037105 | AU10: Lload | AV10: 27.601
C11: 14.16666667 | D11: 0.2533654272 | E11: 1506.5 | F11: 38.63333333 | G11: 166.8 | I11: 1506.5 | J11: 38.63333333 | K11: 166.8 | L11: 14.16666667 | M11: 0.2533654272 | N11: 38.63333333 | O11: 0.08957068045 | P11: 167.400521 | Q11: 0.0004966643104 | R11: 171.2155789 | S11: 0.0004474779638 | T11: 244.0115867 | U11: 8.362983899e-05 | V11: 246.6444697 | W11: 7.941743866e-05 | X11: 84.59464785 | Y11: 0.009138547867 | Z11: 91.91351611 | AA11: 0.006635926365 | AB11: 205.6884402 | AC11: 0.0001892393569 | AD11: 208.8051112 | AE11: 0.0001762048965 | AH11: MOP | AI11: 367.1797384 | AJ11: 2700.212854 | AK11: 16951.2 | AL11: 3900 | AN11: 23918.59259 | AO11: 17783.80741 | AP11: 0.4599729345 | AQ11: 0.3419962963 | AU11: Ppipe | AV11: 10.762
C12: 14.74526753 | D12: 0.24918391 | E12: 1506.5 | F12: 38.63333333 | G12: 162.7099548 | I12: 1506.5 | J12: 38.63333333 | K12: 162.7099548 | L12: 14.74526753 | M12: 0.24918391 | N12: 38.84923313 | O12: 0.08859156221 | P12: 163.3255149 | Q12: 0.000556438744 | R12: 167.2335607 | S12: 0.0004989591892 | T12: 239.9285578 | U12: 9.070188153e-05 | V12: 242.6057561 | W12: 8.598802536e-05 | X12: 80.56527395 | Y12: 0.01096664632 | Z12: 88.21906465 | AA12: 0.007785237676 | AB12: 201.6083043 | AC12: 0.0002080791816 | AD12: 204.7870805 | AE12: 0.0001932206469 | AN12: Tresca | AP12: Tresca Equivalent/SMYS | AU12: LiveBend | AV12: 1164.91
C13: 9.432839983 | D13: 0.2839796741 | E13: 1506.5 | F13: 44.3 | G13: 170.8900452 | I13: 1506.5 | J13: 44.3 | K13: 170.8900452 | L13: 9.432839983 | M13: 0.2839796741 | N13: 44.48840827 | O13: 0.06625347591 | P13: 171.1013079 | Q13: 0.000448864949 | R13: 176.5386574 | S13: 0.0003881488256 | T13: 247.8358499 | U13: 7.759472867e-05 | V13: 251.6204453 | W13: 7.212665882e-05 | X13: 87.9019796 | Y13: 0.007894049594 | Z13: 98.06629399 | AA13: 0.005126874601 | AB13: 209.4625815 | AC13: 0.0001735933014 | AD13: 213.9271209 | AE13: 0.0001570275081 | AN13: High | AO13: Low | AP13: High | AQ13: Low
C14: 8.5 | D14: 0.2890040373 | E14: 1506.5 | F14: 44.3 | G14: 166.8 | I14: 1506.5 | J14: 44.3 | K14: 166.8 | L14: 8.5 | M14: 0.2890040373 | N14: 44.3 | O14: 0.06690481965 | P14: 167.0164363 | Q14: 0.0005019623748 | R14: 172.582531 | S14: 0.0004312736376 | T14: 243.7482513 | U14: 8.406563966e-05 | V14: 247.5953352 | W14: 7.79586431e-05 | X14: 83.83203445 | Y14: 0.009456262404 | Z14: 94.43542767 | AA14: 0.005962847962 | AB14: 205.3759723 | AC14: 0.0001906083771 | AD14: 209.9274398 | AE14: 0.0001717745598 | AM14: Zero
C15: 9.432839983 | D15: 0.2839796741 | E15: 1506.5 | F15: 44.3 | G15: 162.7099548 | I15: 1506.5 | J15: 44.3 | K15: 162.7099548 | L15: 9.432839983 | M15: 0.2839796741 | N15: 44.48840827 | O15: 0.06625347591 | P15: 162.9318243 | Q15: 0.0005626526391 | R15: 168.6327945 | S15: 0.0004801075912 | T15: 239.6607361 | U15: 9.119019329e-05 | V15: 243.5723885 | W15: 8.43581878e-05 | X15: 79.7641456 | Y15: 0.01137751893 | Z15: 90.84359594 | AA15: 0.006947495821 | AB15: 201.2895027 | AC15: 0.0002096430451 | AD15: 205.9313087 | AE15: 0.0001881833447 | AM15: MOP
C16: 4.975565085 | D16: 0.3039654004 | E16: 1506.5 | F16: 49.96666667 | G16: 170.8900452 | I16: 1506.5 | J16: 49.96666667 | K16: 170.8900452 | L16: 4.975565085 | M16: 0.3039654004 | N16: 50.1337835 | O16: 0.04938593829 | P16: 170.9135318 | Q16: 0.00045115519 | R16: 178.0451497 | S16: 0.0003730841595 | T16: 247.70625 | U16: 7.779056947e-05 | V16: 252.6796911 | W16: 7.067938607e-05 | X16: 87.53591146 | Y16: 0.008021833753 | Z16: 100.7530436 | AA16: 0.004594725602 | AB16: 209.309223 | AC16: 0.0001741983297 | AD16: 215.1720029 | AE16: 0.0001527484274 | AN16: Von Mises | AP16: Von Mises Equivalent/SMYS
C17: 2.833333333 | D17: 0.3094935592 | E17: 1506.5 | F17: 49.96666667 | G17: 166.8 | I17: 1506.5 | J17: 49.96666667 | K17: 166.8 | L17: 2.833333333 | M17: 0.3094935592 | N17: 49.96666667 | O17: 0.04981729055 | P17: 166.8240623 | Q17: 0.0005046411096 | R17: 174.1232546 | S17: 0.000413835329 | T17: 243.6164768 | U17: 8.428473289e-05 | V17: 248.6717269 | W17: 7.634564903e-05 | X17: 83.44811429 | Y17: 0.009620939068 | Z17: 97.22256825 | AA17: 0.005308407506 | AB17: 205.2195599 | AC17: 0.0001912980905 | AD17: 211.1958991 | AE17: 0.0001669258926 | AN17: High | AO17: Low | AP17: High | AQ17: Low
C18: 4.975565085 | D18: 0.3039654004 | E18: 1506.5 | F18: 49.96666667 | G18: 162.7099548 | I18: 1506.5 | J18: 49.96666667 | K18: 162.7099548 | L18: 4.975565085 | M18: 0.3039654004 | N18: 50.1337835 | O18: 0.04938593829 | P18: 162.7346219 | Q18: 0.0005657960584 | R18: 170.2092746 | S18: 0.0004598689574 | T18: 239.5267129 | U18: 9.14357301e-05 | V18: 244.6664795 | W18: 8.255766569e-05 | X18: 79.36054877 | Y18: 0.01159106746 | Z18: 93.73759491 | AA18: 0.006140917273 | AB18: 201.1299124 | AC18: 0.0002104311522 | AD18: 207.2242304 | AE18: 0.0001826781462 | AM18: Zero | AN18: 24358.36855 | AO18: 14866.18966 | AP18: 0.4684301644 | AQ18: 0.2858882628
C19: 4.975565085 | D19: 0.3039654004 | E19: 1506.5 | F19: 55.63333333 | G19: 170.8900452 | I19: 1506.5 | J19: 55.63333333 | K19: 170.8900452 | L19: 4.975565085 | M19: 0.3039654004 | N19: 55.78347648 | O19: 0.03685347476 | P19: 170.9135318 | Q19: 0.00045115519 | R19: 179.7177658 | S19: 0.0003571628789 | T19: 247.70625 | U19: 7.779056947e-05 | V19: 253.8610374 | W19: 6.910594198e-05 | X19: 87.53591146 | Y19: 0.008021833753 | Z19: 103.6801611 | AA19: 0.004086114164 | AB19: 209.309223 | AC19: 0.0001741983297 | AD19: 216.5580542 | AE19: 0.0001481462919 | AM19: MOP | AN19: 54018.06641 | AO19: 45383.73857 | AP19: 1.038808969 | AQ19: 0.8727642033
C20: 2.833333333 | D20: 0.3094935592 | E20: 1506.5 | F20: 55.63333333 | G20: 166.8 | I20: 1506.5 | J20: 55.63333333 | K20: 166.8 | L20: 2.833333333 | M20: 0.3094935592 | N20: 55.63333333 | O20: 0.03713960546 | P20: 166.8240623 | Q20: 0.0005046411096 | R20: 175.8331817 | S20: 0.0003954507674 | T20: 243.6164768 | U20: 8.428473289e-05 | V20: 249.8720228 | W20: 7.459367963e-05 | X20: 83.44811429 | Y20: 0.009620939068 | Z20: 100.2528193 | AA20: 0.004688782321 | AB20: 205.2195599 | AC20: 0.0001912980905 | AD20: 212.6078733 | AE20: 0.0001617188373
C21: 4.975565085 | D21: 0.3039654004 | E21: 1506.5 | F21: 55.63333333 | G21: 162.7099548 | I21: 1506.5 | J21: 55.63333333 | K21: 162.7099548 | L21: 4.975565085 | M21: 0.3039654004 | N21: 55.78347648 | O21: 0.03685347476 | P21: 162.7346219 | Q21: 0.0005657960584 | R21: 171.9581262 | S21: 0.0004385877891 | T21: 239.5267129 | U21: 9.14357301e-05 | V21: 245.8863278 | W21: 8.060392848e-05 | X21: 79.36054877 | Y21: 0.01159106746 | Z21: 96.87691521 | AA21: 0.005384906173 | AB21: 201.1299124 | AC21: 0.0002104311522 | AD21: 208.6630817 | AE21: 0.0001767751864
C22: 9.432839983 | D22: 0.2839796741 | E22: 1506.5 | F22: 61.3 | G22: 170.8900452 | I22: 1506.5 | J22: 61.3 | K22: 170.8900452 | L22: 9.432839983 | M22: 0.2839796741 | N22: 61.43629603 | O22: 0.02761580738 | P22: 171.1013079 | Q22: 0.000448864949 | R22: 181.5519142 | S22: 0.0003406210711 | T22: 247.8358499 | U22: 7.759472867e-05 | V22: 255.1627883 | W22: 6.742025997e-05 | X22: 87.9019796 | Y22: 0.007894049594 | Z22: 106.8278897 | AA22: 0.003610354678 | AB22: 209.4625815 | AC22: 0.0001735933014 | AD22: 218.0825831 | AE22: 0.0001432735975 | AM22: MomentMAX | AO22: Mmax | AP22: Mtest1 | AQ22: Mmin1 | AR22: Mtest2 | AS22: Mmin2
C23: 8.5 | D23: 0.2890040373 | E23: 1506.5 | F23: 61.3 | G23: 166.8 | I23: 1506.5 | J23: 61.3 | K23: 166.8 | L23: 8.5 | M23: 0.2890040373 | N23: 61.3 | O23: 0.02780673055 | P23: 167.0164363 | Q23: 0.0005019623748 | R23: 177.7074281 | S23: 0.0003764001561 | T23: 243.7482513 | U23: 8.406563966e-05 | V23: 251.1944466 | W23: 7.271866054e-05 | X23: 83.83203445 | Y23: 0.009456262404 | Z23: 103.5048308 | AA23: 0.004114680518 | AB23: 205.3759723 | AC23: 0.0001906083771 | AD23: 214.1605239 | AE23: 0.0001562144645 | AH23: Mtest1 Function | AM23: 883802.3651 | AO23: 883802.3651 | AP23: 883802.3651 | AQ23: 883802.3651 | AR23: 677838.9292 | AS23: 677838.9292 | AU23: Mtest2 Function
C24: 9.432839983 | D24: 0.2839796741 | E24: 1506.5 | F24: 61.3 | G24: 162.7099548 | I24: 1506.5 | J24: 61.3 | K24: 162.7099548 | L24: 9.432839983 | M24: 0.2839796741 | N24: 61.43629603 | O24: 0.02761580738 | P24: 162.9318243 | Q24: 0.0005626526391 | R24: 173.8741481 | S24: 0.0004165973619 | T24: 239.6607361 | U24: 9.119019329e-05 | V24: 247.2300718 | W24: 7.851521054e-05 | X24: 79.7641456 | Y24: 0.01137751893 | Z24: 100.2385102 | AA24: 0.004691505371 | AB24: 201.2895027 | AC24: 0.0002096430451 | AD24: 210.2448665 | AE24: 0.0001705456568 | AP24: 883540.1364 | AQ24: 883802.3651 | AR24: 663437.0056 | AS24: 677838.9292
C25: 14.74526753 | D25: 0.24918391 | E25: 1506.5 | F25: 66.96666667 | G25: 170.8900452 | I25: 1506.5 | J25: 66.96666667 | K25: 170.8900452 | L25: 14.74526753 | M25: 0.24918391 | N25: 67.09145187 | O25: 0.02082197705 | P25: 171.4762433 | Q25: 0.00044433305 | R25: 183.5427525 | S25: 0.0003236838518 | T25: 248.0948467 | U25: 7.720511264e-05 | V25: 256.5831112 | W25: 6.563667174e-05 | X25: 88.62958006 | Y25: 0.007646896215 | Z25: 110.1773228 | AA25: 0.003173127437 | AB25: 209.7689622 | AC25: 0.0001723920401 | AD25: 219.7427075 | AE25: 0.000138182846 | AP25: 882753.4418 | AQ25: 883802.3651 | AR25: 649181.7698 | AS25: 677838.9292
C26: 14.16666667 | D26: 0.2533654272 | E26: 1506.5 | F26: 66.96666667 | G26: 166.8 | I26: 1506.5 | J26: 66.96666667 | K26: 166.8 | L26: 14.16666667 | M26: 0.2533654272 | N26: 66.96666667 | O26: 0.02095048927 | P26: 167.400521 | Q26: 0.0004966643104 | R26: 179.7408536 | S26: 0.0003569488127 | T26: 244.0115867 | U26: 8.362983899e-05 | V26: 252.6370805 | W26: 7.073693337e-05 | X26: 84.59464785 | Y26: 0.009138547867 | Z26: 106.9583772 | AA26: 0.003592062689 | AB26: 205.6884402 | AC26: 0.0001892393569 | AD26: 215.8508153 | AE26: 0.0001504736143 | AP26: 881442.2558 | AQ26: 883802.3651 | AR26: 635072.7613 | AS26: 677838.9292
C27: 14.74526753 | D27: 0.24918391 | E27: 1506.5 | F27: 66.96666667 | G27: 162.7099548 | I27: 1506.5 | J27: 66.96666667 | K27: 162.7099548 | L27: 14.74526753 | M27: 0.24918391 | N27: 67.09145187 | O27: 0.02082197705 | P27: 163.3255149 | Q27: 0.000556438744 | R27: 175.9518793 | S27: 0.000394210885 | T27: 239.9285578 | U27: 9.070188153e-05 | V27: 248.6957034 | W27: 7.631017547e-05 | X27: 80.56527395 | Y27: 0.01096664632 | Z27: 103.8007869 | AA27: 0.004066593962 | AB27: 201.6083043 | AC27: 0.0002080791816 | AD27: 211.9663849 | AE27: 0.0001640601884 | AP27: 879606.5356 | AQ27: 883802.3651 | AR27: 621109.5074 | AS27: 677838.9292
C28: 91.52476667 | D28: 0.006747245526 | E28: 1506.5 | F28: -38.63333333 | G28: 170.8900452 | I28: 1506.5 | J28: -38.63333333 | K28: 170.8900452 | L28: 91.52476667 | M28: 0.006747245526 | N28: 38.84923313 | O28: 0.08859156221 | P28: 193.8129562 | Q28: 0.0002506615737 | R28: 175.2025742 | S28: 0.0004021159435 | T28: 264.0272959 | U28: 5.715913824e-05 | V28: 250.6848479 | W28: 7.343447003e-05 | X28: 126.5486565 | Y28: 0.00175148233 | Z28: 95.6401718 | AA28: 0.005669198607 | AB28: 228.3908437 | AC28: 0.0001148981419 | AD28: 212.8258854 | AE28: 0.000160932187 | AP28: 877246.2215 | AQ28: 883802.3651 | AR28: 607291.5226 | AS28: 677838.9292
C29: 91.43333333 | D29: 0.006773737309 | E29: 1506.5 | F29: -38.63333333 | G29: 166.8 | I29: 1506.5 | J29: -38.63333333 | K29: 166.8 | L29: 91.43333333 | M29: 0.006773737309 | N29: 38.63333333 | O29: 0.08957068045 | P29: 190.216441 | Q29: 0.0002737593677 | R29: 171.2155789 | S29: 0.0004474779638 | T29: 260.194186 | U29: 6.134954705e-05 | V29: 246.6444697 | W29: 7.941743866e-05 | X29: 123.7562703 | Y29: 0.00193038188 | Z29: 91.91351611 | AA29: 0.006635926365 | AB29: 224.6488247 | AC29: 0.0001243494822 | AD29: 208.8051112 | AE29: 0.0001762048965 | AP29: 874361.2369 | AQ29: 883802.3651 | AR29: 593618.3099 | AS29: 677838.9292
C30: 91.52476667 | D30: 0.006747245526 | E30: 1506.5 | F30: -38.63333333 | G30: 162.7099548 | I30: 1506.5 | J30: -38.63333333 | K30: 162.7099548 | L30: 91.52476667 | M30: 0.006747245526 | N30: 38.84923313 | O30: 0.08859156221 | P30: 186.6402524 | Q30: 0.0002992753083 | R30: 167.2335607 | S30: 0.0004989591892 | T30: 256.369017 | U30: 6.590188757e-05 | V30: 242.6057561 | W30: 8.598802536e-05 | X30: 121.037694 | Y30: 0.002125425501 | Z30: 88.21906465 | AA30: 0.007785237676 | AB30: 220.9191444 | AC30: 0.0001347054214 | AD30: 204.7870805 | AE30: 0.0001932206469 | AP30: 870951.4881 | AQ30: 883802.3651 | AR30: 580089.3603 | AS30: 677838.9292
C31: 97.18610225 | D31: 0.005316418724 | E31: 1506.5 | F31: -44.3 | G31: 170.8900452 | I31: 1506.5 | J31: -44.3 | K31: 170.8900452 | L31: 97.18610225 | M31: 0.005316418724 | N31: 44.48840827 | O31: 0.06625347591 | P31: 196.5497839 | Q31: 0.0002346256902 | R31: 176.5386574 | S31: 0.0003881488256 | T31: 266.0427945 | U31: 5.509304255e-05 | V31: 251.6204453 | W31: 7.212665882e-05 | X31: 130.7016374 | Y31: 0.001520065492 | Z31: 98.06629399 | AA31: 0.005126874601 | AB31: 230.7178646 | AC31: 0.0001094517005 | AD31: 213.9271209 | AE31: 0.0001570275081 | AP31: 867016.8645 | AQ31: 883802.3651 | AR31: 566704.1533 | AS31: 677838.9292
C32: 97.1 | D32: 0.005335389822 | E32: 1506.5 | F32: -44.3 | G32: 166.8 | I32: 1506.5 | J32: -44.3 | K32: 166.8 | L32: 97.1 | M32: 0.005335389822 | N32: 44.3 | O32: 0.06690481965 | P32: 193.0042746 | Q32: 0.000255646805 | R32: 172.582531 | S32: 0.0004312736376 | T32: 262.2391466 | U32: 5.906999902e-05 | V32: 247.5953352 | W32: 7.79586431e-05 | X32: 127.9998828 | Y32: 0.001666206843 | Z32: 94.43542767 | AA32: 0.005962847962 | AB32: 227.0142066 | AC32: 0.0001182722061 | AD32: 209.9274398 | AE32: 0.0001717745598 | AP32: 862557.2388 | AQ32: 883802.3651 | AR32: 553462.1574 | AS32: 677838.9292
C33: 97.18610225 | D33: 0.005316418724 | E33: 1506.5 | F33: -44.3 | G33: 162.7099548 | I33: 1506.5 | J33: -44.3 | K33: 162.7099548 | L33: 97.18610225 | M33: 0.005316418724 | N33: 44.48840827 | O33: 0.06625347591 | P33: 189.4807098 | Q33: 0.0002787909112 | R33: 168.6327945 | S33: 0.0004801075912 | T33: 258.4442463 | U33: 6.338398247e-05 | V33: 243.5723885 | W33: 8.43581878e-05 | X33: 125.3733581 | Y33: 0.001824306976 | Z33: 90.84359594 | AA33: 0.006947495821 | AB33: 223.3240334 | AC33: 0.0001279155933 | AD33: 205.9313087 | AE33: 0.0001881833447 | AP33: 857572.4669 | AQ33: 883802.3651 | AR33: 540362.8298 | AS33: 677838.9292
C34: 102.848025 | D34: 0.004223766616 | E34: 1506.5 | F34: -49.96666667 | G34: 170.8900452 | I34: 1506.5 | J34: -49.96666667 | K34: 170.8900452 | L34: 102.848025 | M34: 0.004223766616 | N34: 50.1337835 | O34: 0.04938593829 | P34: 199.4101185 | Q34: 0.0002191514598 | R34: 178.0451497 | S34: 0.0003730841595 | T34: 268.16291 | U34: 5.301514321e-05 | V34: 252.6796911 | W34: 7.067938607e-05 | X34: 134.9647947 | Y34: 0.001318917169 | Z34: 100.7530436 | AA34: 0.004594725602 | AB34: 233.1594107 | AC34: 0.0001040645297 | AD34: 215.1720029 | AE34: 0.0001527484274 | AP34: 852062.3879 | AQ34: 883802.3651 | AR34: 527405.6174 | AS34: 677838.9292
C35: 102.7666667 | D35: 0.004237510522 | E35: 1506.5 | F35: -49.96666667 | G35: 166.8 | I35: 1506.5 | J35: -49.96666667 | K35: 166.8 | L35: 102.7666667 | M35: 0.004237510522 | N35: 49.96666667 | O35: 0.04981729055 | P35: 195.9163796 | Q35: 0.0002382259042 | R35: 174.1232546 | S35: 0.000413835329 | T35: 264.3897649 | U35: 5.678083858e-05 | V35: 248.6717269 | W35: 7.634564903e-05 | X35: 132.3500955 | Y35: 0.001438285501 | Z35: 97.22256825 | AA35: 0.005308407506 | AB35: 229.4951585 | AC35: 0.0001122741669 | AD35: 211.1958991 | AE35: 0.0001669258926 | AP35: 846026.8245 | AQ35: 883802.3651 | AR35: 514589.9564 | AS35: 677838.9292
C36: 102.848025 | D36: 0.004223766616 | E36: 1506.5 | F36: -49.96666667 | G36: 162.7099548 | I36: 1506.5 | J36: -49.96666667 | K36: 162.7099548 | L36: 102.848025 | M36: 0.004223766616 | N36: 50.1337835 | O36: 0.04938593829 | P36: 192.4461409 | Q36: 0.0002591562408 | R36: 170.2092746 | S36: 0.0004598689574 | T36: 260.626181 | U36: 6.085937213e-05 | V36: 244.6664795 | W36: 8.255766569e-05 | X36: 129.8116201 | Y36: 0.001566482797 | Z36: 93.73759491 | AA36: 0.006140917273 | AB36: 225.8455261 | AC36: 0.0001212295298 | AD36: 207.2242304 | AE36: 0.0001826781462 | AP36: 839465.5828 | AQ36: 883802.3651 | AR36: 501915.2729 | AS36: 677838.9292
C37: 108.510443 | D37: 0.003382532815 | E37: 1506.5 | F37: -55.63333333 | G37: 170.8900452 | I37: 1506.5 | J37: -55.63333333 | K37: 170.8900452 | L37: 108.510443 | M37: 0.003382532815 | N37: 55.78347648 | O37: 0.03685347476 | P37: 202.3887234 | Q37: 0.0002043090302 | R37: 179.7177658 | S37: 0.0003571628789 | T37: 270.3851813 | U37: 5.093672063e-05 | V37: 253.8610374 | W37: 6.910594198e-05 | X37: 139.3280151 | Y37: 0.00114464249 | Z37: 103.6801611 | AA37: 0.004086114164 | AB37: 235.7119234 | AC37: 9.876680952e-05 | AD37: 216.5580542 | AE37: 0.0001481462919 | AP37: 832378.4528 | AQ37: 883802.3651 | AR37: 489380.9831 | AS37: 677838.9292
C38: 108.4333333 | D38: 0.003392601786 | E38: 1506.5 | F38: -55.63333333 | G38: 166.8 | I38: 1506.5 | J38: -55.63333333 | K38: 166.8 | L38: 108.4333333 | M38: 0.003392601786 | N38: 55.63333333 | O38: 0.03713960546 | P38: 198.947299 | Q38: 0.0002215711119 | R38: 175.8331817 | S38: 0.0003954507674 | T38: 266.6434844 | U38: 5.449459637e-05 | V38: 249.8720228 | W38: 7.459367963e-05 | X38: 136.7967389 | Y38: 0.001242194088 | Z38: 100.2528193 | AA38: 0.004688782321 | AB38: 232.0879742 | AC38: 0.0001063887812 | AD38: 212.6078733 | AE38: 0.0001617188373 | AP38: 824765.2079 | AQ38: 883802.3651 | AR38: 476986.4933 | AS38: 677838.9292
C39: 108.510443 | D39: 0.003382532815 | E39: 1506.5 | F39: -55.63333333 | G39: 162.7099548 | I39: 1506.5 | J39: -55.63333333 | K39: 162.7099548 | L39: 108.510443 | M39: 0.003382532815 | N39: 55.78347648 | O39: 0.03685347476 | P39: 195.5308598 | Q39: 0.0002404492969 | R39: 171.9581262 | S39: 0.0004385877891 | T39: 262.9121644 | U39: 5.834197892e-05 | V39: 245.8863278 | W39: 8.060392848e-05 | X39: 134.3423117 | Y39: 0.001346245127 | Z39: 96.87691521 | AA39: 0.005384906173 | AB39: 228.4797621 | AC39: 0.0001146841769 | AD39: 208.6630817 | AE39: 0.0001767751864 | AP39: 816625.6058 | AQ39: 883802.3651 | AR39: 464731.2005 | AS39: 677838.9292
C40: 114.1732826 | D40: 0.002729628237 | E40: 1506.5 | F40: -61.3 | G40: 170.8900452 | I40: 1506.5 | J40: -61.3 | K40: 170.8900452 | L40: 114.1732826 | M40: 0.002729628237 | N40: 61.43629603 | O40: 0.02761580738 | P40: 205.4804554 | Q40: 0.0001901492971 | R40: 181.5519142 | S40: 0.0003406210711 | T40: 272.7071112 | U40: 4.886812853e-05 | V40: 255.1627883 | W40: 6.742025997e-05 | X40: 143.7821895 | Y40: 0.0009939988837 | Z40: 106.8278897 | AA40: 0.003610354678 | AB40: 238.3718378 | AC40: 9.358449627e-05 | AD40: 218.0825831 | AE40: 0.0001432735975 | AP40: 807959.388 | AQ40: 883802.3651 | AR40: 452614.4925 | AS40: 677838.9292 | AU40: Max Value for Mtest Function
C41: 114.1 | D41: 0.002737084425 | E41: 1506.5 | F41: -61.3 | G41: 166.8 | I41: 1506.5 | J41: -61.3 | K41: 166.8 | L41: 114.1 | M41: 0.002737084425 | N41: 61.3 | O41: 0.02780673055 | P41: 202.0916871 | Q41: 0.0002057343425 | R41: 177.7074281 | S41: 0.0003764001561 | T41: 268.9977137 | U41: 5.222271506e-05 | V41: 251.1944466 | W41: 7.271866054e-05 | X41: 141.3307115 | Y41: 0.001073805696 | Z41: 103.5048308 | AA41: 0.004114680518 | AB41: 234.7889478 | AC41: 0.0001006444961 | AD41: 214.1605239 | AE41: 0.0001562144645 | AH41: Max Value for Mtest1 Function | AP41: 798766.2802 | AQ41: 883802.3651 | AR41: 440635.7481 | AS41: 677838.9292
C42: 114.1732826 | D42: 0.002729628237 | E42: 1506.5 | F42: -61.3 | G42: 162.7099548 | I42: 1506.5 | J42: -61.3 | K42: 162.7099548 | L42: 114.1732826 | M42: 0.002729628237 | N42: 61.43629603 | O42: 0.02761580738 | P42: 198.7293118 | Q42: 0.0002227217554 | R42: 173.8741481 | S42: 0.0004165973619 | T42: 265.299507 | U42: 5.584444751e-05 | V42: 247.2300718 | W42: 7.851521054e-05 | X42: 138.9563922 | Y42: 0.001158384355 | Z42: 100.2385102 | AA42: 0.004691505371 | AB42: 231.2228879 | AC42: 0.0001083106332 | AD42: 210.2448665 | AE42: 0.0001705456568 | AP42: 789045.9928 | AQ42: 883802.3651 | AR42: 428794.3374 | AS42: 677838.9292
C43: 119.8364841 | D43: 0.002218886474 | E43: 1506.5 | F43: -66.96666667 | G43: 170.8900452 | I43: 1506.5 | J43: -66.96666667 | K43: 170.8900452 | L43: 119.8364841 | M43: 0.002218886474 | N43: 67.09145187 | O43: 0.02082197705 | P43: 208.6802866 | Q43: 0.0001767059871 | R43: 183.5427525 | S43: 0.0003236838518 | T43: 275.1261764 | U43: 4.681875051e-05 | V43: 256.5831112 | W43: 6.563667174e-05 | X43: 148.3191237 | Y43: 0.0008639807464 | Z43: 110.1773228 | AA43: 0.003173127437 | AB43: 241.1355998 | AC43: 8.853942385e-05 | AD43: 219.7427075 | AE43: 0.000138182846 | AP43: 778798.2204 | AQ43: 883802.3651 | AR43: 417089.6217 | AS43: 677838.9292
C44: 119.7666667 | D44: 0.002224464687 | E44: 1506.5 | F44: -66.96666667 | G44: 166.8 | I44: 1506.5 | J44: -66.96666667 | K44: 166.8 | L44: 119.7666667 | M44: 0.002224464687 | N44: 66.96666667 | O44: 0.02095048927 | P44: 205.3443314 | Q44: 0.0001907476614 | R44: 179.7408536 | S44: 0.0003569488127 | T44: 271.4498378 | U44: 4.997550655e-05 | V44: 252.6370805 | W44: 7.073693337e-05 | X44: 145.9438743 | Y44: 0.000929368513 | Z44: 106.9583772 | AA44: 0.003592062689 | AB44: 237.5943906 | AC44: 9.506494751e-05 | AD44: 215.8508153 | AE44: 0.0001504736143 | AP44: 768022.6425 | AQ44: 883802.3651 | AR44: 405520.9544 | AS44: 677838.9292
C45: 119.8364841 | D45: 0.002218886474 | E45: 1506.5 | F45: -66.96666667 | G45: 162.7099548 | I45: 1506.5 | J45: -66.96666667 | K45: 162.7099548 | L45: 119.8364841 | M45: 0.002218886474 | N45: 67.09145187 | O45: 0.02082197705 | P45: 202.0360953 | Q45: 0.000206002408 | R45: 175.9518793 | S45: 0.000394210885 | T45: 267.7854979 | U45: 5.337810425e-05 | V45: 248.6957034 | W45: 7.631017547e-05 | X45: 143.6458261 | Y45: 0.0009982504718 | Z45: 103.8007869 | AA45: 0.004066593962 | AB45: 234.0710754 | AC45: 0.0001021343834 | AD45: 211.9663849 | AE45: 0.0001640601884 | AP45: 756718.9237 | AQ45: 883802.3651 | AR45: 394087.6807 | AS45: 677838.9292
C46: 163.3669119 | D46: 0.0005501434258 | E46: 1491.194444 | F46: 38.63333333 | G46: 4.048491704 | I46: 1491.194444 | J46: 38.63333333 | K46: 4.048491704 | L46: 163.3669119 | M46: 0.0005501434258 | N46: 167.2739905 | O46: 0.0004933387224 | P46: 14.73379549 | Q46: 0.2467350064 | R46: 38.84488035 | S46: 0.08771094608 | T46: 82.08028421 | U46: 0.01013065254 | V46: 89.60476023 | W46: 0.007254908347 | X46: 80.60618037 | Y46: 0.01083491147 | Z46: 88.25642364 | AA46: 0.007693564065 | AB46: 44.75007142 | AC46: 0.06469502394 | AD46: 57.39694149 | AE46: 0.03357668668 | AP46: 744886.7135 | AQ46: 883802.3651 | AR46: 382789.1378 | AS46: 677838.9292
C47: 167.400521 | D47: 0.0004916183607 | E47: 1491.194444 | F47: 38.63333333 | G47: -4.33680869e-19 | I47: 1491.194444 | J47: 38.63333333 | K47: -4.33680869e-19 | L47: 167.400521 | M47: 0.0004916183607 | N47: 171.2155789 | O47: 0.0004429317316 | P47: 14.16666667 | Q47: 0.250791316 | R47: 38.63333333 | S47: 0.08866067114 | T47: 78.09567494 | U47: 0.01216527517 | V47: 85.96961349 | W47: 0.00850854112 | X47: 84.59464785 | Y47: 0.009045703159 | Z47: 91.91351611 | AA47: 0.006568507487 | AB47: 40.92987227 | AC47: 0.07883064871 | AD47: 54.47104226 | AE47: 0.03903438859 | AP47: 732525.647 | AQ47: 883802.3651 | AR47: 371624.6554 | AS47: 677838.9292
C48: 171.4348318 | D48: 0.0004403115864 | E48: 1491.194444 | F48: 38.63333333 | G48: -4.048491704 | I48: 1491.194444 | J48: 38.63333333 | K48: -4.048491704 | L48: 171.4348318 | M48: 0.0004403115864 | N48: 175.1620437 | O48: 0.0003984590961 | P48: 14.73379549 | Q48: 0.2467350064 | R48: 38.84488035 | S48: 0.08771094608 | T48: 74.11798974 | U48: 0.01466608516 | V48: 82.37303202 | W48: 0.009997037501 | X48: 88.58856103 | Y48: 0.007582763357 | Z48: 95.60216078 | AA48: 0.005620517125 | AB48: 37.15804848 | AC48: 0.09554060333 | AD48: 51.69681389 | AE48: 0.04506881514 | AP48: 719635.3447 | AQ48: 883802.3651 | AR48: 360593.556 | AS48: 677838.9292
C49: 162.9733213 | D49: 0.0005562841314 | E49: 1491.194444 | F49: 44.3 | G49: 4.048491704 | I49: 1491.194444 | J49: 44.3 | K49: 4.048491704 | L49: 162.9733213 | M49: 0.0005562841314 | N49: 168.6728889 | O49: 0.000474707578 | P49: 9.414896977 | Q49: 0.2811938699 | R49: 44.48460728 | S49: 0.06559330857 | T49: 81.29408718 | U49: 0.01049959794 | V49: 92.18985091 | W49: 0.006491448112 | X49: 79.80546265 | Y49: 0.01124053656 | Z49: 90.87987604 | AA49: 0.006866186033 | AB49: 43.291159 | AC49: 0.06978240718 | AD49: 61.35441669 | AE49: 0.02744860245 | AP49: 706215.4131 | AQ49: 883802.3651 | AR49: 349695.1546 | AS49: 677838.9292
C50: 167.0164363 | D50: 0.0004968625985 | E50: 1491.194444 | F50: 44.3 | G50: -4.33680869e-19 | I50: 1491.194444 | J50: 44.3 | K50: -4.33680869e-19 | L50: 167.0164363 | M50: 0.0004968625985 | N50: 172.582531 | O50: 0.0004268920361 | P50: 8.5 | Q50: 0.2860678492 | R50: 44.3 | S50: 0.0662250882 | T50: 77.2689459 | U50: 0.01264288789 | V50: 88.66075795 | W50: 0.007558920148 | X50: 83.83203445 | Y50: 0.009360189819 | Z50: 94.43542767 | AA50: 0.005902267344 | AB50: 39.32950546 | AC50: 0.08556953031 | AD50: 58.62635926 | AE50: 0.03152978813 | AP50: 692265.4447 | AQ50: 883802.3651 | AR50: 338928.7593 | AS50: 677838.9292
C51: 171.0598057 | D51: 0.0004448044957 | E51: 1491.194444 | F51: 44.3 | G51: -4.048491704 | I51: 1491.194444 | J51: 44.3 | K51: -4.048491704 | L51: 171.0598057 | M51: 0.0004448044957 | N51: 176.4984338 | O51: 0.0003846131832 | P51: 9.414896977 | Q51: 0.2811938699 | R51: 44.48460728 | S51: 0.06559330857 | T51: 73.24637847 | U51: 0.0152879061 | V51: 85.17788421 | W51: 0.008813275213 | X51: 87.86062088 | Y51: 0.007828023353 | Z51: 98.02922371 | AA51: 0.005082531865 | AB51: 35.38751365 | AC51: 0.1044024502 | AD51: 56.05814947 | AE51: 0.03596684901 | AP51: 677785.0185 | AQ51: 883802.3651 | AR51: 328293.6717 | AS51: 677838.9292
C52: 162.7761691 | D52: 0.0005593905093 | E52: 1491.194444 | F52: 49.96666667 | G52: 4.048491704 | I52: 1491.194444 | J52: 49.96666667 | K52: 4.048491704 | L52: 162.7761691 | M52: 0.0005593905093 | N52: 170.2489977 | O52: 0.0004547051162 | P52: 4.941463635 | Q52: 0.3009864719 | R52: 50.13041056 | S52: 0.04889277336 | T52: 80.89812352 | U52: 0.01069115075 | V52: 95.04286606 | W52: 0.005753604289 | X52: 79.40207583 | Y52: 0.01145135155 | Z52: 93.77275535 | AA52: 0.006069503387 | AB52: 42.54294566 | AC52: 0.07253781362 | AD52: 65.56326888 | AE52: 0.02222907582 | AR52: 317789.1865 | AS52: 677838.9292
C53: 166.8240623 | D53: 0.0004995141182 | E53: 1491.194444 | F53: 49.96666667 | G53: -4.33680869e-19 | I53: 1491.194444 | J53: 49.96666667 | K53: -4.33680869e-19 | L53: 166.8240623 | M53: 0.0004995141182 | N53: 174.1232546 | O53: 0.0004096308951 | P53: 2.833333333 | Q53: 0.3063492042 | R53: 49.96666667 | S53: 0.0493111629 | T53: 76.85224641 | U53: 0.01289157771 | V53: 91.62372934 | W53: 0.006650445909 | X53: 83.44811429 | Y53: 0.009523193421 | Z53: 97.22256825 | AA53: 0.005254475793 | AB53: 38.50438647 | AC53: 0.08924405673 | AD53: 63.0176783 | AE53: 0.0252421091 | AR53: 307414.5923 | AS53: 677838.9292
C54: 170.8719839 | D54: 0.0004470750437 | E54: 1491.194444 | F54: 49.96666667 | G54: -4.048491704 | I54: 1491.194444 | J54: 49.96666667 | K54: -4.048491704 | L54: 170.8719839 | M54: 0.0004470750437 | N54: 178.0052665 | O54: 0.0003696795784 | P54: 4.941463635 | Q54: 0.3009864719 | R54: 50.13041056 | S54: 0.04889277336 | T54: 72.80665998 | U54: 0.01561271719 | V54: 88.25785935 | W54: 0.007693081154 | X54: 87.4943797 | Y54: 0.007954831655 | Z54: 100.7169622 | AA54: 0.004554687483 | AB54: 34.46815777 | AC54: 0.1092690153 | AD54: 60.63574771 | AE54: 0.02846560624 | AR54: 297169.1715 | AS54: 677838.9292
C55: 162.7761691 | D55: 0.0005593905093 | E55: 1491.194444 | F55: 55.63333333 | G55: 4.048491704 | I55: 1491.194444 | J55: 55.63333333 | K55: 4.048491704 | L55: 162.7761691 | M55: 0.0005593905093 | N55: 171.9974454 | O55: 0.0004336717108 | P55: 4.941463635 | Q55: 0.3009864719 | R55: 55.78044517 | S55: 0.03648475069 | T55: 80.89812352 | U55: 0.01069115075 | V55: 98.14044217 | W55: 0.005059337051 | X55: 79.40207583 | Y55: 0.01145135155 | Z55: 96.91093667 | AA55: 0.005322688781 | AB55: 42.54294566 | AC55: 0.07253781362 | AD55: 69.97815535 | AE55: 0.01789476746 | AR55: 287052.2004 | AS55: 677838.9292
C56: 166.8240623 | D56: 0.0004995141182 | E56: 1491.194444 | F56: 55.63333333 | G56: -4.33680869e-19 | I56: 1491.194444 | J56: 55.63333333 | K56: -4.33680869e-19 | L56: 166.8240623 | M56: 0.0004995141182 | N56: 175.8331817 | O56: 0.0003914331148 | P56: 2.833333333 | Q56: 0.3063492042 | R56: 55.63333333 | S56: 0.03676227901 | T56: 76.85224641 | U56: 0.01289157771 | V56: 94.83305214 | W56: 0.005804462022 | X56: 83.44811429 | Y56: 0.009523193421 | Z56: 100.2528193 | AA56: 0.004641145801 | AB56: 38.50438647 | AC56: 0.08924405673 | AD56: 67.59902202 | AE56: 0.02010177231 | AR56: 277062.9497 | AS56: 677838.9292
C57: 170.8719839 | D57: 0.0004470750437 | E57: 1491.194444 | F57: 55.63333333 | G57: -4.048491704 | I57: 1491.194444 | J57: 55.63333333 | K57: -4.048491704 | L57: 170.8719839 | M57: 0.0004470750437 | N57: 179.6782538 | O57: 0.0003538971952 | P57: 4.941463635 | Q57: 0.3009864719 | R57: 55.78044517 | S57: 0.03648475069 | T57: 72.80665998 | U57: 0.01561271719 | V57: 91.58520479 | W57: 0.006661426787 | X57: 87.4943797 | Y57: 0.007954831655 | Z57: 103.6450987 | AA57: 0.004050236975 | AB57: 34.46815777 | AC57: 0.1092690153 | AD57: 65.38420222 | AE57: 0.02242767031 | AR57: 267200.6847 | AS57: 677838.9292
C58: 162.9733213 | D58: 0.0005562841314 | E58: 1491.194444 | F58: 61.3 | G58: 4.048491704 | I58: 1491.194444 | J58: 61.3 | K58: 4.048491704 | L58: 162.9733213 | M58: 0.0005562841314 | N58: 173.9130342 | O58: 0.0004119366669 | P58: 9.414896977 | Q58: 0.2811938699 | R58: 61.43354365 | S58: 0.02733904215 | T58: 81.29408718 | U58: 0.01049959794 | V58: 101.4601824 | W58: 0.004420087168 | X58: 79.80546265 | Y58: 0.01124053656 | Z58: 100.2713911 | AA58: 0.00463765016 | AB58: 43.291159 | AC58: 0.06978240718 | AD58: 74.56248687 | AE58: 0.01435987797 | AR58: 257464.665 | AS58: 677838.9292
C59: 167.0164363 | D59: 0.0004968625985 | E59: 1491.194444 | F59: 61.3 | G59: -4.33680869e-19 | I59: 1491.194444 | J59: 61.3 | K59: -4.33680869e-19 | L59: 167.0164363 | M59: 0.0004968625985 | N59: 177.7074281 | O59: 0.0003725760515 | P59: 8.5 | Q59: 0.2860678492 | R59: 61.3 | S59: 0.02752422311 | T59: 77.2689459 | U59: 0.01264288789 | V59: 98.26459179 | W59: 0.005033589338 | X59: 83.83203445 | Y59: 0.009360189819 | Z59: 103.5048308 | AA59: 0.004072876687 | AB59: 39.32950546 | AC59: 0.08556953031 | AD59: 72.33429339 | AE59: 0.01597022862 | AR59: 247854.1454 | AS59: 677838.9292
C60: 171.0598057 | D60: 0.0004448044957 | E60: 1491.194444 | F60: 61.3 | G60: -4.048491704 | I60: 1491.194444 | J60: 61.3 | K60: -4.048491704 | L60: 171.0598057 | M60: 0.0004448044957 | N60: 181.5128015 | O60: 0.0003375001268 | P60: 9.414896977 | Q60: 0.2811938699 | R60: 61.43354365 | S60: 0.02733904215 | T60: 73.24637847 | U60: 0.0152879061 | V60: 95.13396848 | W60: 0.005731681115 | X60: 87.86062088 | Y60: 0.007828023353 | Z60: 106.7938608 | AA60: 0.003578413975 | AB60: 35.38751365 | AC60: 0.1044024502 | AD60: 70.26888445 | AE60: 0.01764394254 | AR60: 238368.3754 | AS60: 677838.9292
C61: 163.3669119 | D61: 0.0005501434258 | E61: 1491.194444 | F61: 66.96666667 | G61: 4.048491704 | I61: 1491.194444 | J61: 66.96666667 | K61: 4.048491704 | L61: 163.3669119 | M61: 0.0005501434258 | N61: 175.9903063 | O61: 0.000389809487 | P61: 14.73379549 | Q61: 0.2467350064 | R61: 67.0889315 | S61: 0.02061299325 | T61: 82.08028421 | U61: 0.01013065254 | V61: 104.9810128 | W61: 0.003841760328 | X61: 80.60618037 | Y61: 0.01083491147 | Z61: 103.8325398 | AA61: 0.004020210273 | AB61: 44.75007142 | AC61: 0.06469502394 | AD61: 79.28687718 | AE61: 0.01151237122 | AR61: 229006.5999 | AS61: 677838.9292
C62: 167.400521 | D62: 0.0004916183607 | E62: 1491.194444 | F62: 66.96666667 | G62: -4.33680869e-19 | I62: 1491.194444 | J62: 66.96666667 | K62: -4.33680869e-19 | L62: 167.400521 | M62: 0.0004916183607 | N62: 179.7408536 | O62: 0.0003533223276 | P62: 14.16666667 | Q62: 0.250791316 | R62: 66.96666667 | S62: 0.02073763903 | T62: 78.09567494 | U62: 0.01216527517 | V62: 101.8959 | W62: 0.004343315009 | X62: 84.59464785 | Y62: 0.009045703159 | Z62: 106.9583772 | AA62: 0.003555568488 | AB62: 40.92987227 | AC62: 0.07883064871 | AD62: 77.19517112 | AE62: 0.0126865222 | AR62: 219768.0592 | AS62: 677838.9292
C63: 171.4348318 | D63: 0.0004403115864 | E63: 1491.194444 | F63: 66.96666667 | G63: -4.048491704 | I63: 1491.194444 | J63: 66.96666667 | K63: -4.048491704 | L63: 171.4348318 | M63: 0.0004403115864 | N63: 183.5040642 | O63: 0.0003207115723 | P63: 14.73379549 | Q63: 0.2467350064 | R63: 67.0889315 | S63: 0.02061299325 | T63: 74.11798974 | U63: 0.01466608516 | V63: 98.88031353 | W63: 0.004908103693 | X63: 88.58856103 | Y63: 0.007582763357 | Z63: 110.1443287 | AA63: 0.003144845063 | AB63: 37.15804848 | AC63: 0.09554060333 | AD63: 75.26327502 | AE63: 0.01389151719 | AR63: 210651.9891 | AS63: 677838.9292
C64: 186.6764792 | D64: 0.0002959652532 | E64: 1491.194444 | F64: -38.63333333 | G64: 4.048491704 | I64: 1491.194444 | J64: -38.63333333 | K64: 4.048491704 | L64: 186.6764792 | M64: 0.0002959652532 | N64: 167.2739905 | O64: 0.0004933387224 | P64: 91.52291915 | Q64: 0.006679224379 | R64: 38.84488035 | S64: 0.08771094608 | T64: 122.0513542 | U64: 0.002029292312 | V64: 89.60476023 | W64: 0.007254908347 | X64: 121.064926 | Y64: 0.002101787961 | Z64: 88.25642364 | AA64: 0.007693564065 | AB64: 100.8063931 | AC64: 0.004538243166 | AD64: 57.39694149 | AE64: 0.03357668668 | AR64: 201657.6211 | AS64: 677838.9292
C65: 190.216441 | D65: 0.0002709780605 | E65: 1491.194444 | F65: -38.63333333 | G65: -4.33680869e-19 | I65: 1491.194444 | J65: -38.63333333 | K65: -4.33680869e-19 | L65: 190.216441 | M65: 0.0002709780605 | N65: 171.2155789 | O65: 0.0004429317316 | P65: 91.43333333 | Q65: 0.006704918316 | R65: 38.63333333 | S65: 0.08866067114 | T65: 119.4081004 | U65: 0.002230478916 | V65: 85.96961349 | W65: 0.00850854112 | X65: 123.7562703 | Y65: 0.001910769821 | Z65: 91.91351611 | AA65: 0.006568507487 | AB65: 99.16962461 | AC65: 0.004850389135 | AD65: 54.47104226 | AE65: 0.03903438859 | AR65: 192784.1827 | AS65: 677838.9292
C66: 193.7763184 | D66: 0.0002483360115 | E66: 1491.194444 | F66: -38.63333333 | G66: -4.048491704 | I66: 1491.194444 | J66: -38.63333333 | K66: -4.048491704 | L66: 193.7763184 | M66: 0.0002483360115 | N66: 175.1620437 | O66: 0.0003984590961 | P66: 91.52291915 | Q66: 0.006679224379 | R66: 38.84488035 | S66: 0.08771094608 | T66: 116.8453525 | U66: 0.002448118266 | V66: 82.37303202 | W66: 0.009997037501 | X66: 126.5199318 | Y66: 0.001735408967 | Z66: 95.60216078 | AA66: 0.005620517125 | AB66: 97.67333601 | AC66: 0.005157580239 | AD66: 51.69681389 | AE66: 0.04506881514 | AR66: 184030.8976 | AS66: 677838.9292
C67: 189.5163936 | D67: 0.0002757144344 | E67: 1491.194444 | F67: -44.3 | G67: 4.048491704 | I67: 1491.194444 | J67: -44.3 | K67: 4.048491704 | L67: 189.5163936 | M67: 0.0002757144344 | N67: 168.6728889 | O67: 0.000474707578 | P67: 97.18436235 | Q67: 0.005262784319 | R67: 44.48460728 | S67: 0.06559330857 | T67: 126.3522402 | U67: 0.001745496796 | V67: 92.18985091 | W67: 0.006491448112 | X67: 125.3996486 | Y67: 0.0018041222 | Z67: 90.87987604 | AA67: 0.006866186033 | AB67: 105.9730364 | AC67: 0.003694971782 | AD67: 61.35441669 | AE67: 0.02744860245 | AR67: 175396.9857 | AS67: 677838.9292
C68: 193.0042746 | D68: 0.0002530495157 | E68: 1491.194444 | F68: -44.3 | G68: -4.33680869e-19 | I68: 1491.194444 | J68: -44.3 | K68: -4.33680869e-19 | L68: 193.0042746 | M68: 0.0002530495157 | N68: 172.582531 | O68: 0.0004268920361 | P68: 97.1 | Q68: 0.005281183977 | R68: 44.3 | S68: 0.0662250882 | T68: 123.8008481 | U68: 0.001907781203 | V68: 88.66075795 | W68: 0.007558920148 | X68: 127.9998828 | Y68: 0.001649278718 | Z68: 94.43542767 | AA68: 0.005902267344 | AB68: 104.4172878 | AC68: 0.003928180154 | AD68: 58.62635926 | AE68: 0.03152978813 | AR68: 166881.6632 | AS68: 677838.9292
C69: 196.5136563 | D69: 0.0002324435002 | E69: 1491.194444 | F69: -44.3 | G69: -4.048491704 | I69: 1491.194444 | J69: -44.3 | K69: -4.048491704 | L69: 196.5136563 | M69: 0.0002324435002 | N69: 176.4984338 | O69: 0.0003846131832 | P69: 97.18436235 | Q69: 0.005262784319 | R69: 44.48460728 | S69: 0.06559330857 | T69: 121.3309192 | U69: 0.002081945383 | V69: 85.17788421 | W69: 0.008813275213 | X69: 130.6738256 | Y69: 0.001506033474 | Z69: 98.02922371 | AA69: 0.005082531865 | AB69: 102.9972627 | AC69: 0.004156032263 | AD69: 56.05814947 | AE69: 0.03596684901 | AR69: 158484.1432 | AS69: 677838.9292
C70: 192.481275 | D70: 0.0002563029613 | E70: 1491.194444 | F70: -49.96666667 | G70: 4.048491704 | I70: 1491.194444 | J70: -49.96666667 | K70: 4.048491704 | L70: 192.481275 | M70: 0.0002563029613 | N70: 170.2489977 | O70: 0.0004547051162 | P70: 102.8463809 | Q70: 0.004181128919 | R70: 50.13041056 | S70: 0.04889277336 | T70: 130.7572804 | U70: 0.001501803064 | V70: 95.04286606 | W70: 0.005753604289 | X70: 129.8370119 | Y70: 0.00154923442 | Z70: 93.77275535 | AA70: 0.006069503387 | AB70: 111.1884087 | AC70: 0.003022430648 | AD70: 65.56326888 | AE70: 0.02222907582 | AR70: 150203.6352 | AS70: 677838.9292
C71: 195.9163796 | D71: 0.0002358056056 | E71: 1491.194444 | F71: -49.96666667 | G71: -4.33680869e-19 | I71: 1491.194444 | J71: -49.96666667 | K71: -4.33680869e-19 | L71: 195.9163796 | M71: 0.0002358056056 | N71: 174.1232546 | O71: 0.0004096308951 | P71: 102.7666667 | Q71: 0.004194458778 | R71: 49.96666667 | S71: 0.0493111629 | T71: 128.293522 | U71: 0.001632790627 | V71: 91.62372934 | W71: 0.006650445909 | X71: 132.3500955 | Y71: 0.001423672983 | Z71: 97.22256825 | AA71: 0.005254475793 | AB71: 109.7066442 | AC71: 0.003197869502 | AD71: 63.0176783 | AE71: 0.0252421091 | AR71: 142039.346 | AS71: 677838.9292
C72: 199.3745091 | D72: 0.0002171081206 | E72: 1491.194444 | F72: -49.96666667 | G72: -4.048491704 | I72: 1491.194444 | J72: -49.96666667 | K72: -4.048491704 | L72: 199.3745091 | M72: 0.0002171081206 | N72: 178.0052665 | O72: 0.0003696795784 | P72: 102.8463809 | Q72: 0.004181128919 | R72: 50.13041056 | S72: 0.04889277336 | T72: 125.9117538 | U72: 0.001772323983 | V72: 88.25785935 | W72: 0.007693081154 | X72: 134.9378615 | Y72: 0.001306674356 | Z72: 100.7169622 | AA72: 0.004554687483 | AB72: 108.3559592 | AC72: 0.003368169526 | AD72: 60.63574771 | AE72: 0.02846560624 | AR72: 133990.4793 | AS72: 677838.9292
C73: 195.5654398 | D73: 0.0002378080108 | E73: 1491.194444 | F73: -55.63333333 | G73: 4.048491704 | I73: 1491.194444 | J73: -55.63333333 | K73: 4.048491704 | L73: 195.5654398 | M73: 0.0002378080108 | N73: 171.9974454 | O73: 0.0004336717108 | P73: 108.5088847 | Q73: 0.003348368447 | R73: 55.78044517 | S73: 0.03648475069 | T73: 135.2562989 | U73: 0.001293071976 | V73: 98.14044217 | W73: 0.005059337051 | X73: 134.3668473 | Y73: 0.001331489114 | Z73: 96.91093667 | AA73: 0.005322688781 | AB73: 116.4459627 | AC73: 0.002484223925 | AD73: 69.97815535 | AE73: 0.01789476746 | AR73: 126056.2361 | AS73: 677838.9292
C74: 198.947299 | D74: 0.0002193200207 | E74: 1491.194444 | F74: -55.63333333 | G74: -4.33680869e-19 | I74: 1491.194444 | J74: -55.63333333 | K74: -4.33680869e-19 | L74: 198.947299 | M74: 0.0002193200207 | N74: 175.8331817 | O74: 0.0003914331148 | P74: 108.4333333 | Q74: 0.003358134043 | R74: 55.63333333 | S74: 0.03676227901 | T74: 132.8759865 | U74: 0.001398931734 | V74: 94.83305214 | W74: 0.005804462022 | X74: 136.7967389 | Y74: 0.001229573795 | Z74: 100.2528193 | AA74: 0.004641145801 | AB74: 115.0319424 | AC74: 0.00261714051 | AD74: 67.59902202 | AE74: 0.02010177231 | AR74: 118235.8148 | AS74: 677838.9292
C75: 202.3536382 | D75: 0.0002023993534 | E75: 1491.194444 | F75: -55.63333333 | G75: -4.048491704 | I75: 1491.194444 | J75: -55.63333333 | K75: -4.048491704 | L75: 202.3536382 | M75: 0.0002023993534 | N75: 179.6782538 | O75: 0.0003538971952 | P75: 108.5088847 | Q75: 0.003348368447 | R75: 55.78044517 | S75: 0.03648475069 | T75: 130.5778302 | U75: 0.001510916878 | V75: 91.58520479 | W75: 0.006661426787 | X75: 139.3019256 | Y75: 0.001133962009 | Z75: 103.6450987 | AA75: 0.004050236975 | AB75: 113.7445115 | AC75: 0.002745413335 | AD75: 65.38420222 | AE75: 0.02242767031 | AR75: 110528.4114 | AS75: 677838.9292
C76: 198.7633353 | D76: 0.0002202807439 | E76: 1491.194444 | F76: -61.3 | G76: 4.048491704 | I76: 1491.194444 | J76: -61.3 | K76: 4.048491704 | L76: 198.7633353 | M76: 0.0002202807439 | N76: 173.9130342 | O76: 0.0004119366669 | P76: 114.1718016 | Q76: 0.002702045017 | R76: 61.43354365 | S76: 0.02733904215 | T76: 139.8402253 | U76: 0.001114575045 | V76: 101.4601824 | W76: 0.004420087168 | X76: 138.9801132 | Y76: 0.001145741579 | Z76: 100.2713911 | AA76: 0.00463765016 | AB76: 121.7402335 | AC76: 0.002051837352 | AD76: 74.56248687 | AE76: 0.01435987797 | AR76: 102933.2195 | AS76: 677838.9292
C77: 202.0916871 | D77: 0.0002036441477 | E77: 1491.194444 | F77: -61.3 | G77: -4.33680869e-19 | I77: 1491.194444 | J77: -61.3 | K77: -4.33680869e-19 | L77: 202.0916871 | M77: 0.0002036441477 | N77: 177.7074281 | O77: 0.0003725760515 | P77: 114.1 | Q77: 0.002709276527 | R77: 61.3 | S77: 0.02752422311 | T77: 137.5392671 | U77: 0.001200278989 | V77: 98.26459179 | W77: 0.005033589338 | X77: 141.3307115 | Y77: 0.001062896176 | Z77: 103.5048308 | AA77: 0.004072876687 | AB77: 120.3884131 | AC77: 0.002153258419 | AD77: 72.33429339 | AE77: 0.01597022862 | AR77: 95449.43079 | AS77: 677838.9292
C78: 205.4458983 | D78: 0.0001883675925 | E78: 1491.194444 | F78: -61.3 | G78: -4.048491704 | I78: 1491.194444 | J78: -61.3 | K78: -4.048491704 | L78: 205.4458983 | M78: 0.0001883675925 | N78: 181.5128015 | O78: 0.0003375001268 | P78: 114.1718016 | Q78: 0.002702045017 | R78: 61.43354365 | S78: 0.02733904215 | T78: 135.3203309 | U78: 0.001290356908 | V78: 95.13396848 | W78: 0.005731681115 | X78: 143.7569084 | Y78: 0.000984678795 | Z78: 106.7938608 | AA78: 0.003578413975 | AB78: 119.1588693 | AC78: 0.002250623804 | AD78: 70.26888445 | AE78: 0.01764394254 | AR78: 88076.2347 | AS78: 677838.9292
C79: 202.069562 | D79: 0.0002037497026 | E79: 1491.194444 | F79: -66.96666667 | G79: 4.048491704 | I79: 1491.194444 | J79: -66.96666667 | K79: 4.048491704 | L79: 202.069562 | M79: 0.0002037497026 | N79: 175.9903063 | O79: 0.000389809487 | P79: 119.835073 | Q79: 0.002196454734 | R79: 67.0889315 | S79: 0.02061299325 | T79: 144.5009794 | U79: 0.0009620629543 | V79: 104.9810128 | W79: 0.003841760328 | X79: 143.6687729 | Y79: 0.0009873989119 | Z79: 103.8325398 | AA79: 0.004020210273 | AB79: 127.0666317 | AC79: 0.001702992102 | AD79: 79.28687718 | AE79: 0.01151237122 | AR79: 80812.819 | AS79: 677838.9292
C80: 205.3443314 | D80: 0.0001888097265 | E80: 1491.194444 | F80: -66.96666667 | G80: -4.33680869e-19 | I80: 1491.194444 | J80: -66.96666667 | K80: -4.33680869e-19 | L80: 205.3443314 | M80: 0.0001888097265 | N80: 179.7408536 | O80: 0.0003533223276 | P80: 119.7666667 | Q80: 0.002201864841 | R80: 66.96666667 | S80: 0.02073763903 | T80: 142.2754176 | U80: 0.001031600252 | V80: 101.8959 | W80: 0.004343315009 | X80: 145.9438743 | Y80: 0.0009199264278 | Z80: 106.9583772 | AA80: 0.003555568488 | AB80: 125.7720734 | AC80: 0.001780931633 | AD80: 77.19517112 | AE80: 0.0126865222 | AR80: 73658.3697 | AS80: 677838.9292
C81: 208.6462594 | D81: 0.0001750462115 | E81: 1491.194444 | F81: -66.96666667 | G81: -4.048491704 | I81: 1491.194444 | J81: -66.96666667 | K81: -4.048491704 | L81: 208.6462594 | M81: 0.0001750462115 | N81: 183.5040642 | O81: 0.0003207115723 | P81: 119.835073 | Q81: 0.002196454734 | R81: 67.0889315 | S81: 0.02061299325 | T81: 140.1314968 | U81: 0.001104247507 | V81: 98.88031353 | W81: 0.004908103693 | X81: 148.294616 | Y81: 0.0008558428297 | Z81: 110.1443287 | AA81: 0.003144845063 | AB81: 124.5956683 | AC81: 0.001855401509 | AD81: 75.26327502 | AE81: 0.01389151719 | AR81: 66612.07125 | AS81: 677838.9292
C82: 246.9557102 | D82: 0.0001138307385 | E82: 2172.458333 | F82: 38.63333333 | G82: -79.74903846 | I82: 2172.458333 | J82: 38.63333333 | K82: -79.74903846 | L82: 246.9557102 | M82: 0.0001138307385 | N82: 249.5575341 | O82: 0.0001082235167 | P82: 80.99755293 | Q82: 0.01550487455 | R82: 88.61401458 | S82: 0.01103474759 | T82: 14.4703584 | U82: 0.3622148884 | V82: 38.74572586 | W82: 0.1284292396 | X82: 163.7629482 | Y82: 0.000792596694 | Z82: 167.660798 | AA82: 0.0007110949399 | AB82: 43.70855095 | AC82: 0.09948727352 | AD82: 56.58866871 | AE82: 0.05098839385 | AR82: 59673.10668 | AS82: 677838.9292
C83: 241.0675833 | D83: 0.0001278522115 | E83: 2172.458333 | F83: 38.63333333 | G83: -73.85096154 | I83: 2172.458333 | J83: 38.63333333 | K83: -73.85096154 | L83: 241.0675833 | M83: 0.0001278522115 | N83: 243.7322706 | O83: 0.0001212656775 | P83: 75.19746648 | Q83: 0.02030097125 | R83: 83.34565954 | S83: 0.0139381026 | T83: 14.4703584 | U83: 0.3622148884 | V83: 38.74572586 | W83: 0.1284292396 | X83: 157.8878062 | Y83: 0.0009373362374 | Z83: 161.9271421 | AA83: 0.0008347862441 | AB83: 38.1767615 | AC83: 0.1321977176 | AD83: 52.43381655 | AE83: 0.06319427705 | AR83: 52840.65772 | AS83: 677838.9292
C84: 246.6955175 | D84: 0.0001144103226 | E84: 2172.458333 | F84: 44.3 | G84: -79.74903846 | I84: 2172.458333 | J84: 44.3 | K84: -79.74903846 | L84: 246.6955175 | M84: 0.0001144103226 | N84: 250.497342 | O84: 0.0001062795222 | P84: 80.20074274 | Q84: 0.01608108002 | R84: 91.22718419 | S84: 0.009854877799 | T84: 8.997045507 | U84: 0.4129712344 | V84: 44.39804982 | W84: 0.09599062253 | X84: 163.3703117 | Y84: 0.0008014040024 | Z84: 169.0564957 | AA84: 0.0006843514993 | AB84: 42.21365871 | AC84: 0.1074911015 | AD84: 60.59895199 | AE84: 0.04154777339 | AR84: 46113.90496 | AS84: 677838.9292
C85: 240.8010284 | D85: 0.0001285342645 | E85: 2172.458333 | F85: 44.3 | G85: -73.85096154 | I85: 2172.458333 | J85: 44.3 | K85: -73.85096154 | L85: 240.8010284 | M85: 0.0001285342645 | N85: 244.6944529 | O85: 0.000118987316 | P85: 74.33851303 | Q85: 0.0211437689 | R85: 86.11883952 | S85: 0.0123140276 | T85: 8.997045507 | U85: 0.4129712344 | V85: 44.39804982 | W85: 0.09599062253 | X85: 157.4805223 | Y85: 0.0009484806596 | Z85: 163.3718302 | AA85: 0.0008013697186 | AB85: 36.45573582 | AC85: 0.1441938976 | AD85: 56.73852901 | AE85: 0.05059734199 | AR85: 39492.02797 | AS85: 677838.9292
C86: 246.5653182 | D86: 0.0001147016647 | E86: 2172.458333 | F86: 49.96666667 | G86: -79.74903846 | I86: 2172.458333 | J86: 49.96666667 | K86: -79.74903846 | L86: 246.5653182 | M86: 0.0001147016647 | N86: 251.5613169 | O86: 0.000104128724 | P86: 79.79935409 | Q86: 0.01638046702 | R86: 94.10938802 | S86: 0.008717660306 | T86: 4.089572793 | U86: 0.4421376889 | V86: 50.05361731 | W86: 0.07151502535 | X86: 163.1736392 | Y86: 0.0008058590938 | Z86: 170.6290612 | AA86: 0.0006556327807 | AB86: 41.44599811 | AC86: 0.1118338493 | AD86: 64.85684821 | AE86: 0.03354251159 | AR86: 32974.20541 | AS86: 677838.9292
C87: 240.6676403 | D87: 0.0001288772023 | E87: 2172.458333 | F87: 49.96666667 | G87: -73.85096154 | I87: 2172.458333 | J87: 49.96666667 | K87: -73.85096154 | L87: 240.6676403 | M87: 0.0001288772023 | N87: 245.7835492 | O87: 0.0001164697216 | P87: 73.90529276 | Q87: 0.021583614 | R87: 89.16631818 | S87: 0.01077249554 | T87: 4.089572793 | U87: 0.4421376889 | V87: 50.05361731 | W87: 0.07151502535 | X87: 157.2764848 | Y87: 0.0009541225168 | Z87: 164.9985839 | AA87: 0.0007656175627 | AB87: 35.564005 | AC87: 0.1507688074 | AD87: 61.26531198 | AE87: 0.04016927829 | AR87: 26559.61521 | AS87: 677838.9292
C88: 246.5653182 | D88: 0.0001147016647 | E88: 2172.458333 | F88: 55.63333333 | G88: -79.74903846 | I88: 2172.458333 | J88: 55.63333333 | K88: -79.74903846 | L88: 246.5653182 | M88: 0.0001147016647 | N88: 252.7478905 | O88: 0.0001017910237 | P88: 79.79935409 | Q88: 0.01638046702 | R88: 97.23670559 | S88: 0.007650550917 | T88: 4.089572793 | U88: 0.4421376889 | V88: 55.71144053 | W88: 0.05334234535 | X88: 163.1736392 | Y88: 0.0008058590938 | Z88: 172.3736538 | AA88: 0.0006254260027 | AB88: 41.44599811 | AC88: 0.1118338493 | AD88: 69.31674227 | AE88: 0.02692304463 | AR88: 20247.43462 | AS88: 677838.9292
C89: 240.6676403 | D89: 0.0001288772023 | E89: 2172.458333 | F89: 55.63333333 | G89: -73.85096154 | I89: 2172.458333 | J89: 55.63333333 | K89: -73.85096154 | L89: 240.6676403 | M89: 0.0001288772023 | N89: 246.9978807 | O89: 0.000113737133 | P89: 73.90529276 | Q89: 0.021583614 | R89: 92.46097716 | S89: 0.009348432908 | T89: 4.089572793 | U89: 0.4421376889 | V89: 55.71144053 | W89: 0.05334234535 | X89: 157.2764848 | Y89: 0.0009541225168 | Z89: 166.8020764 | AA89: 0.0007281640967 | AB89: 35.564005 | AC89: 0.1507688074 | AD89: 65.96846559 | AE89: 0.03174019739 | AR89: 14036.84041 | AS89: 677838.9292
C90: 246.6955175 | D90: 0.0001144103226 | E90: 2172.458333 | F90: 61.3 | G90: -79.74903846 | I90: 2172.458333 | J90: 61.3 | K90: -79.74903846 | L90: 246.6955175 | M90: 0.0001144103226 | N90: 254.0553451 | O90: 9.928727375e-05 | P90: 80.20074274 | Q90: 0.01608108002 | R90: 100.5862771 | S90: 0.006670721044 | T90: 8.997045507 | U90: 0.4129712344 | V90: 61.37089561 | W90: 0.03995541419 | X90: 163.3703117 | Y90: 0.0008014040024 | Z90: 174.2851077 | AA90: 0.0005942028528 | AB90: 42.21365871 | AC90: 0.1074911015 | AD90: 73.94209208 | AE90: 0.02154585778 | AR90: 7927.00894 | AS90: 677838.9292
C91: 240.8010284 | D91: 0.0001285342645 | E91: 2172.458333 | F91: 61.3 | G91: -73.85096154 | I91: 2172.458333 | J91: 61.3 | K91: -73.85096154 | L91: 240.8010284 | M91: 0.0001285342645 | N91: 248.3356102 | O91: 0.000110814866 | P91: 74.33851303 | Q91: 0.0211437689 | R91: 95.97736462 | S91: 0.008061112575 | T91: 8.997045507 | U91: 0.4129712344 | V91: 61.37089561 | W91: 0.03995541419 | X91: 157.4805223 | Y91: 0.0009484806596 | Z91: 168.7766421 | AA91: 0.0006896171085 | AB91: 36.45573582 | AC91: 0.1441938976 | AD91: 70.8128567 | AE91: 0.02503612985 | AR91: 1917.116313 | AS91: 677838.9292
C92: 246.9557102 | D92: 0.0001138307385 | E92: 2172.458333 | F92: 66.96666667 | G92: -79.74903846 | I92: 2172.458333 | J92: 66.96666667 | K92: -79.74903846 | L92: 246.9557102 | M92: 0.0001138307385 | N92: 255.4818248 | O92: 9.663890842e-05 | P92: 80.99755293 | Q92: 0.01550487455 | R92: 104.1366582 | S92: 0.005786696249 | T92: 14.4703584 | U92: 0.3622148884 | V92: 67.03156922 | W92: 0.03011524752 | X92: 163.7629482 | Y92: 0.000792596694 | Z92: 176.3579973 | AA92: 0.0005624069879 | AB92: 43.70855095 | AC92: 0.09948727352 | AD92: 78.70373197 | AE92: 0.01723015931 | AR92: -3993.661533 | AS92: 677838.9292
C93: 241.0675833 | D93: 0.0001278522115 | E93: 2172.458333 | F93: 66.96666667 | G93: -73.85096154 | I93: 2172.458333 | J93: 66.96666667 | K93: -73.85096154 | L93: 241.0675833 | M93: 0.0001278522115 | N93: 249.7947552 | O93: 0.0001077288511 | P93: 75.19746648 | Q93: 0.02030097125 | R93: 99.69202057 | S93: 0.006917375705 | T93: 14.4703584 | U93: 0.3622148884 | V93: 67.03156922 | W93: 0.03011524752 | X93: 157.8878062 | Y93: 0.0009373362374 | Z93: 170.9163519 | AA93: 0.0006505415903 | AB93: 38.1767615 | AC93: 0.1321977176 | AD93: 75.7714004 | AE93: 0.01975878591 | AR93: -9806.148694 | AS93: 677838.9292
C94: 262.9571882 | D94: 8.406275802e-05 | E94: 2172.458333 | F94: -38.63333333 | G94: -79.74903846 | I94: 2172.458333 | J94: -38.63333333 | K94: -79.74903846 | L94: 262.9571882 | M94: 8.406275802e-05 | N94: 249.5575341 | O94: 0.0001082235167 | P94: 121.325857 | Q94: 0.003033645646 | R94: 88.61401458 | S94: 0.01103474759 | T94: 91.48087927 | U94: 0.009748225868 | V94: 38.74572586 | W94: 0.1284292396 | X94: 187.0231622 | Y94: 0.0004274431458 | Z94: 167.660798 | AA94: 0.0007110949399 | AB94: 100.3483803 | AC94: 0.006735332646 | AD94: 56.58866871 | AE94: 0.05098839385 | AR94: -15521.16919 | AS94: 677838.9292
C95: 257.4353117 | D95: 9.314752126e-05 | E95: 2172.458333 | F95: -38.63333333 | G95: -73.85096154 | I95: 2172.458333 | J95: -38.63333333 | K95: -73.85096154 | L95: 257.4353117 | M95: 9.314752126e-05 | N95: 243.7322706 | O95: 0.0001212656775 | P95: 117.5330548 | Q95: 0.003478062629 | R95: 83.34565954 | S95: 0.0139381026 | T95: 91.48087927 | U95: 0.009748225868 | V95: 38.74572586 | W95: 0.1284292396 | X95: 181.9008503 | Y95: 0.0004868063841 | Z95: 161.9271421 | AA95: 0.0008347862441 | AB95: 98.06541245 | AC95: 0.00739351166 | AD95: 52.43381655 | AE95: 0.06319427705 | AR95: -21139.54685 | AS95: 677838.9292
C96: 264.9808264 | D96: 8.100082779e-05 | E96: 2172.458333 | F96: -44.3 | G96: -79.74903846 | I96: 2172.458333 | J96: -44.3 | K96: -79.74903846 | L96: 264.9808264 | M96: 8.100082779e-05 | N96: 250.497342 | O96: 0.0001062795222 | P96: 125.6515783 | Q96: 0.00260543927 | R96: 91.22718419 | S96: 0.009854877799 | T96: 97.14477252 | U96: 0.007679694698 | V96: 44.39804982 | W96: 0.09599062253 | X96: 189.8578909 | Y96: 0.0003982929347 | Z96: 169.0564957 | AA96: 0.0006843514993 | AB96: 105.5374482 | AC96: 0.005475760819 | AD96: 60.59895199 | AE96: 0.04154777339 | AR96: -26662.1052 | AS96: 677838.9292
C97: 259.502014 | D97: 8.961631748e-05 | E97: 2172.458333 | F97: -44.3 | G97: -73.85096154 | I97: 2172.458333 | J97: -44.3 | K97: -73.85096154 | L97: 259.502014 | M97: 8.961631748e-05 | N97: 244.6944529 | O97: 0.000118987316 | P97: 121.993338 | Q97: 0.002962483057 | R97: 86.11883952 | S97: 0.0123140276 | T97: 97.14477252 | U97: 0.007679694698 | V97: 44.39804982 | W97: 0.09599062253 | X97: 184.8141632 | Y97: 0.0004519253541 | Z97: 163.3718302 | AA97: 0.0008013697186 | AB97: 103.3691476 | AC97: 0.005965710301 | AD97: 56.73852901 | AE97: 0.05059734199 | AR97: -32089.66737 | AS97: 677838.9292
C98: 267.1093711 | D98: 7.792266546e-05 | E98: 2172.458333 | F98: -49.96666667 | G98: -79.74903846 | I98: 2172.458333 | J98: -49.96666667 | K98: -79.74903846 | L98: 267.1093711 | M98: 7.792266546e-05 | N98: 251.5613169 | O98: 0.000104128724 | P98: 130.0803479 | Q98: 0.002238496939 | R98: 94.10938802 | S98: 0.008717660306 | T98: 102.8089714 | U98: 0.006100415157 | V98: 50.05361731 | W98: 0.07151502535 | X98: 192.8175213 | Y98: 0.0003703414218 | Z98: 170.6290612 | AA98: 0.0006556327807 | AB98: 110.7733305 | AC98: 0.004473167927 | AD98: 64.85684821 | AE98: 0.03354251159 | AR98: -37423.05597 | AS98: 677838.9292
C99: 261.6751289 | D99: 8.607415842e-05 | E99: 2172.458333 | F99: -49.96666667 | G99: -73.85096154 | I99: 2172.458333 | J99: -49.96666667 | K99: -73.85096154 | L99: 261.6751289 | M99: 8.607415842e-05 | N99: 245.7835492 | O99: 0.0001164697216 | P99: 126.5501968 | Q99: 0.00252560236 | R99: 89.16631818 | S99: 0.01077249554 | T99: 102.8089714 | U99: 0.006100415157 | V99: 50.05361731 | W99: 0.07151502535 | X99: 187.8532743 | Y99: 0.0004186521705 | Z99: 164.9985839 | AA99: 0.0007656175627 | AB99: 108.7095141 | AC99: 0.004840548849 | AD99: 61.26531198 | AE99: 0.04016927829 | AR99: -42663.09297 | AS99: 677838.9292
C100: 269.3403352 | D100: 7.484502167e-05 | E100: 2172.458333 | F100: -55.63333333 | G100: -79.74903846 | I100: 2172.458333 | J100: -55.63333333 | K100: -79.74903846 | L100: 269.3403352 | M100: 7.484502167e-05 | N100: 252.7478905 | O100: 0.0001017910237 | P100: 134.6019945 | Q100: 0.001924806108 | R100: 97.23670559 | S100: 0.007650550917 | T100: 108.4734281 | U100: 0.004884767706 | V100: 55.71144053 | W100: 0.05334234535 | X100: 195.8963923 | Y100: 0.0003437006078 | Z100: 172.3736538 | AA100: 0.0006254260027 | AB100: 116.0496909 | AC100: 0.003672247433 | AD100: 69.31674227 | AE100: 0.02692304463 | AR100: -47810.59965 | AS100: 677838.9292
C101: 263.952028 | D101: 8.254053928e-05 | E101: 2172.458333 | F101: -55.63333333 | G101: -73.85096154 | I101: 2172.458333 | J101: -55.63333333 | K101: -73.85096154 | L101: 263.952028 | M101: 8.254053928e-05 | N101: 246.9978807 | O101: 0.000113737133 | P101: 131.1935681 | Q101: 0.002156022611 | R101: 92.46097716 | S101: 0.009348432908 | T101: 108.4734281 | U101: 0.004884767706 | V101: 55.71144053 | W101: 0.05334234535 | X101: 191.0121794 | Y101: 0.0003871032581 | Z101: 166.8020764 | AA101: 0.0007281640967 | AB101: 114.0813677 | AC101: 0.003949770019 | AD101: 65.96846559 | AE101: 0.03174019739 | AR101: -52866.39644 | AS101: 677838.9292
C102: 271.6711953 | D102: 7.178324952e-05 | E102: 2172.458333 | F102: -61.3 | G102: -79.74903846 | I102: 2172.458333 | J102: -61.3 | K102: -79.74903846 | L102: 271.6711953 | M102: 7.178324952e-05 | N102: 254.0553451 | O102: 9.928727375e-05 | P102: 139.207468 | Q102: 0.001657036953 | R102: 100.5862771 | S102: 0.006670721044 | T102: 114.1381042 | U102: 0.003941435757 | V102: 61.37089561 | W102: 0.03995541419 | X102: 199.0889719 | Y102: 0.0003184451569 | Z102: 174.2851077 | AA102: 0.0005942028528 | AB102: 121.3612499 | AC102: 0.003029822475 | AD102: 73.94209208 | AE102: 0.02154585778 | AR102: -57831.30286 | AS102: 677838.9292
C103: 266.3300495 | D103: 7.903319362e-05 | E103: 2172.458333 | F103: -61.3 | G103: -73.85096154 | I103: 2172.458333 | J103: -61.3 | K103: -73.85096154 | L103: 266.3300495 | M103: 7.903319362e-05 | N103: 248.3356102 | O103: 0.000110814866 | P103: 135.9145854 | Q103: 0.001843619265 | R103: 95.97736462 | S103: 0.008061112575 | T103: 114.1381042 | U103: 0.003941435757 | V103: 61.37089561 | W103: 0.03995541419 | X103: 194.2850352 | Y103: 0.0003573484946 | Z103: 168.7766421 | AA103: 0.0006896171085 | AB103: 119.4804615 | AC103: 0.003241027368 | AD103: 70.8128567 | AE103: 0.02503612985 | AR103: -62706.13741 | AS103: 677838.9292
C104: 274.0994032 | D104: 6.875124215e-05 | E104: 2172.458333 | F104: -66.96666667 | G104: -79.74903846 | I104: 2172.458333 | J104: -66.96666667 | K104: -79.74903846 | L104: 274.0994032 | M104: 6.875124215e-05 | N104: 255.4818248 | O104: 9.663890842e-05 | P104: 143.8887194 | Q104: 0.001428634393 | R104: 104.1366582 | S104: 0.005786696249 | T104: 119.8029685 | U104: 0.00320361857 | V104: 67.03156922 | W104: 0.03011524752 | X104: 202.3898792 | Y104: 0.0002946172295 | Z104: 176.3579973 | AA104: 0.0005624069879 | AB104: 126.703581 | AC104: 0.002512263109 | AD104: 78.70373197 | AE104: 0.01723015931 | AR104: -67491.71747 | AS104: 677838.9292
C105: 268.8065098 | D105: 7.556803364e-05 | E105: 2172.458333 | F105: -66.96666667 | G105: -73.85096154 | I105: 2172.458333 | J105: -66.96666667 | K105: -73.85096154 | L105: 268.8065098 | M105: 7.556803364e-05 | N105: 249.7947552 | O105: 0.0001077288511 | P105: 140.7054333 | Q105: 0.001579562032 | R105: 99.69202057 | S105: 0.006917375705 | T105: 119.8029685 | U105: 0.00320361857 | V105: 67.03156922 | W105: 0.03011524752 | X105: 197.6661816 | Y105: 0.0003294180655 | Z105: 170.9163519 | AA105: 0.0006505415903 | AB105: 124.903263 | AC105: 0.002674184366 | AD105: 75.7714004 | AE105: 0.01975878591 | AR105: -72188.85919 | AS105: 677838.9292
AR106: -76798.37745 | AS106: 677838.9292
AR107: -81321.08571 | AS107: 677838.9292
AR108: -85757.79596 | AS108: 677838.9292
AR109: -90109.3186 | AS109: 677838.9292
AR110: -94376.46239 | AS110: 677838.9292
AR111: -98560.03436 | AS111: 677838.9292
AR112: -102660.8397 | AS112: 677838.9292
AR113: -106679.6816 | AS113: 677838.9292
AR114: -110617.3616 | AS114: 677838.9292
AR115: -114474.6787 | AS115: 677838.9292
AR116: -118252.4301 | AS116: 677838.9292
AR117: -121951.4106 | AS117: 677838.9292
AR118: -125572.413 | AS118: 677838.9292
AR119: -129116.2274 | AS119: 677838.9292
AR120: -132583.6417 | AS120: 677838.9292
AR121: -135975.4412 | AS121: 677838.9292
AR122: -139292.4087 | AS122: 677838.9292
AR123: -142535.3242 | AS123: 677838.9292
AR124: -145704.9653 | AS124: 677838.9292
AR125: -148802.1067 | AS125: 677838.9292
AR126: -151827.5202 | AS126: 677838.9292
AR127: -154781.9748 | AS127: 677838.9292
AR128: -157666.2366 | AS128: 677838.9292
AR129: -160481.0687 | AS129: 677838.9292
AR130: -163227.2312 | AS130: 677838.9292
AR131: -165905.4808 | AS131: 677838.9292
AR132: -168516.5715 | AS132: 677838.9292
AR133: -171061.2538 | AS133: 677838.9292
AR134: -173540.275 | AS134: 677838.9292
AR135: -175954.3791 | AS135: 677838.9292
AR136: -178304.3067 | AS136: 677838.9292
AR137: -180590.7952 | AS137: 677838.9292
AR138: -182814.5784 | AS138: 677838.9292
AR139: -184976.3864 | AS139: 677838.9292
AR140: -187076.9463 | AS140: 677838.9292
AR141: -189116.9811 | AS141: 677838.9292
AR142: -191097.2104 | AS142: 677838.9292
AR143: -193018.3503 | AS143: 677838.9292
AR144: -194881.1129 | AS144: 677838.9292
AR145: -196686.2068 | AS145: 677838.9292
AR146: -198434.3367 | AS146: 677838.9292
AR147: -200126.2036 | AS147: 677838.9292
AR148: -201762.5046 | AS148: 677838.9292
AR149: -203343.933 | AS149: 677838.9292
AR150: -204871.1781 | AS150: 677838.9292
AR151: -206344.9253 | AS151: 677838.9292
AR152: -207765.8561 | AS152: 677838.9292
AR153: -209134.648 | AS153: 677838.9292
AR154: -210451.9745 | AS154: 677838.9292
AR155: -211718.5049 | AS155: 677838.9292
AR156: -212934.9046 | AS156: 677838.9292
AR157: -214101.8349 | AS157: 677838.9292
AR158: -215219.953 | AS158: 677838.9292
AR159: -216289.9118 | AS159: 677838.9292
AR160: -217312.3602 | AS160: 677838.9292
AR161: -218287.9429 | AS161: 677838.9292
AR162: -219217.3004 | AS162: 677838.9292
AR163: -220101.0688 | AS163: 677838.9292
AR164: -220939.8803 | AS164: 677838.9292
AR165: -221734.3625 | AS165: 677838.9292
AR166: -222485.1391 | AS166: 677838.9292
AR167: -223192.8291 | AS167: 677838.9292
AR168: -223858.0476 | AS168: 677838.9292
AR169: -224481.4051 | AS169: 677838.9292
AR170: -225063.5078 | AS170: 677838.9292
AR171: -225604.9578 | AS171: 677838.9292
AR172: -226106.3526 | AS172: 677838.9292
AR173: -226568.2854 | AS173: 677838.9292
AR174: -226991.3452 | AS174: 677838.9292
AR175: -227376.1163 | AS175: 677838.9292
AR176: -227723.1788 | AS176: 677838.9292
AR177: -228033.1086 | AS177: 677838.9292
AR178: -228306.4768 | AS178: 677838.9292
AR179: -228543.8503 | AS179: 677838.9292
AR180: -228745.7917 | AS180: 677838.9292
AR181: -228912.859 | AS181: 677838.9292
AR182: -229045.6059 | AS182: 677838.9292
AR183: -229144.5815 | AS183: 677838.9292
AR184: -229210.3306 | AS184: 677838.9292
AR185: -229243.3937 | AS185: 677838.9292
AR186: -229244.3066 | AS186: 677838.9292
AR187: -229213.6009 | AS187: 677838.9292
AR188: -229151.8037 | AS188: 677838.9292
AR189: -229059.4375 | AS189: 677838.9292
AR190: -228937.0207 | AS190: 677838.9292
AR191: -228785.0669 | AS191: 677838.9292
AR192: -228604.0856 | AS192: 677838.9292
AR193: -228394.5818 | AS193: 677838.9292
AR194: -228157.0558 | AS194: 677838.9292
AR195: -227892.0039 | AS195: 677838.9292
AR196: -227599.9178 | AS196: 677838.9292
AR197: -227281.2848 | AS197: 677838.9292
AR198: -226936.5877 | AS198: 677838.9292
AR199: -226566.3051 | AS199: 677838.9292
AR200: -226170.9111 | AS200: 677838.9292
... 925 more rows

Sheet TESTT (hidden)
F1: Psoil | G1: ImpactF | H1: Eprime | I1: Kb | J1: Kz | M1: BsnqIF
F2: 3.333333333 | G2: 1.5 | H2: 879.6869627 | I2: 0.189 | J2: 0.103 | M2: 3.776272885 | S2: 19 | T2: 20 | U2: 21 | V2: 22 | W2: 23 | X2: 24 | Y2: 25 | Z2: 26 | AA2: 27 | AB2: 28 | AC2: 29 | AD2: 30 | AE2: 31 | AF2: 32
M3: BsnqMAX | N3: Location of MAX
M4: 2.517515256 | N4: Location 1 | S4: Hoop | X4: Total Hoop | Z4: Total Hoop/SMYS | AE4: Beta | AF4: 1.34827
M5: VBA SUM | O5: VBA SUM | S5: Soil Load | T5: Live Load | U5: Internal Pressure | X5: High | Y5: Low | Z5: High | AA5: Low | AE5: LocalZero | AF5: 1825.11
M6: 2.517515256 | O6: 1.757557034 | Q6: 6 | R6: Zero | S6: 4970.800437 | T6: 5631.329672 | U6: 0 | X6: 10602.13011 | Y6: -10602.13011 | Z6: 0.2038871175 | AA6: -0.2038871175 | AE6: LocalMOP | AF6: 449.386
C7: Formula | D7: Formula | M7: Sum | O7: Sum | Q7: 7 | R7: MOP | S7: 1223.932461 | T7: 1386.57089 | U7: 56504 | X7: 59114.50335 | Y7: 53893.49665 | Z7: 1.136817372 | AA7: 1.036413397 | AE7: Inertia | AF7: 10621.58
C8: =SQRT((37.25-F8)^2+(0-G8)^2) -> 37.25 | D8: =(3*E8)/(2*PI()*(12*4)^2*(1+((L8/(12*4))^2))^2.5) ->  | E8: Array by Tire | I8: Mega-Array | M8: =SUM(M10:M111) -> 2.517515256 | O8: =SUM(O10:O111) -> 1.757557034 | Q8: 8 | S8: Longitudinal | X8: Total Longitudinal | Z8: Total Longitudinal/SMYS | AE8: Lambda | AF8: 8.337
C9: DistR | D9: Bousin | E9: load | F9: x | G9: y | I9: Load | J9: x | K9: y | L9: DistRMP1 | M9: Bsnq1 | N9: DistRMP2 | O9: Bsnq2 | Q9: 9 | S9: Soil Load | T9: Live Load | U9: Internal Pressure | V9: Thermal Expansion | X9: High | Y9: Low | Z9: High | AA9: Low | AE9: Wsurf | AF9: 18222.35
C10: 46.48930356 | D10: 0.01554208129 | E10: 392.1568627 | F10: 31.38333133 | G10: 46.11764894 | I10: 392.1568627 | J10: 31.38333133 | K10: 46.11764894 | L10: 46.4893033 | M10: 0.01554208129 | N10: 55.78307117 | O10: 0.009593524538 | Q10: 10 | R10: Zero | S10: 1491.240131 | T10: 2649.220031 | U10: 0 | V10: 3900 | X10: 8040.460162 | Y10: -240.4601625 | Z10: 0.1546242339 | AA10: -0.004624233894 | AE10: Lload | AF10: 27.601
C11: 40.77717248 | D11: 0.02089441616 | E11: 392.1568627 | F11: 31.38333133 | G11: 40.35294282 | I11: 392.1568627 | J11: 31.38333133 | K11: 40.35294282 | L11: 40.7771722 | M11: 0.02089441616 | N11: 51.12018662 | O11: 0.0122127653 | Q11: 11 | R11: MOP | S11: 367.1797384 | T11: 1273.496496 | U11: 16951.2 | V11: 3900 | X11: 22491.87623 | Y11: 19210.52377 | Z11: 0.4325360814 | AA11: 0.3694331493 | AE11: Ppipe | AF11: 7.614
C12: 35.08224508 | D12: 0.02787557868 | E12: 392.1568627 | F12: 31.38333133 | G12: 34.58823671 | I12: 392.1568627 | J12: 31.38333133 | K12: 34.58823671 | L12: 35.08224474 | M12: 0.02787557868 | N12: 46.70395705 | O12: 0.01536936611 | Q12: 12 | X12: Tresca | Z12: Tresca Equivalent/SMYS | AE12: LiveBend | AF12: 824.11
C13: 29.41451541 | D13: 0.03662234156 | E13: 392.1568627 | F13: 31.38333133 | G13: 28.82353059 | I13: 392.1568627 | J13: 31.38333133 | K13: 28.82353059 | L13: 29.41451501 | M13: 0.03662234156 | N13: 42.61114175 | O13: 0.01900896459 | Q13: 13 | X13: High | Y13: Low | Z13: High | AA13: Low
C14: 23.7934274 | D14: 0.0469215198 | E14: 392.1568627 | F14: 31.38333133 | G14: 23.05882447 | I14: 392.1568627 | J14: 31.38333133 | K14: 23.05882447 | L14: 23.7934269 | M14: 0.0469215198 | N14: 38.94384254 | O14: 0.02295035936 | Q14: 14 | W14: Zero | X14: 18642.59027 | Y14: 10361.66995 | Z14: 0.3585113514 | AA14: 0.1992628836
C15: 18.26210094 | D15: 0.0579618147 | E15: 392.1568627 | F15: 31.38333133 | G15: 17.29411835 | I15: 392.1568627 | J15: 31.38333133 | K15: 17.29411835 | L15: 18.2621003 | M15: 0.0579618147 | N15: 35.83294595 | O15: 0.0268530628 | Q15: 15 | W15: MOP | X15: 59114.50335 | Y15: 53893.49665 | Z15: 1.136817372 | AA15: 1.036413397
C16: 12.93619526 | D16: 0.06820110646 | E16: 392.1568627 | F16: 31.38333133 | G16: 11.52941224 | I16: 392.1568627 | J16: 31.38333133 | K16: 11.52941224 | L16: 12.93619435 | M16: 0.06820110646 | N16: 33.43412676 | O16: 0.03023259368 | Q16: 16 | X16: Von Mises | Z16: Von Mises Equivalent/SMYS
C17: 8.224939992 | D17: 0.07559596239 | E17: 392.1568627 | F17: 31.38333133 | G17: 5.764706118 | I17: 392.1568627 | J17: 31.38333133 | K17: 5.764706118 | L17: 8.224938565 | M17: 0.07559596239 | N17: 31.90838953 | O17: 0.03255205067 | Q17: 17 | X17: High | Y17: Low | Z17: High | AA17: Low
C18: 5.866668667 | D18: 0.07831043887 | E18: 392.1568627 | F18: 31.38333133 | G18: 0 | I18: 392.1568627 | J18: 31.38333133 | K18: 0 | L18: 5.866666667 | M18: 0.07831043887 | N18: 31.38333133 | O18: 0.03338057352 | Q18: 18 | W18: Zero | X18: 16195.6836 | Y18: 9581.657356 | Z18: 0.3114554538 | AA18: 0.1842626415
C19: 8.224939992 | D19: 0.07559596239 | E19: 392.1568627 | F19: 31.38333133 | G19: -5.764706118 | I19: 392.1568627 | J19: 31.38333133 | K19: -5.764706118 | L19: 8.224938565 | M19: 0.07559596239 | N19: 31.90838953 | O19: 0.03255205067 | Q19: 19 | W19: MOP | X19: 52229.76315 | Y19: 46885.26017 | Z19: 1.004418522 | AA19: 0.9016396186
C20: 12.93619526 | D20: 0.06820110646 | E20: 392.1568627 | F20: 31.38333133 | G20: -11.52941224 | I20: 392.1568627 | J20: 31.38333133 | K20: -11.52941224 | L20: 12.93619435 | M20: 0.06820110646 | N20: 33.43412676 | O20: 0.03023259368
C21: 18.26210094 | D21: 0.0579618147 | E21: 392.1568627 | F21: 31.38333133 | G21: -17.29411835 | I21: 392.1568627 | J21: 31.38333133 | K21: -17.29411835 | L21: 18.2621003 | M21: 0.0579618147 | N21: 35.83294595 | O21: 0.0268530628
C22: 23.7934274 | D22: 0.0469215198 | E22: 392.1568627 | F22: 31.38333133 | G22: -23.05882447 | I22: 392.1568627 | J22: 31.38333133 | K22: -23.05882447 | L22: 23.7934269 | M22: 0.0469215198 | N22: 38.94384254 | O22: 0.02295035936 | W22: MomentMAX | Y22: Mmax | Z22: Mtest1 | AA22: Mmin1 | AB22: Mtest2 | AC22: Mmin2
C23: 29.41451541 | D23: 0.03662234156 | E23: 392.1568627 | F23: 31.38333133 | G23: -28.82353059 | I23: 392.1568627 | J23: 31.38333133 | K23: -28.82353059 | L23: 29.41451501 | M23: 0.03662234156 | N23: 42.61114175 | O23: 0.01900896459 | R23: Mtest1 Function | W23: 416826.1081 | Y23: 416826.1081 | Z23: 416826.1081 | AA23: 416826.1081 | AB23: 319687.946 | AC23: 319687.946 | AE23: Mtest2 Function
C24: 35.08224508 | D24: 0.02787557868 | E24: 392.1568627 | F24: 31.38333133 | G24: -34.58823671 | I24: 392.1568627 | J24: 31.38333133 | K24: -34.58823671 | L24: 35.08224474 | M24: 0.02787557868 | N24: 46.70395705 | O24: 0.01536936611 | Z24: 416702.4337 | AA24: 416826.1081 | AB24: 312895.5929 | AC24: 319687.946
C25: 40.77717248 | D25: 0.02089441616 | E25: 392.1568627 | F25: 31.38333133 | G25: -40.35294282 | I25: 392.1568627 | J25: 31.38333133 | K25: -40.35294282 | L25: 40.7771722 | M25: 0.02089441616 | N25: 51.12018662 | O25: 0.0122127653 | Z25: 416331.4064 | AA25: 416826.1081 | AB25: 306172.4219 | AC25: 319687.946
C26: 46.48930356 | D26: 0.01554208129 | E26: 392.1568627 | F26: 31.38333133 | G26: -46.11764894 | I26: 392.1568627 | J26: 31.38333133 | K26: -46.11764894 | L26: 46.4893033 | M26: 0.01554208129 | N26: 55.78307117 | O26: 0.009593524538 | Z26: 415713.0141 | AA26: 416826.1081 | AB26: 299518.2158 | AC26: 319687.946
C27: 46.11764894 | D27: 0.01584566064 | E27: 392.1568627 | F27: 37.249998 | G27: 46.11764894 | I27: 392.1568627 | J27: 37.249998 | K27: 46.11764894 | L27: 46.11764894 | M27: 0.01584566064 | N27: 59.28237423 | O27: 0.008018922224 | Z27: 414847.2367 | AA27: 416826.1081 | AB27: 292932.7516 | AC27: 319687.946
C28: 40.35294282 | D28: 0.02135461495 | E28: 392.1568627 | F28: 37.249998 | G28: 40.35294282 | I28: 392.1568627 | J28: 37.249998 | K28: 40.35294282 | L28: 40.35294282 | M28: 0.02135461495 | N28: 54.91741386 | O28: 0.01003140317 | Z28: 413734.046 | AA28: 416826.1081 | AB28: 286415.8005 | AC28: 319687.946
C29: 34.58823671 | D29: 0.02856586918 | E29: 392.1568627 | F29: 37.249998 | G29: 34.58823671 | I29: 392.1568627 | J29: 37.249998 | K29: 34.58823671 | L29: 34.58823671 | M29: 0.02856586918 | N29: 50.83215979 | O29: 0.0123970187 | Z29: 412373.406 | AA29: 416826.1081 | AB29: 279967.128 | AC29: 319687.946
C30: 28.82353059 | D30: 0.03763585074 | E30: 392.1568627 | F30: 37.249998 | G30: 28.82353059 | I30: 392.1568627 | J30: 37.249998 | K30: 28.82353059 | L30: 28.82353059 | M30: 0.03763585074 | N30: 47.09945081 | O30: 0.01505610054 | Z30: 410765.2723 | AA30: 416826.1081 | AB30: 273586.494 | AC30: 319687.946
C31: 23.05882447 | D31: 0.04835825448 | E31: 392.1568627 | F31: 37.249998 | G31: 23.05882447 | I31: 392.1568627 | J31: 37.249998 | K31: 23.05882447 | L31: 23.05882447 | M31: 0.04835825448 | N31: 43.80949369 | O31: 0.01786497254 | Z31: 408909.5929 | AA31: 416826.1081 | AB31: 267273.653 | AC31: 319687.946
C32: 17.29411835 | D32: 0.05989677039 | E32: 392.1568627 | F32: 37.249998 | G32: 17.29411835 | I32: 392.1568627 | J32: 37.249998 | K32: 17.29411835 | L32: 17.29411835 | M32: 0.05989677039 | N32: 41.06883101 | O32: 0.02058335306 | Z32: 406806.3077 | AA32: 416826.1081 | AB32: 261028.3545 | AC32: 319687.946
C33: 11.52941224 | D33: 0.07063475844 | E33: 392.1568627 | F33: 37.249998 | G33: 11.52941224 | I33: 392.1568627 | J33: 37.249998 | K33: 11.52941224 | L33: 11.52941224 | M33: 0.07063475844 | N33: 38.99345711 | O33: 0.0228923923 | Z33: 404455.3488 | AA33: 416826.1081 | AB33: 254850.3424 | AC33: 319687.946
C34: 5.764706118 | D34: 0.07840981596 | E34: 392.1568627 | F34: 37.249998 | G34: 5.764706118 | I34: 392.1568627 | J34: 37.249998 | K34: 5.764706118 | L34: 5.764706118 | M34: 0.07840981596 | N34: 37.69342367 | O34: 0.0244550872 | Z34: 401856.6402 | AA34: 416826.1081 | AB34: 248739.3558 | AC34: 319687.946
C35: 2.000000002e-06 | D35: 0.08126784267 | E35: 392.1568627 | F35: 37.249998 | G35: 0 | I35: 392.1568627 | J35: 37.249998 | K35: 0 | L35: 0 | M35: 0.08126784267 | N35: 37.249998 | O35: 0.02500917686 | Z35: 399010.0984 | AA35: 416826.1081 | AB35: 242695.1288 | AC35: 319687.946
C36: 5.764706118 | D36: 0.07840981596 | E36: 392.1568627 | F36: 37.249998 | G36: -5.764706118 | I36: 392.1568627 | J36: 37.249998 | K36: -5.764706118 | L36: 5.764706118 | M36: 0.07840981596 | N36: 37.69342367 | O36: 0.0244550872 | Z36: 395915.6318 | AA36: 416826.1081 | AB36: 236717.3908 | AC36: 319687.946
C37: 11.52941224 | D37: 0.07063475844 | E37: 392.1568627 | F37: 37.249998 | G37: -11.52941224 | I37: 392.1568627 | J37: 37.249998 | K37: -11.52941224 | L37: 11.52941224 | M37: 0.07063475844 | N37: 38.99345711 | O37: 0.0228923923 | Z37: 392573.1415 | AA37: 416826.1081 | AB37: 230805.8664 | AC37: 319687.946
C38: 17.29411835 | D38: 0.05989677039 | E38: 392.1568627 | F38: 37.249998 | G38: -17.29411835 | I38: 392.1568627 | J38: 37.249998 | K38: -17.29411835 | L38: 17.29411835 | M38: 0.05989677039 | N38: 41.06883101 | O38: 0.02058335306 | Z38: 388982.5207 | AA38: 416826.1081 | AB38: 224960.2756 | AC38: 319687.946
C39: 23.05882447 | D39: 0.04835825448 | E39: 392.1568627 | F39: 37.249998 | G39: -23.05882447 | I39: 392.1568627 | J39: 37.249998 | K39: -23.05882447 | L39: 23.05882447 | M39: 0.04835825448 | N39: 43.80949369 | O39: 0.01786497254 | Z39: 385143.6549 | AA39: 416826.1081 | AB39: 219180.3341 | AC39: 319687.946
C40: 28.82353059 | D40: 0.03763585074 | E40: 392.1568627 | F40: 37.249998 | G40: -28.82353059 | I40: 392.1568627 | J40: 37.249998 | K40: -28.82353059 | L40: 28.82353059 | M40: 0.03763585074 | N40: 47.09945081 | O40: 0.01505610054 | Z40: 381056.4222 | AA40: 416826.1081 | AB40: 213465.753 | AC40: 319687.946
C41: 34.58823671 | D41: 0.02856586918 | E41: 392.1568627 | F41: 37.249998 | G41: -34.58823671 | I41: 392.1568627 | J41: 37.249998 | K41: -34.58823671 | L41: 34.58823671 | M41: 0.02856586918 | N41: 50.83215979 | O41: 0.0123970187 | R41: Max Value for Mtest1 Function | Z41: 376720.6935 | AA41: 416826.1081 | AB41: 207816.2395 | AC41: 319687.946 | AE41: Max Value for Mtest Function
C42: 40.35294282 | D42: 0.02135461495 | E42: 392.1568627 | F42: 37.249998 | G42: -40.35294282 | I42: 392.1568627 | J42: 37.249998 | K42: -40.35294282 | L42: 40.35294282 | M42: 0.02135461495 | N42: 54.91741386 | O42: 0.01003140317 | Z42: 372136.3319 | AA42: 416826.1081 | AB42: 202231.4964 | AC42: 319687.946
C43: 46.11764894 | D43: 0.01584566064 | E43: 392.1568627 | F43: 37.249998 | G43: -46.11764894 | I43: 392.1568627 | J43: 37.249998 | K43: -46.11764894 | L43: 46.11764894 | M43: 0.01584566064 | N43: 59.28237423 | O43: 0.008018922224 | Z43: 367303.1936 | AA43: 416826.1081 | AB43: 196711.2226 | AC43: 319687.946
C44: 46.48930305 | D44: 0.01554208129 | E44: 392.1568627 | F44: 43.11666467 | G44: 46.11764894 | I44: 392.1568627 | J44: 43.11666467 | K44: 46.11764894 | L44: 46.4893033 | M44: 0.01554208129 | N44: 63.1338603 | O44: 0.00659961002 | Z44: 362221.1274 | AA44: 416826.1081 | AB44: 191255.113 | AC44: 319687.946
C45: 40.77717191 | D45: 0.02089441616 | E45: 392.1568627 | F45: 43.11666467 | G45: 40.35294282 | I45: 392.1568627 | J45: 43.11666467 | K45: 40.35294282 | L45: 40.7771722 | M45: 0.02089441616 | N45: 59.05426967 | O45: 0.008112687457 | Z45: 356889.9749 | AA45: 416826.1081 | AB45: 185862.8588 | AC45: 319687.946
C46: 35.08224441 | D46: 0.02787557868 | E46: 392.1568627 | F46: 43.11666467 | G46: 34.58823671 | I46: 392.1568627 | J46: 43.11666467 | K46: 34.58823671 | L46: 35.08224474 | M46: 0.02787557868 | N46: 55.27560846 | O46: 0.009847725368 | Z46: 351309.5711 | AA46: 416826.1081 | AB46: 180534.1475 | AC46: 319687.946
C47: 29.41451461 | D47: 0.03662234156 | E47: 392.1568627 | F47: 43.11666467 | G47: 28.82353059 | I47: 392.1568627 | J47: 43.11666467 | K47: 28.82353059 | L47: 29.41451501 | M47: 0.03662234156 | N47: 51.86369335 | O47: 0.01174999751 | Z47: 345479.7437 | AA47: 416826.1081 | AB47: 175268.6629 | AC47: 319687.946
C48: 23.79342641 | D48: 0.0469215198 | E48: 392.1568627 | F48: 43.11666467 | G48: 23.05882447 | I48: 392.1568627 | J48: 43.11666467 | K48: 23.05882447 | L48: 23.7934269 | M48: 0.0469215198 | N48: 48.89535927 | O48: 0.01371173204 | Z48: 339400.3137 | AA48: 416826.1081 | AB48: 170066.0855 | AC48: 319687.946
C49: 18.26209966 | D49: 0.0579618147 | E49: 392.1568627 | F49: 43.11666467 | G49: 17.29411835 | I49: 392.1568627 | J49: 43.11666467 | K49: 17.29411835 | L49: 18.2621003 | M49: 0.0579618147 | N49: 46.45571334 | O49: 0.01556928137 | Z49: 333071.0957 | AA49: 416826.1081 | AB49: 164926.0922 | AC49: 319687.946
C50: 12.93619344 | D50: 0.06820110646 | E50: 392.1568627 | F50: 43.11666467 | G50: 11.52941224 | I50: 392.1568627 | J50: 43.11666467 | K50: 11.52941224 | L50: 12.93619435 | M50: 0.06820110646 | N50: 44.63153726 | O50: 0.01711869985 | Z50: 326491.8974 | AA50: 416826.1081 | AB50: 159848.3567 | AC50: 319687.946
C51: 8.224937139 | D51: 0.07559596239 | E51: 392.1568627 | F51: 43.11666467 | G51: 5.764706118 | I51: 392.1568627 | J51: 43.11666467 | K51: 5.764706118 | L51: 8.224938565 | M51: 0.07559596239 | N51: 43.50032883 | O51: 0.0181536572 | Z51: 319662.5202 | AA51: 416826.1081 | AB51: 154832.5496 | AC51: 319687.946
C52: 5.866664667 | D52: 0.07831043887 | E52: 392.1568627 | F52: 43.11666467 | G52: 0 | I52: 392.1568627 | J52: 43.11666467 | K52: 0 | L52: 5.866666667 | M52: 0.07831043887 | N52: 43.11666467 | O52: 0.0185181114 | AB52: 149878.3383 | AC52: 319687.946
C53: 8.224937139 | D53: 0.07559596239 | E53: 392.1568627 | F53: 43.11666467 | G53: -5.764706118 | I53: 392.1568627 | J53: 43.11666467 | K53: -5.764706118 | L53: 8.224938565 | M53: 0.07559596239 | N53: 43.50032883 | O53: 0.0181536572 | AB53: 144985.3872 | AC53: 319687.946
C54: 12.93619344 | D54: 0.06820110646 | E54: 392.1568627 | F54: 43.11666467 | G54: -11.52941224 | I54: 392.1568627 | J54: 43.11666467 | K54: -11.52941224 | L54: 12.93619435 | M54: 0.06820110646 | N54: 44.63153726 | O54: 0.01711869985 | AB54: 140153.3579 | AC54: 319687.946
C55: 18.26209966 | D55: 0.0579618147 | E55: 392.1568627 | F55: 43.11666467 | G55: -17.29411835 | I55: 392.1568627 | J55: 43.11666467 | K55: -17.29411835 | L55: 18.2621003 | M55: 0.0579618147 | N55: 46.45571334 | O55: 0.01556928137 | AB55: 135381.9092 | AC55: 319687.946
C56: 23.79342641 | D56: 0.0469215198 | E56: 392.1568627 | F56: 43.11666467 | G56: -23.05882447 | I56: 392.1568627 | J56: 43.11666467 | K56: -23.05882447 | L56: 23.7934269 | M56: 0.0469215198 | N56: 48.89535927 | O56: 0.01371173204 | AB56: 130670.697 | AC56: 319687.946
C57: 29.41451461 | D57: 0.03662234156 | E57: 392.1568627 | F57: 43.11666467 | G57: -28.82353059 | I57: 392.1568627 | J57: 43.11666467 | K57: -28.82353059 | L57: 29.41451501 | M57: 0.03662234156 | N57: 51.86369335 | O57: 0.01174999751 | AB57: 126019.3748 | AC57: 319687.946
C58: 35.08224441 | D58: 0.02787557868 | E58: 392.1568627 | F58: 43.11666467 | G58: -34.58823671 | I58: 392.1568627 | J58: 43.11666467 | K58: -34.58823671 | L58: 35.08224474 | M58: 0.02787557868 | N58: 55.27560846 | O58: 0.009847725368 | AB58: 121427.5935 | AC58: 319687.946
C59: 40.77717191 | D59: 0.02089441616 | E59: 392.1568627 | F59: 43.11666467 | G59: -40.35294282 | I59: 392.1568627 | J59: 43.11666467 | K59: -40.35294282 | L59: 40.7771722 | M59: 0.02089441616 | N59: 59.05426967 | O59: 0.008112687457 | AB59: 116895.0015 | AC59: 319687.946
C60: 46.48930305 | D60: 0.01554208129 | E60: 392.1568627 | F60: 43.11666467 | G60: -46.11764894 | I60: 392.1568627 | J60: 43.11666467 | K60: -46.11764894 | L60: 46.4893033 | M60: 0.01554208129 | N60: 63.1338603 | O60: 0.00659961002 | AB60: 112421.245 | AC60: 319687.946
C61: 82.68840133 | D61: 0.002591770416 | E61: 392.1568627 | F61: -31.38333133 | G61: 46.11764894 | I61: 392.1568627 | J61: -31.38333133 | K61: 46.11764894 | L61: 82.68839967 | M61: 0.002591770416 | N61: 55.78307117 | O61: 0.009593524538 | AB61: 108005.9678 | AC61: 319687.946
C62: 79.61717255 | D62: 0.002981789391 | E62: 392.1568627 | F62: -31.38333133 | G62: 40.35294282 | I62: 392.1568627 | J62: -31.38333133 | K62: 40.35294282 | L62: 79.61717082 | M62: 0.002981789391 | N62: 51.12018662 | O62: 0.0122127653 | AB62: 103648.8116 | AC62: 319687.946
C63: 76.85623129 | D63: 0.003389617191 | E63: 392.1568627 | F63: -31.38333133 | G63: 34.58823671 | I63: 392.1568627 | J63: -31.38333133 | K63: 34.58823671 | L63: 76.85622951 | M63: 0.003389617191 | N63: 46.70395705 | O63: 0.01536936611 | AB63: 99349.41593 | AC63: 319687.946
C64: 74.44011073 | D64: 0.003798366822 | E64: 392.1568627 | F64: -31.38333133 | G64: 28.82353059 | I64: 392.1568627 | J64: -31.38333133 | K64: 28.82353059 | L64: 74.44010889 | M64: 0.003798366822 | N64: 42.61114175 | O64: 0.01900896459 | AB64: 95107.41844 | AC64: 319687.946
C65: 72.4033394 | D65: 0.00418598736 | E65: 392.1568627 | F65: -31.38333133 | G65: 23.05882447 | I65: 392.1568627 | J65: -31.38333133 | K65: 23.05882447 | L65: 72.4033375 | M65: 0.00418598736 | N65: 38.94384254 | O65: 0.02295035936 | AB65: 90922.4548 | AC65: 319687.946
C66: 70.77867404 | D66: 0.004526826776 | E66: 392.1568627 | F66: -31.38333133 | G66: 17.29411835 | I66: 392.1568627 | J66: -31.38333133 | K66: 17.29411835 | L66: 70.77867211 | M66: 0.004526826776 | N66: 35.83294595 | O66: 0.0268530628 | AB66: 86794.15882 | AC66: 319687.946
C67: 69.59498198 | D67: 0.004794522881 | E67: 392.1568627 | F67: -31.38333133 | G67: 11.52941224 | I67: 392.1568627 | J67: -31.38333133 | K67: 11.52941224 | L67: 69.59498 | M67: 0.004794522881 | N67: 33.43412676 | O67: 0.03023259368 | AB67: 82722.16257 | AC67: 319687.946
C68: 68.87500277 | D68: 0.004965880551 | E68: 392.1568627 | F68: -31.38333133 | G68: 5.764706118 | I68: 392.1568627 | J68: -31.38333133 | K68: 5.764706118 | L68: 68.87500078 | M68: 0.004965880551 | N68: 31.90838953 | O68: 0.03255205067 | AB68: 78706.09647 | AC68: 319687.946
C69: 68.63333133 | D69: 0.005024905199 | E69: 392.1568627 | F69: -31.38333133 | G69: 0 | I69: 392.1568627 | J69: -31.38333133 | K69: 0 | L69: 68.63332933 | M69: 0.005024905199 | N69: 31.38333133 | O69: 0.03338057352 | AB69: 74745.5893 | AC69: 319687.946
C70: 68.87500277 | D70: 0.004965880551 | E70: 392.1568627 | F70: -31.38333133 | G70: -5.764706118 | I70: 392.1568627 | J70: -31.38333133 | K70: -5.764706118 | L70: 68.87500078 | M70: 0.004965880551 | N70: 31.90838953 | O70: 0.03255205067 | AB70: 70840.26833 | AC70: 319687.946
C71: 69.59498198 | D71: 0.004794522881 | E71: 392.1568627 | F71: -31.38333133 | G71: -11.52941224 | I71: 392.1568627 | J71: -31.38333133 | K71: -11.52941224 | L71: 69.59498 | M71: 0.004794522881 | N71: 33.43412676 | O71: 0.03023259368 | AB71: 66989.75941 | AC71: 319687.946
C72: 70.77867404 | D72: 0.004526826776 | E72: 392.1568627 | F72: -31.38333133 | G72: -17.29411835 | I72: 392.1568627 | J72: -31.38333133 | K72: -17.29411835 | L72: 70.77867211 | M72: 0.004526826776 | N72: 35.83294595 | O72: 0.0268530628 | AB72: 63193.68699 | AC72: 319687.946
C73: 72.4033394 | D73: 0.00418598736 | E73: 392.1568627 | F73: -31.38333133 | G73: -23.05882447 | I73: 392.1568627 | J73: -31.38333133 | K73: -23.05882447 | L73: 72.4033375 | M73: 0.00418598736 | N73: 38.94384254 | O73: 0.02295035936 | AB73: 59451.67425 | AC73: 319687.946
C74: 74.44011073 | D74: 0.003798366822 | E74: 392.1568627 | F74: -31.38333133 | G74: -28.82353059 | I74: 392.1568627 | J74: -31.38333133 | K74: -28.82353059 | L74: 74.44010889 | M74: 0.003798366822 | N74: 42.61114175 | O74: 0.01900896459 | AB74: 55763.34312 | AC74: 319687.946
C75: 76.85623129 | D75: 0.003389617191 | E75: 392.1568627 | F75: -31.38333133 | G75: -34.58823671 | I75: 392.1568627 | J75: -31.38333133 | K75: -34.58823671 | L75: 76.85622951 | M75: 0.003389617191 | N75: 46.70395705 | O75: 0.01536936611 | AB75: 52128.31441 | AC75: 319687.946
C76: 79.61717255 | D76: 0.002981789391 | E76: 392.1568627 | F76: -31.38333133 | G76: -40.35294282 | I76: 392.1568627 | J76: -31.38333133 | K76: -40.35294282 | L76: 79.61717082 | M76: 0.002981789391 | N76: 51.12018662 | O76: 0.0122127653 | AB76: 48546.20783 | AC76: 319687.946
C77: 82.68840133 | D77: 0.002591770416 | E77: 392.1568627 | F77: -31.38333133 | G77: -46.11764894 | I77: 392.1568627 | J77: -31.38333133 | K77: -46.11764894 | L77: 82.68839967 | M77: 0.002591770416 | N77: 55.78307117 | O77: 0.009593524538 | AB77: 45016.6421 | AC77: 319687.946
C78: 87.61898907 | D78: 0.002080560365 | E78: 392.1568627 | F78: -37.249998 | G78: 46.11764894 | I78: 392.1568627 | J78: -37.249998 | K78: 46.11764894 | L78: 87.61898737 | M78: 0.002080560365 | N78: 59.28237423 | O78: 0.008018922224 | AB78: 41539.23499 | AC78: 319687.946
C79: 84.72667642 | D79: 0.002364859064 | E79: 392.1568627 | F79: -37.249998 | G79: 40.35294282 | I79: 392.1568627 | J79: -37.249998 | K79: 40.35294282 | L79: 84.72667466 | M79: 0.002364859064 | N79: 54.91741386 | O79: 0.01003140317 | AB79: 38113.60341 | AC79: 319687.946
C80: 82.13766384 | D80: 0.002657247622 | E80: 392.1568627 | F80: -37.249998 | G80: 34.58823671 | I80: 392.1568627 | J80: -37.249998 | K80: 34.58823671 | L80: 82.13766202 | M80: 0.002657247622 | N80: 50.83215979 | O80: 0.0123970187 | AB80: 34739.36345 | AC80: 319687.946
C81: 79.88144727 | D81: 0.002945741923 | E81: 392.1568627 | F81: -37.249998 | G81: 28.82353059 | I81: 392.1568627 | J81: -37.249998 | K81: 28.82353059 | L81: 79.8814454 | M81: 0.002945741923 | N81: 47.09945081 | O81: 0.01505610054 | AB81: 31416.13047 | AC81: 319687.946
C82: 77.98691613 | D82: 0.003215459978 | E82: 392.1568627 | F82: -37.249998 | G82: 23.05882447 | I82: 392.1568627 | J82: -37.249998 | K82: 23.05882447 | L82: 77.98691422 | M82: 0.003215459978 | N82: 43.80949369 | O82: 0.01786497254 | AB82: 28143.51918 | AC82: 319687.946
C83: 76.48095339 | D83: 0.003449741687 | E83: 392.1568627 | F83: -37.249998 | G83: 17.29411835 | I83: 392.1568627 | J83: -37.249998 | K83: 17.29411835 | L83: 76.48095144 | M83: 0.003449741687 | N83: 41.06883101 | O83: 0.02058335306 | AB83: 24921.14366 | AC83: 319687.946
C84: 75.38684931 | D84: 0.003631965213 | E84: 392.1568627 | F84: -37.249998 | G84: 11.52941224 | I84: 392.1568627 | J84: -37.249998 | K84: 11.52941224 | L84: 75.38684733 | M84: 0.003631965213 | N84: 38.99345711 | O84: 0.0228923923 | AB84: 21748.61745 | AC84: 319687.946
C85: 74.72269761 | D85: 0.003747822979 | E85: 392.1568627 | F85: -37.249998 | G85: 5.764706118 | I85: 392.1568627 | J85: -37.249998 | K85: 5.764706118 | L85: 74.72269562 | M85: 0.003747822979 | N85: 37.69342367 | O85: 0.0244550872 | AB85: 18625.5536 | AC85: 319687.946
C86: 74.499998 | D86: 0.003787592071 | E86: 392.1568627 | F86: -37.249998 | G86: 0 | I86: 392.1568627 | J86: -37.249998 | K86: 0 | L86: 74.499996 | M86: 0.003787592071 | N86: 37.249998 | O86: 0.02500917686 | AB86: 15551.56475 | AC86: 319687.946
C87: 74.72269761 | D87: 0.003747822979 | E87: 392.1568627 | F87: -37.249998 | G87: -5.764706118 | I87: 392.1568627 | J87: -37.249998 | K87: -5.764706118 | L87: 74.72269562 | M87: 0.003747822979 | N87: 37.69342367 | O87: 0.0244550872 | AB87: 12526.2632 | AC87: 319687.946
C88: 75.38684931 | D88: 0.003631965213 | E88: 392.1568627 | F88: -37.249998 | G88: -11.52941224 | I88: 392.1568627 | J88: -37.249998 | K88: -11.52941224 | L88: 75.38684733 | M88: 0.003631965213 | N88: 38.99345711 | O88: 0.0228923923 | AB88: 9549.260903 | AC88: 319687.946
C89: 76.48095339 | D89: 0.003449741687 | E89: 392.1568627 | F89: -37.249998 | G89: -17.29411835 | I89: 392.1568627 | J89: -37.249998 | K89: -17.29411835 | L89: 76.48095144 | M89: 0.003449741687 | N89: 41.06883101 | O89: 0.02058335306 | AB89: 6620.169608 | AC89: 319687.946
C90: 77.98691613 | D90: 0.003215459978 | E90: 392.1568627 | F90: -37.249998 | G90: -23.05882447 | I90: 392.1568627 | J90: -37.249998 | K90: -23.05882447 | L90: 77.98691422 | M90: 0.003215459978 | N90: 43.80949369 | O90: 0.01786497254 | AB90: 3738.600864 | AC90: 319687.946
C91: 79.88144727 | D91: 0.002945741923 | E91: 392.1568627 | F91: -37.249998 | G91: -28.82353059 | I91: 392.1568627 | J91: -37.249998 | K91: -28.82353059 | L91: 79.8814454 | M91: 0.002945741923 | N91: 47.09945081 | O91: 0.01505610054 | AB91: 904.1660934 | AC91: 319687.946
C92: 82.13766384 | D92: 0.002657247622 | E92: 392.1568627 | F92: -37.249998 | G92: -34.58823671 | I92: 392.1568627 | J92: -37.249998 | K92: -34.58823671 | L92: 82.13766202 | M92: 0.002657247622 | N92: 50.83215979 | O92: 0.0123970187 | AB92: -1883.523353 | AC92: 319687.946
C93: 84.72667642 | D93: 0.002364859064 | E93: 392.1568627 | F93: -37.249998 | G93: -40.35294282 | I93: 392.1568627 | J93: -37.249998 | K93: -40.35294282 | L93: 84.72667466 | M93: 0.002364859064 | N93: 54.91741386 | O93: 0.01003140317 | AB93: -4624.856141 | AC93: 319687.946
C94: 87.61898907 | D94: 0.002080560365 | E94: 392.1568627 | F94: -37.249998 | G94: -46.11764894 | I94: 392.1568627 | J94: -37.249998 | K94: -46.11764894 | L94: 87.61898737 | M94: 0.002080560365 | N94: 59.28237423 | O94: 0.008018922224 | AB94: -7320.220903 | AC94: 319687.946
C95: 92.65871968 | D95: 0.001673367422 | E95: 392.1568627 | F95: -43.11666467 | G95: 46.11764894 | I95: 392.1568627 | J95: -43.11666467 | K95: 46.11764894 | L95: 92.65871795 | M95: 0.001673367422 | N95: 63.1338603 | O95: 0.00659961002 | AB95: -9970.006179 | AC95: 319687.946
C96: 89.92864274 | D96: 0.001881329172 | E96: 392.1568627 | F96: -43.11666467 | G96: 40.35294282 | I96: 392.1568627 | J96: -43.11666467 | K96: 40.35294282 | L96: 89.92864095 | M96: 0.001881329172 | N96: 59.05426967 | O96: 0.008112687457 | AB96: -12574.60037 | AC96: 319687.946
C97: 87.49369639 | D97: 0.00209203818 | E97: 392.1568627 | F97: -43.11666467 | G97: 34.58823671 | I97: 392.1568627 | J97: -43.11666467 | K97: 34.58823671 | L97: 87.49369455 | M97: 0.00209203818 | N97: 55.27560846 | O97: 0.009847725368 | AB97: -15134.39168 | AC97: 319687.946
C98: 85.37913507 | D98: 0.002297054557 | E98: 392.1568627 | F98: -43.11666467 | G98: 28.82353059 | I98: 392.1568627 | J98: -43.11666467 | K98: 28.82353059 | L98: 85.37913319 | M98: 0.002297054557 | N98: 51.86369335 | O98: 0.01174999751 | AB98: -17649.76808 | AC98: 319687.946
C99: 83.60927087 | D99: 0.002486329527 | E99: 392.1568627 | F99: -43.11666467 | G99: 23.05882447 | I99: 392.1568627 | J99: -43.11666467 | K99: 23.05882447 | L99: 83.60926895 | M99: 0.002486329527 | N99: 48.89535927 | O99: 0.01371173204 | AB99: -20121.11724 | AC99: 319687.946
C100: 82.20637031 | D100: 0.002648977763 | E100: 392.1568627 | F100: -43.11666467 | G100: 17.29411835 | I100: 392.1568627 | J100: -43.11666467 | K100: 17.29411835 | L100: 82.20636835 | M100: 0.002648977763 | N100: 46.45571334 | O100: 0.01556928137 | AB100: -22548.82649 | AC100: 319687.946
C101: 81.18945828 | D101: 0.002774413586 | E101: 392.1568627 | F101: -43.11666467 | G101: 11.52941224 | I101: 392.1568627 | J101: -43.11666467 | K101: 11.52941224 | L101: 81.1894563 | M101: 0.002774413586 | N101: 44.63153726 | O101: 0.01711869985 | AB101: -24933.28277 | AC101: 319687.946
C102: 80.57315078 | D102: 0.002853697132 | E102: 392.1568627 | F102: -43.11666467 | G102: 5.764706118 | I102: 392.1568627 | J102: -43.11666467 | K102: 5.764706118 | L102: 80.57314878 | M102: 0.002853697132 | N102: 43.50032883 | O102: 0.0181536572 | AB102: -27274.87259 | AC102: 319687.946
C103: 80.36666467 | D103: 0.002880829868 | E103: 392.1568627 | F103: -43.11666467 | G103: 0 | I103: 392.1568627 | J103: -43.11666467 | K103: 0 | L103: 80.36666267 | M103: 0.002880829868 | N103: 43.11666467 | O103: 0.0185181114 | AB103: -29573.98197 | AC103: 319687.946
C104: 80.57315078 | D104: 0.002853697132 | E104: 392.1568627 | F104: -43.11666467 | G104: -5.764706118 | I104: 392.1568627 | J104: -43.11666467 | K104: -5.764706118 | L104: 80.57314878 | M104: 0.002853697132 | N104: 43.50032883 | O104: 0.0181536572 | AB104: -31830.99642 | AC104: 319687.946
C105: 81.18945828 | D105: 0.002774413586 | E105: 392.1568627 | F105: -43.11666467 | G105: -11.52941224 | I105: 392.1568627 | J105: -43.11666467 | K105: -11.52941224 | L105: 81.1894563 | M105: 0.002774413586 | N105: 44.63153726 | O105: 0.01711869985 | AB105: -34046.30087 | AC105: 319687.946
C106: 82.20637031 | D106: 0.002648977763 | E106: 392.1568627 | F106: -43.11666467 | G106: -17.29411835 | I106: 392.1568627 | J106: -43.11666467 | K106: -17.29411835 | L106: 82.20636835 | M106: 0.002648977763 | N106: 46.45571334 | O106: 0.01556928137 | AB106: -36220.27961 | AC106: 319687.946
C107: 83.60927087 | D107: 0.002486329527 | E107: 392.1568627 | F107: -43.11666467 | G107: -23.05882447 | I107: 392.1568627 | J107: -43.11666467 | K107: -23.05882447 | L107: 83.60926895 | M107: 0.002486329527 | N107: 48.89535927 | O107: 0.01371173204 | AB107: -38353.31631 | AC107: 319687.946
C108: 85.37913507 | D108: 0.002297054557 | E108: 392.1568627 | F108: -43.11666467 | G108: -28.82353059 | I108: 392.1568627 | J108: -43.11666467 | K108: -28.82353059 | L108: 85.37913319 | M108: 0.002297054557 | N108: 51.86369335 | O108: 0.01174999751 | AB108: -40445.79393 | AC108: 319687.946
C109: 87.49369639 | D109: 0.00209203818 | E109: 392.1568627 | F109: -43.11666467 | G109: -34.58823671 | I109: 392.1568627 | J109: -43.11666467 | K109: -34.58823671 | L109: 87.49369455 | M109: 0.00209203818 | N109: 55.27560846 | O109: 0.009847725368 | AB109: -42498.09467 | AC109: 319687.946
C110: 89.92864274 | D110: 0.001881329172 | E110: 392.1568627 | F110: -43.11666467 | G110: -40.35294282 | I110: 392.1568627 | J110: -43.11666467 | K110: -40.35294282 | L110: 89.92864095 | M110: 0.001881329172 | N110: 59.05426967 | O110: 0.008112687457 | AB110: -44510.59996 | AC110: 319687.946
C111: 92.65871968 | D111: 0.001673367422 | E111: 392.1568627 | F111: -43.11666467 | G111: -46.11764894 | I111: 392.1568627 | J111: -43.11666467 | K111: -46.11764894 | L111: 92.65871795 | M111: 0.001673367422 | N111: 63.1338603 | O111: 0.00659961002 | AB111: -46483.69043 | AC111: 319687.946
AB112: -48417.74581 | AC112: 319687.946
AB113: -50313.14496 | AC113: 319687.946
AB114: -52170.26581 | AC114: 319687.946
AB115: -53989.48528 | AC115: 319687.946
AB116: -55771.17933 | AC116: 319687.946
AB117: -57515.72284 | AC117: 319687.946
AB118: -59223.48963 | AC118: 319687.946
AB119: -60894.8524 | AC119: 319687.946
AB120: -62530.18272 | AC120: 319687.946
AB121: -64129.85097 | AC121: 319687.946
AB122: -65694.22632 | AC122: 319687.946
AB123: -67223.67671 | AC123: 319687.946
AB124: -68718.56881 | AC124: 319687.946
AB125: -70179.26798 | AC125: 319687.946
AB126: -71606.13826 | AC126: 319687.946
AB127: -72999.54234 | AC127: 319687.946
AB128: -74359.84152 | AC128: 319687.946
AB129: -75687.39568 | AC129: 319687.946
AB130: -76982.56329 | AC130: 319687.946
AB131: -78245.70133 | AC131: 319687.946
AB132: -79477.16529 | AC132: 319687.946
AB133: -80677.30918 | AC133: 319687.946
AB134: -81846.48545 | AC134: 319687.946
AB135: -82985.04499 | AC135: 319687.946
AB136: -84093.33712 | AC136: 319687.946
AB137: -85171.70955 | AC137: 319687.946
AB138: -86220.50836 | AC138: 319687.946
AB139: -87240.07799 | AC139: 319687.946
AB140: -88230.76122 | AC140: 319687.946
AB141: -89192.89914 | AC141: 319687.946
AB142: -90126.83112 | AC142: 319687.946
AB143: -91032.89483 | AC143: 319687.946
AB144: -91911.42619 | AC144: 319687.946
AB145: -92762.75935 | AC145: 319687.946
AB146: -93587.22669 | AC146: 319687.946
AB147: -94385.15882 | AC147: 319687.946
AB148: -95156.8845 | AC148: 319687.946
AB149: -95902.73069 | AC149: 319687.946
AB150: -96623.02252 | AC150: 319687.946
AB151: -97318.08325 | AC151: 319687.946
AB152: -97988.23428 | AC152: 319687.946
AB153: -98633.79512 | AC153: 319687.946
AB154: -99255.08341 | AC154: 319687.946
AB155: -99852.41485 | AC155: 319687.946
AB156: -100426.1033 | AC156: 319687.946
AB157: -100976.4605 | AC157: 319687.946
AB158: -101503.7965 | AC158: 319687.946
AB159: -102008.4192 | AC159: 319687.946
AB160: -102490.6347 | AC160: 319687.946
AB161: -102950.747 | AC161: 319687.946
AB162: -103389.0582 | AC162: 319687.946
AB163: -103805.8683 | AC163: 319687.946
AB164: -104201.4754 | AC164: 319687.946
AB165: -104576.1756 | AC165: 319687.946
AB166: -104930.263 | AC166: 319687.946
AB167: -105264.0296 | AC167: 319687.946
AB168: -105577.7654 | AC168: 319687.946
AB169: -105871.7583 | AC169: 319687.946
AB170: -106146.2944 | AC170: 319687.946
AB171: -106401.6575 | AC171: 319687.946
AB172: -106638.1294 | AC172: 319687.946
AB173: -106855.99 | AC173: 319687.946
AB174: -107055.5168 | AC174: 319687.946
AB175: -107236.9857 | AC175: 319687.946
AB176: -107400.6702 | AC176: 319687.946
AB177: -107546.8418 | AC177: 319687.946
AB178: -107675.77 | AC178: 319687.946
AB179: -107787.722 | AC179: 319687.946
AB180: -107882.9633 | AC180: 319687.946
AB181: -107961.7569 | AC181: 319687.946
AB182: -108024.3641 | AC182: 319687.946
AB183: -108071.0438 | AC183: 319687.946
AB184: -108102.0529 | AC184: 319687.946
AB185: -108117.6464 | AC185: 319687.946
AB186: -108118.077 | AC186: 319687.946
AB187: -108103.5953 | AC187: 319687.946
AB188: -108074.45 | AC188: 319687.946
AB189: -108030.8875 | AC189: 319687.946
AB190: -107973.1523 | AC190: 319687.946
AB191: -107901.4866 | AC191: 319687.946
AB192: -107816.1307 | AC192: 319687.946
AB193: -107717.3228 | AC193: 319687.946
AB194: -107605.2988 | AC194: 319687.946
AB195: -107480.2929 | AC195: 319687.946
AB196: -107342.5369 | AC196: 319687.946
AB197: -107192.2605 | AC197: 319687.946
AB198: -107029.6917 | AC198: 319687.946
AB199: -106855.056 | AC199: 319687.946
AB200: -106668.577 | AC200: 319687.946
... 2555 more rows

Sheet TESTG (hidden)
E1: Psoil | F1: ImpactF | G1: Eprime | H1: Kb | I1: Kz | J1: BsnqIF
E2: 3.333333333 | F2: 1.25 | G2: 879.6869627 | H2: 0.189 | I2: 0.103 | J2: 10.93807101 | S2: 19 | T2: 20 | U2: 21 | V2: 22 | W2: 23 | X2: 24 | Y2: 25 | Z2: 26 | AA2: 27 | AB2: 28 | AC2: 29 | AD2: 30 | AE2: 31 | AF2: 32
J3: BsnqMAX | K3: Location of MAX
J4: 8.750456809 | K4: N/A | S4: Hoop | X4: Total Hoop | Z4: Total Hoop/SMYS | AE4: Beta | AF4: 1.34827
J5: VBA SUM | S5: Soil Load | T5: Live Load | U5: Internal Pressure | X5: High | Y5: Low | Z5: High | AA5: Low | AE5: LocalZero | AF5: 6343.77
J6: 8.750456809 | Q6: 6 | R6: Zero | S6: 4970.800437 | T6: 16311.29045 | U6: 0 | X6: 21282.09089 | Y6: -21282.09089 | Z6: 0.4092709786 | AA6: -0.4092709786 | AE6: LocalMOP | AF6: 1561.99
C7: Formula | D7: Formula | J7: Sum | Q7: 7 | R7: MOP | S7: 1223.932461 | T7: 4016.238052 | U7: 56504 | X7: 61744.17051 | Y7: 51263.82949 | Z7: 1.187387894 | AA7: 0.9858428747 | AE7: Inertia | AF7: 10621.58
C8: =SQRT((172.6-F8)^2+(48.5-G8)^2) -> 179.2847177 | D8: =(3*E8)/(2*PI()*(12*4)^2*(1+((I8/(12*4))^2))^2.5) ->  | E8: Array of User Input Grid | J8: =SUM(J10:J219) -> 8.750456809 | K8: Cat 631G Scraper | N8: Cat D6 Dozer | Q8: 8 | S8: Longitudinal | X8: Total Longitudinal | Z8: Total Longitudinal/SMYS | AE8: Lambda | AF8: 8.337
C9: DistR | D9: Bousin | E9: load | F9: x | G9: y | I9: DistRMP1 | J9: Bsnq1 | K9: Default Grid Values for Testing | N9: Default Grid Values for Testing | Q9: 9 | S9: Soil Load | T9: Live Load | U9: Internal Pressure | V9: Thermal Expansion | X9: High | Y9: Low | Z9: High | AA9: Low | AE9: Wsurf | AF9: 63337.81
C10: 20.61552813 | D10: 0.2012620593 | E10: 1482.878788 | F10: 28.5 | G10: 177.6 | I10: 20.61552813 | J10: 0.2012620593 | K10: 1482.878788 | L10: 28.5 | M10: 177.6 | N10: 190.4761905 | O10: 28.45 | P10: -49 | Q10: 10 | R10: Zero | S10: 1491.240131 | T10: 7673.53359 | U10: 0 | V10: 3900 | X10: 13064.77372 | Y10: -5264.773722 | Z10: 0.2512456485 | AA10: -0.1012456485 | AE10: Lload | AF10: 27.601
C11: 16.76305461 | D11: 0.2304726432 | E11: 1482.878788 | F11: 32.5 | G11: 177.6 | I11: 16.76305461 | J11: 0.2304726432 | K11: 1482.878788 | L11: 32.5 | M11: 177.6 | N11: 190.4761905 | O11: 28.45 | P11: -44.1 | Q11: 11 | R11: MOP | S11: 367.1797384 | T11: 3688.715177 | U11: 16951.2 | V11: 3900 | X11: 24907.09492 | Y11: 16795.30508 | Z11: 0.4789825945 | AA11: 0.3229866362 | AE11: Ppipe | AF11: 26.464
C12: 13 | D12: 0.2574604123 | E12: 1482.878788 | F12: 36.5 | G12: 177.6 | I12: 13 | J12: 0.2574604123 | K12: 1482.878788 | L12: 36.5 | M12: 177.6 | N12: 190.4761905 | O12: 28.45 | P12: -39.2 | Q12: 12 | X12: Tresca | Z12: Tresca Equivalent/SMYS | AE12: LiveBend | AF12: 2864.46
C13: 9.433981132 | D13: 0.279520719 | E13: 1482.878788 | F13: 40.5 | G13: 177.6 | I13: 9.433981132 | J13: 0.279520719 | K13: 1482.878788 | L13: 40.5 | M13: 177.6 | N13: 190.4761905 | O13: 28.45 | P13: -34.3 | Q13: 13 | X13: High | Y13: Low | Z13: High | AA13: Low
C14: 6.403124237 | D14: 0.2940448881 | E14: 1482.878788 | F14: 44.5 | G14: 177.6 | I14: 6.403124237 | J14: 0.2940448881 | K14: 1482.878788 | L14: 44.5 | M14: 177.6 | N14: 190.4761905 | O14: 28.45 | P14: -29.4 | Q14: 14 | W14: Zero
C15: 5 | D15: 0.2991210867 | E15: 1482.878788 | F15: 48.5 | G15: 177.6 | I15: 5 | J15: 0.2991210867 | K15: 1482.878788 | L15: 48.5 | M15: 177.6 | N15: 190.4761905 | O15: 28.45 | P15: -24.5 | Q15: 15 | W15: MOP
C16: 6.403124237 | D16: 0.2940448881 | E16: 1482.878788 | F16: 52.5 | G16: 177.6 | I16: 6.403124237 | J16: 0.2940448881 | K16: 1482.878788 | L16: 52.5 | M16: 177.6 | N16: 190.4761905 | O16: 28.45 | P16: -19.6 | Q16: 16 | X16: Von Mises | Z16: Von Mises Equivalent/SMYS
C17: 9.433981132 | D17: 0.279520719 | E17: 1482.878788 | F17: 56.5 | G17: 177.6 | I17: 9.433981132 | J17: 0.279520719 | K17: 1482.878788 | L17: 56.5 | M17: 177.6 | N17: 190.4761905 | O17: 28.45 | P17: -14.7 | Q17: 17 | X17: High | Y17: Low | Z17: High | AA17: Low
C18: 13 | D18: 0.2574604123 | E18: 1482.878788 | F18: 60.5 | G18: 177.6 | I18: 13 | J18: 0.2574604123 | K18: 1482.878788 | L18: 60.5 | M18: 177.6 | N18: 190.4761905 | O18: 28.45 | P18: -9.8 | Q18: 18 | W18: Zero | X18: 30027.67734 | Y18: 18589.51326 | Z18: 0.5774553335 | AA18: 0.3574906396
C19: 16.76305461 | D19: 0.2304726432 | E19: 1482.878788 | F19: 64.5 | G19: 177.6 | I19: 16.76305461 | J19: 0.2304726432 | K19: 1482.878788 | L19: 64.5 | M19: 177.6 | N19: 190.4761905 | O19: 28.45 | P19: -4.9 | Q19: 19 | W19: MOP | X19: 55293.87565 | Y19: 44401.69506 | Z19: 1.063343762 | AA19: 0.8538787511
C20: 20.61552813 | D20: 0.2012620593 | E20: 1482.878788 | F20: 68.5 | G20: 177.6 | I20: 20.61552813 | J20: 0.2012620593 | K20: 1482.878788 | L20: 68.5 | M20: 177.6 | N20: 190.4761905 | O20: 28.45 | P20: 0
C21: 20 | D21: 0.2059463186 | E21: 1482.878788 | F21: 28.5 | G21: 172.6 | I21: 20 | J21: 0.2059463186 | K21: 1482.878788 | L21: 28.5 | M21: 172.6 | N21: 190.4761905 | O21: 28.45 | P21: 4.9
C22: 16 | D22: 0.2361406955 | E22: 1482.878788 | F22: 32.5 | G22: 172.6 | I22: 16 | J22: 0.2361406955 | K22: 1482.878788 | L22: 32.5 | M22: 172.6 | N22: 190.4761905 | O22: 28.45 | P22: 9.8 | W22: MomentMAX | Y22: Mmax | Z22: Mtest1 | AA22: Mmin1 | AB22: Mtest2 | AC22: Mmin2
C23: 12 | D23: 0.2640840779 | E23: 1482.878788 | F23: 36.5 | G23: 172.6 | I23: 12 | J23: 0.2640840779 | K23: 1482.878788 | L23: 36.5 | M23: 172.6 | N23: 190.4761905 | O23: 28.45 | P23: 14.7 | R23: Mtest1 Function | W23: 1207347.485 | Y23: 1207347.485 | Z23: 1207347.485 | AA23: 1207347.485 | AB23: 925984.3137 | AC23: 925984.3137 | AE23: Mtest2 Function
C24: 8 | D24: 0.2869567904 | E24: 1482.878788 | F24: 40.5 | G24: 172.6 | I24: 8 | J24: 0.2869567904 | K24: 1482.878788 | L24: 40.5 | M24: 172.6 | N24: 190.4761905 | O24: 28.45 | P24: 19.6 | Z24: 1206989.259 | AA24: 1207347.485 | AB24: 906310.089 | AC24: 925984.3137
C25: 4 | D25: 0.3020304913 | E25: 1482.878788 | F25: 44.5 | G25: 172.6 | I25: 4 | J25: 0.3020304913 | K25: 1482.878788 | L25: 44.5 | M25: 172.6 | N25: 190.4761905 | O25: 28.45 | P25: 24.5 | Z25: 1205914.569 | AA25: 1207347.485 | AB25: 886836.2521 | AC25: 925984.3137
C26: 0 | D26: 0.3073014181 | E26: 1482.878788 | F26: 48.5 | G26: 172.6 | I26: 0 | J26: 0.3073014181 | K26: 1482.878788 | L26: 48.5 | M26: 172.6 | N26: 190.4761905 | O26: 28.45 | P26: 29.4 | Z26: 1204123.38 | AA26: 1207347.485 | AB26: 867562.1739 | AC26: 925984.3137
C27: 4 | D27: 0.3020304913 | E27: 1482.878788 | F27: 52.5 | G27: 172.6 | I27: 4 | J27: 0.3020304913 | K27: 1482.878788 | L27: 52.5 | M27: 172.6 | N27: 190.4761905 | O27: 28.45 | P27: 34.3 | Z27: 1201615.633 | AA27: 1207347.485 | AB27: 848487.2085 | AC27: 925984.3137
C28: 8 | D28: 0.2869567904 | E28: 1482.878788 | F28: 56.5 | G28: 172.6 | I28: 8 | J28: 0.2869567904 | K28: 1482.878788 | L28: 56.5 | M28: 172.6 | N28: 190.4761905 | O28: 28.45 | P28: 39.2 | Z28: 1198391.248 | AA28: 1207347.485 | AB28: 829610.6929 | AC28: 925984.3137
C29: 12 | D29: 0.2640840779 | E29: 1482.878788 | F29: 60.5 | G29: 172.6 | I29: 12 | J29: 0.2640840779 | K29: 1482.878788 | L29: 60.5 | M29: 172.6 | N29: 190.4761905 | O29: 28.45 | P29: 44.1 | Z29: 1194450.119 | AA29: 1207347.485 | AB29: 810931.948 | AC29: 925984.3137
C30: 16 | D30: 0.2361406955 | E30: 1482.878788 | F30: 64.5 | G30: 172.6 | I30: 16 | J30: 0.2361406955 | K30: 1482.878788 | L30: 64.5 | M30: 172.6 | N30: 190.4761905 | O30: 28.45 | P30: 49 | Z30: 1189792.119 | AA30: 1207347.485 | AB30: 792450.2784 | AC30: 925984.3137
C31: 20 | D31: 0.2059463186 | E31: 1482.878788 | F31: 68.5 | G31: 172.6 | I31: 20 | J31: 0.2059463186 | K31: 1482.878788 | L31: 68.5 | M31: 172.6 | N31: 190.4761905 | O31: 32.85 | P31: -49 | Z31: 1184417.096 | AA31: 1207347.485 | AB31: 774164.9732 | AC31: 925984.3137
C32: 20.61552813 | D32: 0.2012620593 | E32: 1482.878788 | F32: 28.5 | G32: 167.6 | I32: 20.61552813 | J32: 0.2012620593 | K32: 1482.878788 | L32: 28.5 | M32: 167.6 | N32: 190.4761905 | O32: 32.85 | P32: -44.1 | Z32: 1178324.877 | AA32: 1207347.485 | AB32: 756075.3061 | AC32: 925984.3137
C33: 16.76305461 | D33: 0.2304726432 | E33: 1482.878788 | F33: 32.5 | G33: 167.6 | I33: 16.76305461 | J33: 0.2304726432 | K33: 1482.878788 | L33: 32.5 | M33: 167.6 | N33: 190.4761905 | O33: 32.85 | P33: -39.2 | Z33: 1171515.264 | AA33: 1207347.485 | AB33: 738180.536 | AC33: 925984.3137
C34: 13 | D34: 0.2574604123 | E34: 1482.878788 | F34: 36.5 | G34: 167.6 | I34: 13 | J34: 0.2574604123 | K34: 1482.878788 | L34: 36.5 | M34: 167.6 | N34: 190.4761905 | O34: 32.85 | P34: -34.3 | Z34: 1163988.038 | AA34: 1207347.485 | AB34: 720479.907 | AC34: 925984.3137
C35: 9.433981132 | D35: 0.279520719 | E35: 1482.878788 | F35: 40.5 | G35: 167.6 | I35: 9.433981132 | J35: 0.279520719 | K35: 1482.878788 | L35: 40.5 | M35: 167.6 | N35: 190.4761905 | O35: 32.85 | P35: -29.4 | Z35: 1155742.957 | AA35: 1207347.485 | AB35: 702972.6489 | AC35: 925984.3137
C36: 6.403124237 | D36: 0.2940448881 | E36: 1482.878788 | F36: 44.5 | G36: 167.6 | I36: 6.403124237 | J36: 0.2940448881 | K36: 1482.878788 | L36: 44.5 | M36: 167.6 | N36: 190.4761905 | O36: 32.85 | P36: -24.5 | Z36: 1146779.756 | AA36: 1207347.485 | AB36: 685657.9778 | AC36: 925984.3137
C37: 5 | D37: 0.2991210867 | E37: 1482.878788 | F37: 48.5 | G37: 167.6 | I37: 5 | J37: 0.2991210867 | K37: 1482.878788 | L37: 48.5 | M37: 167.6 | N37: 190.4761905 | O37: 32.85 | P37: -19.6 | Z37: 1137098.147 | AA37: 1207347.485 | AB37: 668535.0961 | AC37: 925984.3137
C38: 6.403124237 | D38: 0.2940448881 | E38: 1482.878788 | F38: 52.5 | G38: 167.6 | I38: 6.403124237 | J38: 0.2940448881 | K38: 1482.878788 | L38: 52.5 | M38: 167.6 | N38: 190.4761905 | O38: 32.85 | P38: -14.7 | Z38: 1126697.822 | AA38: 1207347.485 | AB38: 651603.1929 | AC38: 925984.3137
C39: 9.433981132 | D39: 0.279520719 | E39: 1482.878788 | F39: 56.5 | G39: 167.6 | I39: 9.433981132 | J39: 0.279520719 | K39: 1482.878788 | L39: 56.5 | M39: 167.6 | N39: 190.4761905 | O39: 32.85 | P39: -9.8 | Z39: 1115578.449 | AA39: 1207347.485 | AB39: 634861.4445 | AC39: 925984.3137
C40: 13 | D40: 0.2574604123 | E40: 1482.878788 | F40: 60.5 | G40: 167.6 | I40: 13 | J40: 0.2574604123 | K40: 1482.878788 | L40: 60.5 | M40: 167.6 | N40: 190.4761905 | O40: 32.85 | P40: -4.9 | Z40: 1103739.675 | AA40: 1207347.485 | AB40: 618309.0143 | AC40: 925984.3137
C41: 16.76305461 | D41: 0.2304726432 | E41: 1482.878788 | F41: 64.5 | G41: 167.6 | I41: 16.76305461 | J41: 0.2304726432 | K41: 1482.878788 | L41: 64.5 | M41: 167.6 | N41: 190.4761905 | O41: 32.85 | P41: 0 | R41: Max Value for Mtest1 Function | Z41: 1091181.126 | AA41: 1207347.485 | AB41: 601945.0539 | AC41: 925984.3137 | AE41: Max Value for Mtest Function
C42: 20.61552813 | D42: 0.2012620593 | E42: 1482.878788 | F42: 68.5 | G42: 167.6 | I42: 20.61552813 | J42: 0.2012620593 | K42: 1482.878788 | L42: 68.5 | M42: 167.6 | N42: 190.4761905 | O42: 32.85 | P42: 4.9 | Z42: 1077902.405 | AA42: 1207347.485 | AB42: 585768.7027 | AC42: 925984.3137
C43: 117.1067889 | D43: 0.002411293236 | E43: 1482.878788 | F43: -68.5 | G43: 177.6 | I43: 117.1067889 | J43: 0.002411293236 | K43: 1482.878788 | L43: -68.5 | M43: 177.6 | N43: 190.4761905 | O43: 32.85 | P43: 9.8 | Z43: 1063903.096 | AA43: 1207347.485 | AB43: 569779.0883 | AC43: 925984.3137
C44: 113.1105654 | D44: 0.002795581763 | E44: 1482.878788 | F44: -64.5 | G44: 177.6 | I44: 113.1105654 | J44: 0.002795581763 | K44: 1482.878788 | L44: -64.5 | M44: 177.6 | N44: 190.4761905 | O44: 32.85 | P44: 14.7 | Z44: 1049182.761 | AA44: 1207347.485 | AB44: 553975.3273 | AC44: 925984.3137
C45: 109.1146186 | D45: 0.003253011184 | E45: 1482.878788 | F45: -60.5 | G45: 177.6 | I45: 109.1146186 | J45: 0.003253011184 | K45: 1482.878788 | L45: -60.5 | M45: 177.6 | N45: 190.4761905 | O45: 32.85 | P45: 19.6 | Z45: 1033740.942 | AA45: 1207347.485 | AB45: 538356.5251 | AC45: 925984.3137
C46: 105.1189802 | D46: 0.003799638867 | E46: 1482.878788 | F46: -56.5 | G46: 177.6 | I46: 105.1189802 | J46: 0.003799638867 | K46: 1482.878788 | L46: -56.5 | M46: 177.6 | N46: 190.4761905 | O46: 32.85 | P46: 24.5 | Z46: 1017577.159 | AA46: 1207347.485 | AB46: 522921.7765 | AC46: 925984.3137
C47: 101.1236866 | D47: 0.004455465383 | E47: 1482.878788 | F47: -52.5 | G47: 177.6 | I47: 101.1236866 | J47: 0.004455465383 | K47: 1482.878788 | L47: -52.5 | M47: 177.6 | N47: 190.4761905 | O47: 32.85 | P47: 29.4 | Z47: 1000690.915 | AA47: 1207347.485 | AB47: 507670.1657 | AC47: 925984.3137
C48: 97.12878049 | D48: 0.005245483054 | E48: 1482.878788 | F48: -48.5 | G48: 177.6 | I48: 97.12878049 | J48: 0.005245483054 | K48: 1482.878788 | L48: -48.5 | M48: 177.6 | N48: 190.4761905 | O48: 32.85 | P48: 34.3 | Z48: 983081.6909 | AA48: 1207347.485 | AB48: 492600.767 | AC48: 925984.3137
C49: 93.13431162 | D49: 0.006201013619 | E49: 1482.878788 | F49: -44.5 | G49: 177.6 | I49: 93.13431162 | J49: 0.006201013619 | K49: 1482.878788 | L49: -44.5 | M49: 177.6 | N49: 190.4761905 | O49: 32.85 | P49: 39.2 | Z49: 964748.949 | AA49: 1207347.485 | AB49: 477712.6449 | AC49: 925984.3137
C50: 89.14033879 | D50: 0.007361411373 | E50: 1482.878788 | F50: -40.5 | G50: 177.6 | I50: 89.14033879 | J50: 0.007361411373 | K50: 1482.878788 | L50: -40.5 | M50: 177.6 | N50: 190.4761905 | O50: 32.85 | P50: 44.1 | Z50: 945692.1328 | AA50: 1207347.485 | AB50: 463004.8542 | AC50: 925984.3137
C51: 85.14693183 | D51: 0.008776223181 | E51: 1482.878788 | F51: -36.5 | G51: 177.6 | I51: 85.14693183 | J51: 0.008776223181 | K51: 1482.878788 | L51: -36.5 | M51: 177.6 | N51: 190.4761905 | O51: 32.85 | P51: 49 | Z51: 925910.6671 | AA51: 1207347.485 | AB51: 448476.4406 | AC51: 925984.3137
C52: 81.15417426 | D52: 0.01050791011 | E52: 1482.878788 | F52: -32.5 | G52: 177.6 | I52: 81.15417426 | J52: 0.01050791011 | K52: 1482.878788 | L52: -32.5 | M52: 177.6 | N52: 190.4761905 | O52: 37.25 | P52: -49 | AB52: 434126.4408 | AC52: 925984.3137
C53: 77.1621669 | D53: 0.01263524173 | E53: 1482.878788 | F53: -28.5 | G53: 177.6 | I53: 77.1621669 | J53: 0.01263524173 | K53: 1482.878788 | L53: -28.5 | M53: 177.6 | N53: 190.4761905 | O53: 37.25 | P53: -44.1 | AB53: 419953.8829 | AC53: 925984.3137
C54: 117 | D54: 0.002420727524 | E54: 1482.878788 | F54: -68.5 | G54: 172.6 | I54: 117 | J54: 0.002420727524 | K54: 1482.878788 | L54: -68.5 | M54: 172.6 | N54: 190.4761905 | O54: 37.25 | P54: -39.2 | AB54: 405957.7864 | AC54: 925984.3137
C55: 113 | D55: 0.00280718803 | E55: 1482.878788 | F55: -64.5 | G55: 172.6 | I55: 113 | J55: 0.00280718803 | K55: 1482.878788 | L55: -64.5 | M55: 172.6 | N55: 190.4761905 | O55: 37.25 | P55: -34.3 | AB55: 392137.1631 | AC55: 925984.3137
C56: 109 | D56: 0.003267363107 | E56: 1482.878788 | F56: -60.5 | G56: 172.6 | I56: 109 | J56: 0.003267363107 | K56: 1482.878788 | L56: -60.5 | M56: 172.6 | N56: 190.4761905 | O56: 37.25 | P56: -29.4 | AB56: 378491.0165 | AC56: 925984.3137
C57: 105 | D57: 0.003817480536 | E57: 1482.878788 | F57: -56.5 | G57: 172.6 | I57: 105 | J57: 0.003817480536 | K57: 1482.878788 | L57: -56.5 | M57: 172.6 | N57: 190.4761905 | O57: 37.25 | P57: -24.5 | AB57: 365018.3428 | AC57: 925984.3137
C58: 101 | D58: 0.004477767203 | E58: 1482.878788 | F58: -52.5 | G58: 172.6 | I58: 101 | J58: 0.004477767203 | K58: 1482.878788 | L58: -52.5 | M58: 172.6 | N58: 190.4761905 | O58: 37.25 | P58: -19.6 | AB58: 351718.1308 | AC58: 925984.3137
C59: 97 | D59: 0.005273517518 | E59: 1482.878788 | F59: -48.5 | G59: 172.6 | I59: 97 | J59: 0.005273517518 | K59: 1482.878788 | L59: -48.5 | M59: 172.6 | N59: 190.4761905 | O59: 37.25 | P59: -14.7 | AB59: 338589.3622 | AC59: 925984.3137
C60: 93 | D60: 0.006236458434 | E60: 1482.878788 | F60: -44.5 | G60: 172.6 | I60: 93 | J60: 0.006236458434 | K60: 1482.878788 | L60: -44.5 | M60: 172.6 | N60: 190.4761905 | O60: 37.25 | P60: -9.8 | AB60: 325631.012 | AC60: 925984.3137
C61: 89 | D61: 0.00740649032 | E61: 1482.878788 | F61: -40.5 | G61: 172.6 | I61: 89 | J61: 0.00740649032 | K61: 1482.878788 | L61: -40.5 | M61: 172.6 | N61: 190.4761905 | O61: 37.25 | P61: -4.9 | AB61: 312842.0486 | AC61: 925984.3137
C62: 85 | D62: 0.008833899088 | E62: 1482.878788 | F62: -36.5 | G62: 172.6 | I62: 85 | J62: 0.008833899088 | K62: 1482.878788 | L62: -36.5 | M62: 172.6 | N62: 190.4761905 | O62: 37.25 | P62: 0 | AB62: 300221.4342 | AC62: 925984.3137
C63: 81 | D63: 0.01058214971 | E63: 1482.878788 | F63: -32.5 | G63: 172.6 | I63: 81 | J63: 0.01058214971 | K63: 1482.878788 | L63: -32.5 | M63: 172.6 | N63: 190.4761905 | O63: 37.25 | P63: 4.9 | AB63: 287768.1247 | AC63: 925984.3137
C64: 77 | D64: 0.01273137947 | E64: 1482.878788 | F64: -28.5 | G64: 172.6 | I64: 77 | J64: 0.01273137947 | K64: 1482.878788 | L64: -28.5 | M64: 172.6 | N64: 190.4761905 | O64: 37.25 | P64: 9.8 | AB64: 275481.0705 | AC64: 925984.3137
C65: 117.1067889 | D65: 0.002411293236 | E65: 1482.878788 | F65: -68.5 | G65: 167.6 | I65: 117.1067889 | J65: 0.002411293236 | K65: 1482.878788 | L65: -68.5 | M65: 167.6 | N65: 190.4761905 | O65: 37.25 | P65: 14.7 | AB65: 263359.2162 | AC65: 925984.3137
C66: 113.1105654 | D66: 0.002795581763 | E66: 1482.878788 | F66: -64.5 | G66: 167.6 | I66: 113.1105654 | J66: 0.002795581763 | K66: 1482.878788 | L66: -64.5 | M66: 167.6 | N66: 190.4761905 | O66: 37.25 | P66: 19.6 | AB66: 251401.5013 | AC66: 925984.3137
C67: 109.1146186 | D67: 0.003253011184 | E67: 1482.878788 | F67: -60.5 | G67: 167.6 | I67: 109.1146186 | J67: 0.003253011184 | K67: 1482.878788 | L67: -60.5 | M67: 167.6 | N67: 190.4761905 | O67: 37.25 | P67: 24.5 | AB67: 239606.86 | AC67: 925984.3137
C68: 105.1189802 | D68: 0.003799638867 | E68: 1482.878788 | F68: -56.5 | G68: 167.6 | I68: 105.1189802 | J68: 0.003799638867 | K68: 1482.878788 | L68: -56.5 | M68: 167.6 | N68: 190.4761905 | O68: 37.25 | P68: 29.4 | AB68: 227974.2218 | AC68: 925984.3137
C69: 101.1236866 | D69: 0.004455465383 | E69: 1482.878788 | F69: -52.5 | G69: 167.6 | I69: 101.1236866 | J69: 0.004455465383 | K69: 1482.878788 | L69: -52.5 | M69: 167.6 | N69: 190.4761905 | O69: 37.25 | P69: 34.3 | AB69: 216502.5115 | AC69: 925984.3137
C70: 97.12878049 | D70: 0.005245483054 | E70: 1482.878788 | F70: -48.5 | G70: 167.6 | I70: 97.12878049 | J70: 0.005245483054 | K70: 1482.878788 | L70: -48.5 | M70: 167.6 | N70: 190.4761905 | O70: 37.25 | P70: 39.2 | AB70: 205190.6494 | AC70: 925984.3137
C71: 93.13431162 | D71: 0.006201013619 | E71: 1482.878788 | F71: -44.5 | G71: 167.6 | I71: 93.13431162 | J71: 0.006201013619 | K71: 1482.878788 | L71: -44.5 | M71: 167.6 | N71: 190.4761905 | O71: 37.25 | P71: 44.1 | AB71: 194037.5518 | AC71: 925984.3137
C72: 89.14033879 | D72: 0.007361411373 | E72: 1482.878788 | F72: -40.5 | G72: 167.6 | I72: 89.14033879 | J72: 0.007361411373 | K72: 1482.878788 | L72: -40.5 | M72: 167.6 | N72: 190.4761905 | O72: 37.25 | P72: 49 | AB72: 183042.1309 | AC72: 925984.3137
C73: 85.14693183 | D73: 0.008776223181 | E73: 1482.878788 | F73: -36.5 | G73: 167.6 | I73: 85.14693183 | J73: 0.008776223181 | K73: 1482.878788 | L73: -36.5 | M73: 167.6 | N73: 190.4761905 | O73: 41.65 | P73: -49 | AB73: 172203.2953 | AC73: 925984.3137
C74: 81.15417426 | D74: 0.01050791011 | E74: 1482.878788 | F74: -32.5 | G74: 167.6 | I74: 81.15417426 | J74: 0.01050791011 | K74: 1482.878788 | L74: -32.5 | M74: 167.6 | N74: 190.4761905 | O74: 41.65 | P74: -44.1 | AB74: 161519.9498 | AC74: 925984.3137
C75: 77.1621669 | D75: 0.01263524173 | E75: 1482.878788 | F75: -28.5 | G75: 167.6 | I75: 77.1621669 | J75: 0.01263524173 | K75: 1482.878788 | L75: -28.5 | M75: 167.6 | N75: 190.4761905 | O75: 41.65 | P75: -39.2 | AB75: 150990.9962 | AC75: 925984.3137
C76: 341.2865219 | D76: 1.427999548e-05 | E76: 1315 | F76: 28.5 | G76: -168.1 | I76: 341.2865219 | J76: 1.427999548e-05 | K76: 1315 | L76: 28.5 | M76: -168.1 | N76: 190.4761905 | O76: 41.65 | P76: -34.3 | AB76: 140615.3328 | AC76: 925984.3137
C77: 341.0754902 | D77: 1.432336729e-05 | E77: 1315 | F77: 32.5 | G77: -168.1 | I77: 341.0754902 | J77: 1.432336729e-05 | K77: 1315 | L77: 32.5 | M77: -168.1 | N77: 190.4761905 | O77: 41.65 | P77: -29.4 | AB77: 130391.8554 | AC77: 925984.3137
C78: 340.9112641 | D78: 1.435722853e-05 | E78: 1315 | F78: 36.5 | G78: -168.1 | I78: 340.9112641 | J78: 1.435722853e-05 | K78: 1315 | L78: 36.5 | M78: -168.1 | N78: 190.4761905 | O78: 41.65 | P78: -24.5 | AB78: 120319.4568 | AC78: 925984.3137
C79: 340.7939113 | D79: 1.438148377e-05 | E79: 1315 | F79: 40.5 | G79: -168.1 | I79: 340.7939113 | J79: 1.438148377e-05 | K79: 1315 | L79: 40.5 | M79: -168.1 | N79: 190.4761905 | O79: 41.65 | P79: -19.6 | AB79: 110397.0272 | AC79: 925984.3137
C80: 340.7234803 | D80: 1.439606447e-05 | E80: 1315 | F80: 44.5 | G80: -168.1 | I80: 340.7234803 | J80: 1.439606447e-05 | K80: 1315 | L80: 44.5 | M80: -168.1 | N80: 190.4761905 | O80: 41.65 | P80: -14.7 | AB80: 100623.4549 | AC80: 925984.3137
C81: 340.7 | D81: 1.44009293e-05 | E81: 1315 | F81: 48.5 | G81: -168.1 | I81: 340.7 | J81: 1.44009293e-05 | K81: 1315 | L81: 48.5 | M81: -168.1 | N81: 190.4761905 | O81: 41.65 | P81: -9.8 | AB81: 90997.62557 | AC81: 925984.3137
C82: 340.7234803 | D82: 1.439606447e-05 | E82: 1315 | F82: 52.5 | G82: -168.1 | I82: 340.7234803 | J82: 1.439606447e-05 | K82: 1315 | L82: 52.5 | M82: -168.1 | N82: 190.4761905 | O82: 41.65 | P82: -4.9 | AB82: 81518.42326 | AC82: 925984.3137
C83: 340.7939113 | D83: 1.438148377e-05 | E83: 1315 | F83: 56.5 | G83: -168.1 | I83: 340.7939113 | J83: 1.438148377e-05 | K83: 1315 | L83: 56.5 | M83: -168.1 | N83: 190.4761905 | O83: 41.65 | P83: 0 | AB83: 72184.73012 | AC83: 925984.3137
C84: 340.9112641 | D84: 1.435722853e-05 | E84: 1315 | F84: 60.5 | G84: -168.1 | I84: 340.9112641 | J84: 1.435722853e-05 | K84: 1315 | L84: 60.5 | M84: -168.1 | N84: 190.4761905 | O84: 41.65 | P84: 4.9 | AB84: 62995.42678 | AC84: 925984.3137
C85: 341.0754902 | D85: 1.432336729e-05 | E85: 1315 | F85: 64.5 | G85: -168.1 | I85: 341.0754902 | J85: 1.432336729e-05 | K85: 1315 | L85: 64.5 | M85: -168.1 | N85: 190.4761905 | O85: 41.65 | P85: 9.8 | AB85: 53949.39245 | AC85: 925984.3137
C86: 341.2865219 | D86: 1.427999548e-05 | E86: 1315 | F86: 68.5 | G86: -168.1 | I86: 341.2865219 | J86: 1.427999548e-05 | K86: 1315 | L86: 68.5 | M86: -168.1 | N86: 190.4761905 | O86: 41.65 | P86: 14.7 | AB86: 45045.50514 | AC86: 925984.3137
C87: 345.7788889 | D87: 1.339291752e-05 | E87: 1315 | F87: 28.5 | G87: -172.6 | I87: 345.7788889 | J87: 1.339291752e-05 | K87: 1315 | L87: 28.5 | M87: -172.6 | N87: 190.4761905 | O87: 41.65 | P87: 19.6 | AB87: 36282.64178 | AC87: 925984.3137
C88: 345.5706006 | D88: 1.343256268e-05 | E88: 1315 | F88: 32.5 | G88: -172.6 | I88: 345.5706006 | J88: 1.343256268e-05 | K88: 1315 | L88: 32.5 | M88: -172.6 | N88: 190.4761905 | O88: 41.65 | P88: 24.5 | AB88: 27659.67849 | AC88: 925984.3137
C89: 345.4085118 | D89: 1.346351148e-05 | E89: 1315 | F89: 36.5 | G89: -172.6 | I89: 345.4085118 | J89: 1.346351148e-05 | K89: 1315 | L89: 36.5 | M89: -172.6 | N89: 190.4761905 | O89: 41.65 | P89: 29.4 | AB89: 19175.49062 | AC89: 925984.3137
C90: 345.2926874 | D90: 1.348567892e-05 | E90: 1315 | F90: 40.5 | G90: -172.6 | I90: 345.2926874 | J90: 1.348567892e-05 | K90: 1315 | L90: 40.5 | M90: -172.6 | N90: 190.4761905 | O90: 41.65 | P90: 34.3 | AB90: 10828.95304 | AC90: 925984.3137
C91: 345.2231742 | D91: 1.349900392e-05 | E91: 1315 | F91: 44.5 | G91: -172.6 | I91: 345.2231742 | J91: 1.349900392e-05 | K91: 1315 | L91: 44.5 | M91: -172.6 | N91: 190.4761905 | O91: 41.65 | P91: 39.2 | AB91: 2618.940219 | AC91: 925984.3137
C92: 345.2 | D92: 1.350344968e-05 | E92: 1315 | F92: 48.5 | G92: -172.6 | I92: 345.2 | J92: 1.350344968e-05 | K92: 1315 | L92: 48.5 | M92: -172.6 | N92: 190.4761905 | O92: 41.65 | P92: 44.1 | AB92: -5455.673574 | AC92: 925984.3137
C93: 345.2231742 | D93: 1.349900392e-05 | E93: 1315 | F93: 52.5 | G93: -172.6 | I93: 345.2231742 | J93: 1.349900392e-05 | K93: 1315 | L93: 52.5 | M93: -172.6 | N93: 190.4761905 | O93: 41.65 | P93: 49 | AB93: -13396.01412 | AC93: 925984.3137
C94: 345.2926874 | D94: 1.348567892e-05 | E94: 1315 | F94: 56.5 | G94: -172.6 | I94: 345.2926874 | J94: 1.348567892e-05 | K94: 1315 | L94: 56.5 | M94: -172.6 | N94: 190.4761905 | O94: 46.05 | P94: -49 | AB94: -21203.2071 | AC94: 925984.3137
C95: 345.4085118 | D95: 1.346351148e-05 | E95: 1315 | F95: 60.5 | G95: -172.6 | I95: 345.4085118 | J95: 1.346351148e-05 | K95: 1315 | L95: 60.5 | M95: -172.6 | N95: 190.4761905 | O95: 46.05 | P95: -44.1 | AB95: -28878.37794 | AC95: 925984.3137
C96: 345.5706006 | D96: 1.343256268e-05 | E96: 1315 | F96: 64.5 | G96: -172.6 | I96: 345.5706006 | J96: 1.343256268e-05 | K96: 1315 | L96: 64.5 | M96: -172.6 | N96: 190.4761905 | O96: 46.05 | P96: -39.2 | AB96: -36422.65164 | AC96: 925984.3137
C97: 345.7788889 | D97: 1.339291752e-05 | E97: 1315 | F97: 68.5 | G97: -172.6 | I97: 345.7788889 | J97: 1.339291752e-05 | K97: 1315 | L97: 68.5 | M97: -172.6 | N97: 190.4761905 | O97: 46.05 | P97: -34.3 | AB97: -43837.15266 | AC97: 925984.3137
C98: 350.2714519 | D98: 1.257092263e-05 | E98: 1315 | F98: 28.5 | G98: -177.1 | I98: 350.2714519 | J98: 1.257092263e-05 | K98: 1315 | L98: 28.5 | M98: -177.1 | N98: 190.4761905 | O98: 46.05 | P98: -29.4 | AB98: -51123.00474 | AC98: 925984.3137
C99: 350.0658367 | D99: 1.260720172e-05 | E99: 1315 | F99: 32.5 | G99: -177.1 | I99: 350.0658367 | J99: 1.260720172e-05 | K99: 1315 | L99: 32.5 | M99: -177.1 | N99: 190.4761905 | O99: 46.05 | P99: -24.5 | AB99: -58281.3308 | AC99: 925984.3137
C100: 349.9058302 | D100: 1.263552021e-05 | E100: 1315 | F100: 36.5 | G100: -177.1 | I100: 349.9058302 | J100: 1.263552021e-05 | K100: 1315 | L100: 36.5 | M100: -177.1 | N100: 190.4761905 | O100: 46.05 | P100: -19.6 | AB100: -65313.25274 | AC100: 925984.3137
C101: 349.791495 | D101: 1.265580225e-05 | E101: 1315 | F101: 40.5 | G101: -177.1 | I101: 349.791495 | J101: 1.265580225e-05 | K101: 1315 | L101: 40.5 | M101: -177.1 | N101: 190.4761905 | O101: 46.05 | P101: -14.7 | AB101: -72219.89135 | AC101: 925984.3137
C102: 349.722876 | D102: 1.266799336e-05 | E102: 1315 | F102: 44.5 | G102: -177.1 | I102: 349.722876 | J102: 1.266799336e-05 | K102: 1315 | L102: 44.5 | M102: -177.1 | N102: 190.4761905 | O102: 46.05 | P102: -9.8 | AB102: -79002.36617 | AC102: 925984.3137
C103: 349.7 | D103: 1.267206072e-05 | E103: 1315 | F103: 48.5 | G103: -177.1 | I103: 349.7 | J103: 1.267206072e-05 | K103: 1315 | L103: 48.5 | M103: -177.1 | N103: 190.4761905 | O103: 46.05 | P103: -4.9 | AB103: -85661.79532 | AC103: 925984.3137
C104: 349.722876 | D104: 1.266799336e-05 | E104: 1315 | F104: 52.5 | G104: -177.1 | I104: 349.722876 | J104: 1.266799336e-05 | K104: 1315 | L104: 52.5 | M104: -177.1 | N104: 190.4761905 | O104: 46.05 | P104: 0 | AB104: -92199.29541 | AC104: 925984.3137
C105: 349.791495 | D105: 1.265580225e-05 | E105: 1315 | F105: 56.5 | G105: -177.1 | I105: 349.791495 | J105: 1.265580225e-05 | K105: 1315 | L105: 56.5 | M105: -177.1 | N105: 190.4761905 | O105: 46.05 | P105: 4.9 | AB105: -98615.9814 | AC105: 925984.3137
C106: 349.9058302 | D106: 1.263552021e-05 | E106: 1315 | F106: 60.5 | G106: -177.1 | I106: 349.9058302 | J106: 1.263552021e-05 | K106: 1315 | L106: 60.5 | M106: -177.1 | N106: 190.4761905 | O106: 46.05 | P106: 9.8 | AB106: -104912.9664 | AC106: 925984.3137
C107: 350.0658367 | D107: 1.260720172e-05 | E107: 1315 | F107: 64.5 | G107: -177.1 | I107: 350.0658367 | J107: 1.260720172e-05 | K107: 1315 | L107: 64.5 | M107: -177.1 | N107: 190.4761905 | O107: 46.05 | P107: 14.7 | AB107: -111091.3618 | AC107: 925984.3137
C108: 350.2714519 | D108: 1.257092263e-05 | E108: 1315 | F108: 68.5 | G108: -177.1 | I108: 350.2714519 | J108: 1.257092263e-05 | K108: 1315 | L108: 68.5 | M108: -177.1 | N108: 190.4761905 | O108: 46.05 | P108: 19.6 | AB108: -117152.2768 | AC108: 925984.3137
C109: 360.2297739 | D109: 1.095429921e-05 | E109: 1315 | F109: -68.5 | G109: -168.1 | I109: 360.2297739 | J109: 1.095429921e-05 | K109: 1315 | L109: -68.5 | M109: -168.1 | N109: 190.4761905 | O109: 46.05 | P109: 24.5 | AB109: -123096.8183 | AC109: 925984.3137
C110: 358.9505398 | D110: 1.114741928e-05 | E110: 1315 | F110: -64.5 | G110: -168.1 | I110: 358.9505398 | J110: 1.114741928e-05 | K110: 1315 | L110: -64.5 | M110: -168.1 | N110: 190.4761905 | O110: 46.05 | P110: 29.4 | AB110: -128926.0914 | AC110: 925984.3137
C111: 357.7114619 | D111: 1.13383732e-05 | E111: 1315 | F111: -60.5 | G111: -168.1 | I111: 357.7114619 | J111: 1.13383732e-05 | K111: 1315 | L111: -60.5 | M111: -168.1 | N111: 190.4761905 | O111: 46.05 | P111: 34.3 | AB111: -134641.1984 | AC111: 925984.3137
C112: 356.5129591 | D112: 1.152680901e-05 | E112: 1315 | F112: -56.5 | G112: -168.1 | I112: 356.5129591 | J112: 1.152680901e-05 | K112: 1315 | L112: -56.5 | M112: -168.1 | N112: 190.4761905 | O112: 46.05 | P112: 39.2 | AB112: -140243.2393 | AC112: 925984.3137
C113: 355.3554418 | D113: 1.171236818e-05 | E113: 1315 | F113: -52.5 | G113: -168.1 | I113: 355.3554418 | J113: 1.171236818e-05 | K113: 1315 | L113: -52.5 | M113: -168.1 | N113: 190.4761905 | O113: 46.05 | P113: 44.1 | AB113: -145733.3114 | AC113: 925984.3137
C114: 354.2393118 | D114: 1.189468674e-05 | E114: 1315 | F114: -48.5 | G114: -168.1 | I114: 354.2393118 | J114: 1.189468674e-05 | K114: 1315 | L114: -48.5 | M114: -168.1 | N114: 190.4761905 | O114: 46.05 | P114: 49 | AB114: -151112.5095 | AC114: 925984.3137
C115: 353.1649615 | D115: 1.207339655e-05 | E115: 1315 | F115: -44.5 | G115: -168.1 | I115: 353.1649615 | J115: 1.207339655e-05 | K115: 1315 | L115: -44.5 | M115: -168.1 | N115: 190.4761905 | O115: -28.45 | P115: -49 | AB115: -156381.9252 | AC115: 925984.3137
C116: 352.1327733 | D116: 1.224812659e-05 | E116: 1315 | F116: -40.5 | G116: -168.1 | I116: 352.1327733 | J116: 1.224812659e-05 | K116: 1315 | L116: -40.5 | M116: -168.1 | N116: 190.4761905 | O116: -28.45 | P116: -44.1 | AB116: -161542.6476 | AC116: 925984.3137
C117: 351.143119 | D117: 1.241850442e-05 | E117: 1315 | F117: -36.5 | G117: -168.1 | I117: 351.143119 | J117: 1.241850442e-05 | K117: 1315 | L117: -36.5 | M117: -168.1 | N117: 190.4761905 | O117: -28.45 | P117: -39.2 | AB117: -166595.7625 | AC117: 925984.3137
C118: 350.1963592 | D118: 1.258415762e-05 | E118: 1315 | F118: -32.5 | G118: -168.1 | I118: 350.1963592 | J118: 1.258415762e-05 | K118: 1315 | L118: -32.5 | M118: -168.1 | N118: 190.4761905 | O118: -28.45 | P118: -34.3 | AB118: -171542.3527 | AC118: 925984.3137
C119: 349.2928428 | D119: 1.274471534e-05 | E119: 1315 | F119: -28.5 | G119: -168.1 | I119: 349.2928428 | J119: 1.274471534e-05 | K119: 1315 | L119: -28.5 | M119: -168.1 | N119: 190.4761905 | O119: -28.45 | P119: -29.4 | AB119: -176383.4977 | AC119: 925984.3137
C120: 364.4887378 | D120: 1.03395635e-05 | E120: 1315 | F120: -68.5 | G120: -172.6 | I120: 364.4887378 | J120: 1.03395635e-05 | K120: 1315 | L120: -68.5 | M120: -172.6 | N120: 190.4761905 | O120: -28.45 | P120: -24.5 | AB120: -181120.2738 | AC120: 925984.3137
C121: 363.2245036 | D121: 1.051763322e-05 | E121: 1315 | F121: -64.5 | G121: -172.6 | I121: 363.2245036 | J121: 1.051763322e-05 | K121: 1315 | L121: -64.5 | M121: -172.6 | N121: 190.4761905 | O121: -28.45 | P121: -19.6 | AB121: -185753.7538 | AC121: 925984.3137
C122: 362.0000552 | D122: 1.069360799e-05 | E122: 1315 | F122: -60.5 | G122: -172.6 | I122: 362.0000552 | J122: 1.069360799e-05 | K122: 1315 | L122: -60.5 | M122: -172.6 | N122: 190.4761905 | O122: -28.45 | P122: -14.7 | AB122: -190285.0071 | AC122: 925984.3137
C123: 360.8157979 | D123: 1.086716807e-05 | E123: 1315 | F123: -56.5 | G123: -172.6 | I123: 360.8157979 | J123: 1.086716807e-05 | K123: 1315 | L123: -56.5 | M123: -172.6 | N123: 190.4761905 | O123: -28.45 | P123: -9.8 | AB123: -194715.0992 | AC123: 925984.3137
C124: 359.6721285 | D124: 1.103798817e-05 | E124: 1315 | F124: -52.5 | G124: -172.6 | I124: 359.6721285 | J124: 1.103798817e-05 | K124: 1315 | L124: -52.5 | M124: -172.6 | N124: 190.4761905 | O124: -28.45 | P124: -4.9 | AB124: -199045.0924 | AC124: 925984.3137
C125: 358.5694354 | D125: 1.120573859e-05 | E125: 1315 | F125: -48.5 | G125: -172.6 | I125: 358.5694354 | J125: 1.120573859e-05 | K125: 1315 | L125: -48.5 | M125: -172.6 | N125: 190.4761905 | O125: -28.45 | P125: 0 | AB125: -203276.0449 | AC125: 925984.3137
C126: 357.5080978 | D126: 1.137008622e-05 | E126: 1315 | F126: -44.5 | G126: -172.6 | I126: 357.5080978 | J126: 1.137008622e-05 | K126: 1315 | L126: -44.5 | M126: -172.6 | N126: 190.4761905 | O126: -28.45 | P126: 4.9 | AB126: -207409.0112 | AC126: 925984.3137
C127: 356.4884851 | D127: 1.153069583e-05 | E127: 1315 | F127: -40.5 | G127: -172.6 | I127: 356.4884851 | J127: 1.153069583e-05 | K127: 1315 | L127: -40.5 | M127: -172.6 | N127: 190.4761905 | O127: -28.45 | P127: 9.8 | AB127: -211445.0418 | AC127: 925984.3137
C128: 355.5109562 | D128: 1.168723127e-05 | E128: 1315 | F128: -36.5 | G128: -172.6 | I128: 355.5109562 | J128: 1.168723127e-05 | K128: 1315 | L128: -36.5 | M128: -172.6 | N128: 190.4761905 | O128: -28.45 | P128: 14.7 | AB128: -215385.1832 | AC128: 925984.3137
C129: 354.5758593 | D129: 1.18393568e-05 | E129: 1315 | F129: -32.5 | G129: -172.6 | I129: 354.5758593 | J129: 1.18393568e-05 | K129: 1315 | L129: -32.5 | M129: -172.6 | N129: 190.4761905 | O129: -28.45 | P129: 19.6 | AB129: -219230.4778 | AC129: 925984.3137
C130: 353.6835309 | D130: 1.198673847e-05 | E130: 1315 | F130: -28.5 | G130: -172.6 | I130: 353.6835309 | J130: 1.198673847e-05 | K130: 1315 | L130: -28.5 | M130: -172.6 | N130: 190.4761905 | O130: -28.45 | P130: 24.5 | AB130: -222981.9639 | AC130: 925984.3137
C131: 368.7534271 | D131: 9.764908149e-06 | E131: 1315 | F131: -68.5 | G131: -177.1 | I131: 368.7534271 | J131: 9.764908149e-06 | K131: 1315 | L131: -68.5 | M131: -177.1 | N131: 190.4761905 | O131: -28.45 | P131: 29.4 | AB131: -226640.6755 | AC131: 925984.3137
C132: 367.5038639 | D132: 9.929233455e-06 | E132: 1315 | F132: -64.5 | G132: -177.1 | I132: 367.5038639 | J132: 9.929233455e-06 | K132: 1315 | L132: -64.5 | M132: -177.1 | N132: 190.4761905 | O132: -28.45 | P132: 34.3 | AB132: -230207.6424 | AC132: 925984.3137
C133: 366.2937209 | D133: 1.009153842e-05 | E133: 1315 | F133: -60.5 | G133: -177.1 | I133: 366.2937209 | J133: 1.009153842e-05 | K133: 1315 | L133: -60.5 | M133: -177.1 | N133: 190.4761905 | O133: -28.45 | P133: 39.2 | AB133: -233683.8899 | AC133: 925984.3137
C134: 365.1233901 | D134: 1.025153235e-05 | E134: 1315 | F134: -56.5 | G134: -177.1 | I134: 365.1233901 | J134: 1.025153235e-05 | K134: 1315 | L134: -56.5 | M134: -177.1 | N134: 190.4761905 | O134: -28.45 | P134: 44.1 | AB134: -237070.4388 | AC134: 925984.3137
C135: 363.9932554 | D135: 1.040891995e-05 | E135: 1315 | F135: -52.5 | G135: -177.1 | I135: 363.9932554 | J135: 1.040891995e-05 | K135: 1315 | L135: -52.5 | M135: -177.1 | N135: 190.4761905 | O135: -28.45 | P135: 49 | AB135: -240368.3057 | AC135: 925984.3137
C136: 362.9036925 | D136: 1.056340228e-05 | E136: 1315 | F136: -48.5 | G136: -177.1 | I136: 362.9036925 | J136: 1.056340228e-05 | K136: 1315 | L136: -48.5 | M136: -177.1 | N136: 190.4761905 | O136: -32.85 | P136: -49 | AB136: -243578.5022 | AC136: 925984.3137
C137: 361.8550677 | D137: 1.07146777e-05 | E137: 1315 | F137: -44.5 | G137: -177.1 | I137: 361.8550677 | J137: 1.07146777e-05 | K137: 1315 | L137: -44.5 | M137: -177.1 | N137: 190.4761905 | O137: -32.85 | P137: -44.1 | AB137: -246702.0355 | AC137: 925984.3137
C138: 360.847738 | D138: 1.086244303e-05 | E138: 1315 | F138: -40.5 | G138: -177.1 | I138: 360.847738 | J138: 1.086244303e-05 | K138: 1315 | L138: -40.5 | M138: -177.1 | N138: 190.4761905 | O138: -32.85 | P138: -39.2 | AB138: -249739.9081 | AC138: 925984.3137
C139: 359.8820501 | D139: 1.100639458e-05 | E139: 1315 | F139: -36.5 | G139: -177.1 | I139: 359.8820501 | J139: 1.100639458e-05 | K139: 1315 | L139: -36.5 | M139: -177.1 | N139: 190.4761905 | O139: -32.85 | P139: -34.3 | AB139: -252693.1176 | AC139: 925984.3137
C140: 358.9583402 | D140: 1.11462294e-05 | E140: 1315 | F140: -32.5 | G140: -177.1 | I140: 358.9583402 | J140: 1.11462294e-05 | K140: 1315 | L140: -32.5 | M140: -177.1 | N140: 190.4761905 | O140: -32.85 | P140: -29.4 | AB140: -255562.6569 | AC140: 925984.3137
C141: 358.0769331 | D141: 1.128164643e-05 | E141: 1315 | F141: -28.5 | G141: -177.1 | I141: 358.0769331 | J141: 1.128164643e-05 | K141: 1315 | L141: -28.5 | M141: -177.1 | N141: 190.4761905 | O141: -32.85 | P141: -24.5 | AB141: -258349.514 | AC141: 925984.3137
N142: 190.4761905 | O142: -32.85 | P142: -19.6 | AB142: -261054.6719 | AC142: 925984.3137
N143: 190.4761905 | O143: -32.85 | P143: -14.7 | AB143: -263679.1086 | AC143: 925984.3137
N144: 190.4761905 | O144: -32.85 | P144: -9.8 | AB144: -266223.7971 | AC144: 925984.3137
N145: 190.4761905 | O145: -32.85 | P145: -4.9 | AB145: -268689.7054 | AC145: 925984.3137
N146: 190.4761905 | O146: -32.85 | P146: 0 | AB146: -271077.7962 | AC146: 925984.3137
N147: 190.4761905 | O147: -32.85 | P147: 4.9 | AB147: -273389.027 | AC147: 925984.3137
N148: 190.4761905 | O148: -32.85 | P148: 9.8 | AB148: -275624.3501 | AC148: 925984.3137
N149: 190.4761905 | O149: -32.85 | P149: 14.7 | AB149: -277784.7127 | AC149: 925984.3137
N150: 190.4761905 | O150: -32.85 | P150: 19.6 | AB150: -279871.0564 | AC150: 925984.3137
N151: 190.4761905 | O151: -32.85 | P151: 24.5 | AB151: -281884.3176 | AC151: 925984.3137
N152: 190.4761905 | O152: -32.85 | P152: 29.4 | AB152: -283825.4272 | AC152: 925984.3137
N153: 190.4761905 | O153: -32.85 | P153: 34.3 | AB153: -285695.3107 | AC153: 925984.3137
N154: 190.4761905 | O154: -32.85 | P154: 39.2 | AB154: -287494.8881 | AC154: 925984.3137
N155: 190.4761905 | O155: -32.85 | P155: 44.1 | AB155: -289225.0739 | AC155: 925984.3137
N156: 190.4761905 | O156: -32.85 | P156: 49 | AB156: -290886.7771 | AC156: 925984.3137
N157: 190.4761905 | O157: -37.25 | P157: -49 | AB157: -292480.9009 | AC157: 925984.3137
N158: 190.4761905 | O158: -37.25 | P158: -44.1 | AB158: -294008.3431 | AC158: 925984.3137
N159: 190.4761905 | O159: -37.25 | P159: -39.2 | AB159: -295469.9958 | AC159: 925984.3137
N160: 190.4761905 | O160: -37.25 | P160: -34.3 | AB160: -296866.7453 | AC160: 925984.3137
N161: 190.4761905 | O161: -37.25 | P161: -29.4 | AB161: -298199.4723 | AC161: 925984.3137
N162: 190.4761905 | O162: -37.25 | P162: -24.5 | AB162: -299469.0518 | AC162: 925984.3137
N163: 190.4761905 | O163: -37.25 | P163: -19.6 | AB163: -300676.3529 | AC163: 925984.3137
N164: 190.4761905 | O164: -37.25 | P164: -14.7 | AB164: -301822.2391 | AC164: 925984.3137
N165: 190.4761905 | O165: -37.25 | P165: -9.8 | AB165: -302907.5679 | AC165: 925984.3137
N166: 190.4761905 | O166: -37.25 | P166: -4.9 | AB166: -303933.1911 | AC166: 925984.3137
N167: 190.4761905 | O167: -37.25 | P167: 0 | AB167: -304899.9545 | AC167: 925984.3137
N168: 190.4761905 | O168: -37.25 | P168: 4.9 | AB168: -305808.6982 | AC168: 925984.3137
N169: 190.4761905 | O169: -37.25 | P169: 9.8 | AB169: -306660.2563 | AC169: 925984.3137
N170: 190.4761905 | O170: -37.25 | P170: 14.7 | AB170: -307455.4571 | AC170: 925984.3137
N171: 190.4761905 | O171: -37.25 | P171: 19.6 | AB171: -308195.1228 | AC171: 925984.3137
N172: 190.4761905 | O172: -37.25 | P172: 24.5 | AB172: -308880.0697 | AC172: 925984.3137
N173: 190.4761905 | O173: -37.25 | P173: 29.4 | AB173: -309511.1084 | AC173: 925984.3137
N174: 190.4761905 | O174: -37.25 | P174: 34.3 | AB174: -310089.0431 | AC174: 925984.3137
N175: 190.4761905 | O175: -37.25 | P175: 39.2 | AB175: -310614.6724 | AC175: 925984.3137
N176: 190.4761905 | O176: -37.25 | P176: 44.1 | AB176: -311088.7887 | AC176: 925984.3137
N177: 190.4761905 | O177: -37.25 | P177: 49 | AB177: -311512.1785 | AC177: 925984.3137
N178: 190.4761905 | O178: -41.65 | P178: -49 | AB178: -311885.6222 | AC178: 925984.3137
N179: 190.4761905 | O179: -41.65 | P179: -44.1 | AB179: -312209.8942 | AC179: 925984.3137
N180: 190.4761905 | O180: -41.65 | P180: -39.2 | AB180: -312485.7629 | AC180: 925984.3137
N181: 190.4761905 | O181: -41.65 | P181: -34.3 | AB181: -312713.9907 | AC181: 925984.3137
N182: 190.4761905 | O182: -41.65 | P182: -29.4 | AB182: -312895.334 | AC182: 925984.3137
N183: 190.4761905 | O183: -41.65 | P183: -24.5 | AB183: -313030.5429 | AC183: 925984.3137
N184: 190.4761905 | O184: -41.65 | P184: -19.6 | AB184: -313120.3617 | AC184: 925984.3137
N185: 190.4761905 | O185: -41.65 | P185: -14.7 | AB185: -313165.5286 | AC185: 925984.3137
N186: 190.4761905 | O186: -41.65 | P186: -9.8 | AB186: -313166.7758 | AC186: 925984.3137
N187: 190.4761905 | O187: -41.65 | P187: -4.9 | AB187: -313124.8292 | AC187: 925984.3137
N188: 190.4761905 | O188: -41.65 | P188: 0 | AB188: -313040.409 | AC188: 925984.3137
N189: 190.4761905 | O189: -41.65 | P189: 4.9 | AB189: -312914.2292 | AC189: 925984.3137
N190: 190.4761905 | O190: -41.65 | P190: 9.8 | AB190: -312746.9976 | AC190: 925984.3137
N191: 190.4761905 | O191: -41.65 | P191: 14.7 | AB191: -312539.4161 | AC191: 925984.3137
N192: 190.4761905 | O192: -41.65 | P192: 19.6 | AB192: -312292.1806 | AC192: 925984.3137
N193: 190.4761905 | O193: -41.65 | P193: 24.5 | AB193: -312005.9809 | AC193: 925984.3137
N194: 190.4761905 | O194: -41.65 | P194: 29.4 | AB194: -311681.5008 | AC194: 925984.3137
N195: 190.4761905 | O195: -41.65 | P195: 34.3 | AB195: -311319.4179 | AC195: 925984.3137
N196: 190.4761905 | O196: -41.65 | P196: 39.2 | AB196: -310920.404 | AC196: 925984.3137
N197: 190.4761905 | O197: -41.65 | P197: 44.1 | AB197: -310485.1247 | AC197: 925984.3137
N198: 190.4761905 | O198: -41.65 | P198: 49 | AB198: -310014.2399 | AC198: 925984.3137
N199: 190.4761905 | O199: -46.05 | P199: -49 | AB199: -309508.4031 | AC199: 925984.3137
N200: 190.4761905 | O200: -46.05 | P200: -44.1 | AB200: -308968.2621 | AC200: 925984.3137
... 2555 more rows

Sheet API RP 1102 Fatigue Table
B20: Reproduced courtesy of the American Petroleum Institute. Kiefner & Associates, Inc., is grateful to the American Petroleum Institute for granting permission as of 15 January 2013 for the reproduction of Table 3 – Fatigue Endurance Limits, SFG and SFL, for Various Steel Grades from API RP 1102, 6th edition, April 1993 Reaffirmed July 2002: Steel Pipelines Crossing Railroads and Highways.
